Workbook

Sheet P1
G1: 3 | AA1: marcel1924
A2: CHAMPIONNAT DES CLUBS
A4: POULE 1
A5: EQUIPES | C5: POINTS | D5: Pour | E5: Contre | F5: Diff
A6: Club Abeille | B6: 1A | C6: =SUMIF($A$18:$A$69,A6,$E$18:$E$69)+SUMIF($C$18:$C$69,A6,$F$18:$F$69) -> 15 | D6: =SUMIF($A$18:$A$69,$A6,$B$18:$B$69)+SUMIF($C$18:$C$69,$A6,$D$18:$D$69) -> 134 | E6: =SUMIF($C$18:$C$69,$A6,$B$18:$B$69)+SUMIF($A$18:$A$69,$A6,$D$18:$D$69) -> 118 | F6: =D6-E6 -> 16
A7: Club Baleine | B7: 1B | C7: =SUMIF($A$18:$A$69,A7,$E$18:$E$69)+SUMIF($C$18:$C$69,A7,$F$18:$F$69) -> 17 | D7: =SUMIF($A$18:$A$69,$A7,$B$18:$B$69)+SUMIF($C$18:$C$69,$A7,$D$18:$D$69) -> 141 | E7: =SUMIF($C$18:$C$69,$A7,$B$18:$B$69)+SUMIF($A$18:$A$69,$A7,$D$18:$D$69) -> 111 | F7: 30
A8: Club Chat | B8: 1C | C8: =SUMIF($A$18:$A$69,A8,$E$18:$E$69)+SUMIF($C$18:$C$69,A8,$F$18:$F$69) -> 15 | D8: 147 | E8: 105 | F8: 42
A9: Club Dauphin | B9: 1D | C9: 15 | D9: 123 | E9: 129 | F9: -6
A10: Club Elephant | B10: 1E | C10: 13 | D10: 118 | E10: 134 | F10: -16
A11: Club Fourmi | B11: 1F | C11: 9 | D11: 81 | E11: 171 | F11: -90
A12: Club Girafe | B12: 1G | C12: 11 | D12: 124 | E12: 128 | F12: =D12-E12 -> -4
A13: Club Hirondelle | B13: 1H | C13: 17 | D13: =SUMIF($A$18:$A$69,$A13,$B$18:$B$69)+SUMIF($C$18:$C$69,$A13,$D$18:$D$69) -> 140 | E13: 112 | F13: =D13-E13 -> 28
A15: 1er MATCH le | B15: à | C15: =A6 -> Club Abeille
G16: SI forfait éq recevante
A17: Equipes | B17: score | C17: Equipes | D17: score | E17: Points | F17: Points
A18: =A6 -> Club Abeille | B18: 12 | C18: =A7 -> Club Baleine | D18: =IF(G18=19,19,IF(ISBLANK(B18),"",IF(B18=19,0,36-B18))) -> 24 | E18: =IF(G18=19,0,IF(ISBLANK(B18),"",IF(B18<18,1,IF(B18=18,2,IF(B18>18,3))))) -> 1 | F18: =IF(G18=19,3,IF(ISBLANK(B18),"",IF(B18=19,0,IF(D18<18,1,IF(D18=18,2,IF(D18>=20,3)))))) -> 3 | L18: =IF(B18>D18,A18&C18,IF(D18>B18,C18&A18,"/")) -> Club BaleineClub Abeille | N18: =A18&C18 -> Club AbeilleClub Baleine | O18: =E18 -> 1 | P18: =C18&A18 -> Club BaleineClub Abeille | Q18: =F18 -> 3 | R18: =B18 -> 12 | S18: =D18 -> 24
A19: =A8 -> Club Chat | B19: 24 | C19: =A9 -> Club Dauphin | D19: =IF(G19=19,19,IF(ISBLANK(B19),"",IF(B19=19,0,36-B19))) -> 12 | E19: =IF(G19=19,0,IF(ISBLANK(B19),"",IF(B19<18,1,IF(B19=18,2,IF(B19>18,3))))) -> 3 | F19: =IF(G19=19,3,IF(ISBLANK(B19),"",IF(B19=19,0,IF(D19<18,1,IF(D19=18,2,IF(D19>=20,3)))))) -> 1 | L19: =IF(B19>D19,A19&C19,IF(D19>B19,C19&A19,"/")) -> Club ChatClub Dauphin | N19: =A19&C19 -> Club ChatClub Dauphin | O19: =E19 -> 3 | P19: =C19&A19 -> Club DauphinClub Chat | Q19: =F19 -> 1 | R19: =B19 -> 24 | S19: =D19 -> 12
A20: =A10 -> Club Elephant | B20: 30 | C20: =A11 -> Club Fourmi | D20: =IF(G20=19,19,IF(ISBLANK(B20),"",IF(B20=19,0,36-B20))) -> 6 | E20: =IF(G20=19,0,IF(ISBLANK(B20),"",IF(B20<18,1,IF(B20=18,2,IF(B20>18,3))))) -> 3 | F20: =IF(G20=19,3,IF(ISBLANK(B20),"",IF(B20=19,0,IF(D20<18,1,IF(D20=18,2,IF(D20>=20,3)))))) -> 1 | L20: =IF(B20>D20,A20&C20,IF(D20>B20,C20&A20,"/")) -> Club ElephantClub Fourmi | N20: =A20&C20 -> Club ElephantClub Fourmi | O20: =E20 -> 3 | P20: =C20&A20 -> Club FourmiClub Elephant | Q20: =F20 -> 1 | R20: =B20 -> 30 | S20: =D20 -> 6
A21: =A12 -> Club Girafe | B21: 9 | C21: =A13 -> Club Hirondelle | D21: =IF(G21=19,19,IF(ISBLANK(B21),"",IF(B21=19,0,36-B21))) -> 27 | E21: =IF(G21=19,0,IF(ISBLANK(B21),"",IF(B21<18,1,IF(B21=18,2,IF(B21>18,3))))) -> 1 | F21: =IF(G21=19,3,IF(ISBLANK(B21),"",IF(B21=19,0,IF(D21<18,1,IF(D21=18,2,IF(D21>=20,3)))))) -> 3 | L21: =IF(B21>D21,A21&C21,IF(D21>B21,C21&A21,"/")) -> Club HirondelleClub Girafe | N21: =A21&C21 -> Club GirafeClub Hirondelle | O21: =E21 -> 1 | P21: =C21&A21 -> Club HirondelleClub Girafe | Q21: =F21 -> 3 | R21: =B21 -> 9 | S21: =D21 -> 27
A23: 2 éme MATCH le | B23: à | C23: =A7 -> Club Baleine
G24: SI forfait éq recevante
A25: Equipes | B25: score | C25: Equipes | D25: score | E25: Points | F25: Points
A26: =A6 -> Club Abeille | B26: 22 | C26: =A8 -> Club Chat | D26: =IF(G26=19,19,IF(ISBLANK(B26),"",IF(B26=19,0,36-B26))) -> 14 | E26: =IF(G26=19,0,IF(ISBLANK(B26),"",IF(B26<18,1,IF(B26=18,2,IF(B26>18,3))))) -> 3 | F26: =IF(G26=19,3,IF(ISBLANK(B26),"",IF(B26=19,0,IF(D26<18,1,IF(D26=18,2,IF(D26>=20,3)))))) -> 1 | L26: =IF(B26>D26,A26&C26,IF(D26>B26,C26&A26,"/")) -> Club AbeilleClub Chat | N26: =A26&C26 -> Club AbeilleClub Chat | O26: =E26 -> 3 | P26: =C26&A26 -> Club ChatClub Abeille | Q26: =F26 -> 1 | R26: =B26 -> 22 | S26: =D26 -> 14
A27: =A7 -> Club Baleine | B27: 10 | C27: =A13 -> Club Hirondelle | D27: =IF(G27=19,19,IF(ISBLANK(B27),"",IF(B27=19,0,36-B27))) -> 26 | E27: =IF(G27=19,0,IF(ISBLANK(B27),"",IF(B27<18,1,IF(B27=18,2,IF(B27>18,3))))) -> 1 | F27: =IF(G27=19,3,IF(ISBLANK(B27),"",IF(B27=19,0,IF(D27<18,1,IF(D27=18,2,IF(D27>=20,3)))))) -> 3 | L27: =IF(B27>D27,A27&C27,IF(D27>B27,C27&A27,"/")) -> Club HirondelleClub Baleine | N27: =A27&C27 -> Club BaleineClub Hirondelle | O27: =E27 -> 1 | P27: =C27&A27 -> Club HirondelleClub Baleine | Q27: =F27 -> 3 | R27: =B27 -> 10 | S27: =D27 -> 26
A28: =A9 -> Club Dauphin | B28: 7 | C28: =A11 -> Club Fourmi | D28: =IF(G28=19,19,IF(ISBLANK(B28),"",IF(B28=19,0,36-B28))) -> 29 | E28: =IF(G28=19,0,IF(ISBLANK(B28),"",IF(B28<18,1,IF(B28=18,2,IF(B28>18,3))))) -> 1 | F28: =IF(G28=19,3,IF(ISBLANK(B28),"",IF(B28=19,0,IF(D28<18,1,IF(D28=18,2,IF(D28>=20,3)))))) -> 3 | L28: =IF(B28>D28,A28&C28,IF(D28>B28,C28&A28,"/")) -> Club FourmiClub Dauphin | N28: =A28&C28 -> Club DauphinClub Fourmi | O28: =E28 -> 1 | P28: =C28&A28 -> Club FourmiClub Dauphin | Q28: =F28 -> 3 | R28: =B28 -> 7 | S28: =D28 -> 29
A29: =A10 -> Club Elephant | B29: 2 | C29: =A12 -> Club Girafe | D29: =IF(G29=19,19,IF(ISBLANK(B29),"",IF(B29=19,0,36-B29))) -> 34 | E29: =IF(G29=19,0,IF(ISBLANK(B29),"",IF(B29<18,1,IF(B29=18,2,IF(B29>18,3))))) -> 1 | F29: =IF(G29=19,3,IF(ISBLANK(B29),"",IF(B29=19,0,IF(D29<18,1,IF(D29=18,2,IF(D29>=20,3)))))) -> 3 | L29: =IF(B29>D29,A29&C29,IF(D29>B29,C29&A29,"/")) -> Club GirafeClub Elephant | N29: =A29&C29 -> Club ElephantClub Girafe | O29: =E29 -> 1 | P29: =C29&A29 -> Club GirafeClub Elephant | Q29: =F29 -> 3 | R29: =B29 -> 2 | S29: =D29 -> 34
A31: 3 éme MATCH le | B31: à | C31: =A8 -> Club Chat
G32: SI forfait éq recevante
A33: Equipes | B33: score | C33: Equipes | D33: score | E33: Points | F33: Points
A34: =A6 -> Club Abeille | B34: 14 | C34: =A13 -> Club Hirondelle | D34: =IF(G34=19,19,IF(ISBLANK(B34),"",IF(B34=19,0,36-B34))) -> 22 | E34: =IF(G34=19,0,IF(ISBLANK(B34),"",IF(B34<18,1,IF(B34=18,2,IF(B34>18,3))))) -> 1 | F34: =IF(G34=19,3,IF(ISBLANK(B34),"",IF(B34=19,0,IF(D34<18,1,IF(D34=18,2,IF(D34>=20,3)))))) -> 3 | L34: =IF(B34>D34,A34&C34,IF(D34>B34,C34&A34,"/")) -> Club HirondelleClub Abeille | N34: =A34&C34 -> Club AbeilleClub Hirondelle | O34: =E34 -> 1 | P34: =C34&A34 -> Club HirondelleClub Abeille | Q34: =F34 -> 3 | R34: =B34 -> 14 | S34: =D34 -> 22
A35: =A7 -> Club Baleine | B35: 26 | C35: =A10 -> Club Elephant | D35: =IF(G35=19,19,IF(ISBLANK(B35),"",IF(B35=19,0,36-B35))) -> 10 | E35: =IF(G35=19,0,IF(ISBLANK(B35),"",IF(B35<18,1,IF(B35=18,2,IF(B35>18,3))))) -> 3 | F35: =IF(G35=19,3,IF(ISBLANK(B35),"",IF(B35=19,0,IF(D35<18,1,IF(D35=18,2,IF(D35>=20,3)))))) -> 1 | L35: =IF(B35>D35,A35&C35,IF(D35>B35,C35&A35,"/")) -> Club BaleineClub Elephant | N35: =A35&C35 -> Club BaleineClub Elephant | O35: =E35 -> 3 | P35: =C35&A35 -> Club ElephantClub Baleine | Q35: =F35 -> 1 | R35: =B35 -> 26 | S35: =D35 -> 10
A36: =A8 -> Club Chat | B36: 32 | C36: =A11 -> Club Fourmi | D36: =IF(G36=19,19,IF(ISBLANK(B36),"",IF(B36=19,0,36-B36))) -> 4 | E36: =IF(G36=19,0,IF(ISBLANK(B36),"",IF(B36<18,1,IF(B36=18,2,IF(B36>18,3))))) -> 3 | F36: =IF(G36=19,3,IF(ISBLANK(B36),"",IF(B36=19,0,IF(D36<18,1,IF(D36=18,2,IF(D36>=20,3)))))) -> 1 | L36: =IF(B36>D36,A36&C36,IF(D36>B36,C36&A36,"/")) -> Club ChatClub Fourmi | N36: =A36&C36 -> Club ChatClub Fourmi | O36: =E36 -> 3 | P36: =C36&A36 -> Club FourmiClub Chat | Q36: =F36 -> 1 | R36: =B36 -> 32 | S36: =D36 -> 4
A37: =A9 -> Club Dauphin | B37: 21 | C37: =A12 -> Club Girafe | D37: =IF(G37=19,19,IF(ISBLANK(B37),"",IF(B37=19,0,36-B37))) -> 15 | E37: =IF(G37=19,0,IF(ISBLANK(B37),"",IF(B37<18,1,IF(B37=18,2,IF(B37>18,3))))) -> 3 | F37: =IF(G37=19,3,IF(ISBLANK(B37),"",IF(B37=19,0,IF(D37<18,1,IF(D37=18,2,IF(D37>=20,3)))))) -> 1 | L37: =IF(B37>D37,A37&C37,IF(D37>B37,C37&A37,"/")) -> Club DauphinClub Girafe | N37: =A37&C37 -> Club DauphinClub Girafe | O37: =E37 -> 3 | P37: =C37&A37 -> Club GirafeClub Dauphin | Q37: =F37 -> 1 | R37: =B37 -> 21 | S37: =D37 -> 15
A39: 4 éme MATCH le | B39: à | C39: =A9 -> Club Dauphin
G40: SI forfait éq recevante
A41: Equipes | B41: score | C41: Equipes | D41: score | E41: Points | F41: Points
A42: =A6 -> Club Abeille | B42: 14 | C42: =A9 -> Club Dauphin | D42: =IF(G42=19,19,IF(ISBLANK(B42),"",IF(B42=19,0,36-B42))) -> 22 | E42: =IF(G42=19,0,IF(ISBLANK(B42),"",IF(B42<18,1,IF(B42=18,2,IF(B42>18,3))))) -> 1 | F42: =IF(G42=19,3,IF(ISBLANK(B42),"",IF(B42=19,0,IF(D42<18,1,IF(D42=18,2,IF(D42>=20,3)))))) -> 3 | L42: =IF(B42>D42,A42&C42,IF(D42>B42,C42&A42,"/")) -> Club DauphinClub Abeille | N42: =A42&C42 -> Club AbeilleClub Dauphin | O42: =E42 -> 1 | P42: =C42&A42 -> Club DauphinClub Abeille | Q42: =F42 -> 3 | R42: =B42 -> 14 | S42: =D42 -> 22
A43: =A11 -> Club Fourmi | B43: 5 | C43: =A12 -> Club Girafe | D43: =IF(G43=19,19,IF(ISBLANK(B43),"",IF(B43=19,0,36-B43))) -> 31 | E43: =IF(G43=19,0,IF(ISBLANK(B43),"",IF(B43<18,1,IF(B43=18,2,IF(B43>18,3))))) -> 1 | F43: =IF(G43=19,3,IF(ISBLANK(B43),"",IF(B43=19,0,IF(D43<18,1,IF(D43=18,2,IF(D43>=20,3)))))) -> 3 | L43: =IF(B43>D43,A43&C43,IF(D43>B43,C43&A43,"/")) -> Club GirafeClub Fourmi | N43: =A43&C43 -> Club FourmiClub Girafe | O43: =E43 -> 1 | P43: =C43&A43 -> Club GirafeClub Fourmi | Q43: =F43 -> 3 | R43: =B43 -> 5 | S43: =D43 -> 31
A44: =A7 -> Club Baleine | B44: 21 | C44: =A8 -> Club Chat | D44: =IF(G44=19,19,IF(ISBLANK(B44),"",IF(B44=19,0,36-B44))) -> 15 | E44: =IF(G44=19,0,IF(ISBLANK(B44),"",IF(B44<18,1,IF(B44=18,2,IF(B44>18,3))))) -> 3 | F44: =IF(G44=19,3,IF(ISBLANK(B44),"",IF(B44=19,0,IF(D44<18,1,IF(D44=18,2,IF(D44>=20,3)))))) -> 1 | L44: =IF(B44>D44,A44&C44,IF(D44>B44,C44&A44,"/")) -> Club BaleineClub Chat | N44: =A44&C44 -> Club BaleineClub Chat | O44: =E44 -> 3 | P44: =C44&A44 -> Club ChatClub Baleine | Q44: =F44 -> 1 | R44: =B44 -> 21 | S44: =D44 -> 15
A45: =A10 -> Club Elephant | B45: 30 | C45: =A13 -> Club Hirondelle | D45: =IF(G45=19,19,IF(ISBLANK(B45),"",IF(B45=19,0,36-B45))) -> 6 | E45: =IF(G45=19,0,IF(ISBLANK(B45),"",IF(B45<18,1,IF(B45=18,2,IF(B45>18,3))))) -> 3 | F45: =IF(G45=19,3,IF(ISBLANK(B45),"",IF(B45=19,0,IF(D45<18,1,IF(D45=18,2,IF(D45>=20,3)))))) -> 1 | L45: =IF(B45>D45,A45&C45,IF(D45>B45,C45&A45,"/")) -> Club ElephantClub Hirondelle | N45: =A45&C45 -> Club ElephantClub Hirondelle | O45: =E45 -> 3 | P45: =C45&A45 -> Club HirondelleClub Elephant | Q45: =F45 -> 1 | R45: =B45 -> 30 | S45: =D45 -> 6
A47: 5 éme MATCH le | B47: à | C47: =A10 -> Club Elephant
G48: SI forfait éq recevante
A49: Equipes | B49: score | C49: Equipes | D49: score | E49: Points | F49: Points
A50: =A6 -> Club Abeille | B50: 22 | C50: =A11 -> Club Fourmi | D50: =IF(G50=19,19,IF(ISBLANK(B50),"",IF(B50=19,0,36-B50))) -> 14 | E50: =IF(G50=19,0,IF(ISBLANK(B50),"",IF(B50<18,1,IF(B50=18,2,IF(B50>18,3))))) -> 3 | F50: =IF(G50=19,3,IF(ISBLANK(B50),"",IF(B50=19,0,IF(D50<18,1,IF(D50=18,2,IF(D50>=20,3)))))) -> 1 | L50: =IF(B50>D50,A50&C50,IF(D50>B50,C50&A50,"/")) -> Club AbeilleClub Fourmi | N50: =A50&C50 -> Club AbeilleClub Fourmi | O50: =E50 -> 3 | P50: =C50&A50 -> Club FourmiClub Abeille | Q50: =F50 -> 1 | R50: =B50 -> 22 | S50: =D50 -> 14
A51: =A9 -> Club Dauphin | B51: 23 | C51: =A13 -> Club Hirondelle | D51: =IF(G51=19,19,IF(ISBLANK(B51),"",IF(B51=19,0,36-B51))) -> 13 | E51: =IF(G51=19,0,IF(ISBLANK(B51),"",IF(B51<18,1,IF(B51=18,2,IF(B51>18,3))))) -> 3 | F51: =IF(G51=19,3,IF(ISBLANK(B51),"",IF(B51=19,0,IF(D51<18,1,IF(D51=18,2,IF(D51>=20,3)))))) -> 1 | L51: =IF(B51>D51,A51&C51,IF(D51>B51,C51&A51,"/")) -> Club DauphinClub Hirondelle | N51: =A51&C51 -> Club DauphinClub Hirondelle | O51: =E51 -> 3 | P51: =C51&A51 -> Club HirondelleClub Dauphin | Q51: =F51 -> 1 | R51: =B51 -> 23 | S51: =D51 -> 13
A52: =A7 -> Club Baleine | B52: 24 | C52: =A12 -> Club Girafe | D52: =IF(G52=19,19,IF(ISBLANK(B52),"",IF(B52=19,0,36-B52))) -> 12 | E52: =IF(G52=19,0,IF(ISBLANK(B52),"",IF(B52<18,1,IF(B52=18,2,IF(B52>18,3))))) -> 3 | F52: =IF(G52=19,3,IF(ISBLANK(B52),"",IF(B52=19,0,IF(D52<18,1,IF(D52=18,2,IF(D52>=20,3)))))) -> 1 | L52: =IF(B52>D52,A52&C52,IF(D52>B52,C52&A52,"/")) -> Club BaleineClub Girafe | N52: =A52&C52 -> Club BaleineClub Girafe | O52: =E52 -> 3 | P52: =C52&A52 -> Club GirafeClub Baleine | Q52: =F52 -> 1 | R52: =B52 -> 24 | S52: =D52 -> 12
A53: =A8 -> Club Chat | B53: 25 | C53: =A10 -> Club Elephant | D53: =IF(G53=19,19,IF(ISBLANK(B53),"",IF(B53=19,0,36-B53))) -> 11 | E53: =IF(G53=19,0,IF(ISBLANK(B53),"",IF(B53<18,1,IF(B53=18,2,IF(B53>18,3))))) -> 3 | F53: =IF(G53=19,3,IF(ISBLANK(B53),"",IF(B53=19,0,IF(D53<18,1,IF(D53=18,2,IF(D53>=20,3)))))) -> 1 | L53: =IF(B53>D53,A53&C53,IF(D53>B53,C53&A53,"/")) -> Club ChatClub Elephant | N53: =A53&C53 -> Club ChatClub Elephant | O53: =E53 -> 3 | P53: =C53&A53 -> Club ElephantClub Chat | Q53: =F53 -> 1 | R53: =B53 -> 25 | S53: =D53 -> 11
A55: 6 éme MATCH le | B55: à | C55: =A11 -> Club Fourmi
G56: SI forfait éq recevante
A57: Equipes | B57: score | C57: Equipes | D57: score | E57: Points | F57: Points
A58: =A7 -> Club Baleine | B58: 10 | C58: =A9 -> Club Dauphin | D58: =IF(G58=19,19,IF(ISBLANK(B58),"",IF(B58=19,0,36-B58))) -> 26 | E58: =IF(G58=19,0,IF(ISBLANK(B58),"",IF(B58<18,1,IF(B58=18,2,IF(B58>18,3))))) -> 1 | F58: =IF(G58=19,3,IF(ISBLANK(B58),"",IF(B58=19,0,IF(D58<18,1,IF(D58=18,2,IF(D58>=20,3)))))) -> 3 | L58: =IF(B58>D58,A58&C58,IF(D58>B58,C58&A58,"/")) -> Club DauphinClub Baleine | N58: =A58&C58 -> Club BaleineClub Dauphin | O58: =E58 -> 1 | P58: =C58&A58 -> Club DauphinClub Baleine | Q58: =F58 -> 3 | R58: =B58 -> 10 | S58: =D58 -> 26
A59: =A10 -> Club Elephant | B59: 11 | C59: =A6 -> Club Abeille | D59: =IF(G59=19,19,IF(ISBLANK(B59),"",IF(B59=19,0,36-B59))) -> 25 | E59: =IF(G59=19,0,IF(ISBLANK(B59),"",IF(B59<18,1,IF(B59=18,2,IF(B59>18,3))))) -> 1 | F59: =IF(G59=19,3,IF(ISBLANK(B59),"",IF(B59=19,0,IF(D59<18,1,IF(D59=18,2,IF(D59>=20,3)))))) -> 3 | L59: =IF(B59>D59,A59&C59,IF(D59>B59,C59&A59,"/")) -> Club AbeilleClub Elephant | N59: =A59&C59 -> Club ElephantClub Abeille | O59: =E59 -> 1 | P59: =C59&A59 -> Club AbeilleClub Elephant | Q59: =F59 -> 3 | R59: =B59 -> 11 | S59: =D59 -> 25
A60: =A12 -> Club Girafe | B60: 12 | C60: =A8 -> Club Chat | D60: =IF(G60=19,19,IF(ISBLANK(B60),"",IF(B60=19,0,36-B60))) -> 24 | E60: =IF(G60=19,0,IF(ISBLANK(B60),"",IF(B60<18,1,IF(B60=18,2,IF(B60>18,3))))) -> 1 | F60: =IF(G60=19,3,IF(ISBLANK(B60),"",IF(B60=19,0,IF(D60<18,1,IF(D60=18,2,IF(D60>=20,3)))))) -> 3 | L60: =IF(B60>D60,A60&C60,IF(D60>B60,C60&A60,"/")) -> Club ChatClub Girafe | N60: =A60&C60 -> Club GirafeClub Chat | O60: =E60 -> 1 | P60: =C60&A60 -> Club ChatClub Girafe | Q60: =F60 -> 3 | R60: =B60 -> 12 | S60: =D60 -> 24
A61: =A11 -> Club Fourmi | B61: 13 | C61: =A13 -> Club Hirondelle | D61: =IF(G61=19,19,IF(ISBLANK(B61),"",IF(B61=19,0,36-B61))) -> 23 | E61: =IF(G61=19,0,IF(ISBLANK(B61),"",IF(B61<18,1,IF(B61=18,2,IF(B61>18,3))))) -> 1 | F61: =IF(G61=19,3,IF(ISBLANK(B61),"",IF(B61=19,0,IF(D61<18,1,IF(D61=18,2,IF(D61>=20,3)))))) -> 3 | L61: =IF(B61>D61,A61&C61,IF(D61>B61,C61&A61,"/")) -> Club HirondelleClub Fourmi | N61: =A61&C61 -> Club FourmiClub Hirondelle | O61: =E61 -> 1 | P61: =C61&A61 -> Club HirondelleClub Fourmi | Q61: =F61 -> 3 | R61: =B61 -> 13 | S61: =D61 -> 23
A63: 7 éme MATCH le | B63: à | C63: =A12 -> Club Girafe
G64: SI forfait éq recevante
A65: Equipes | B65: score | C65: Equipes | D65: score | E65: Points | F65: Points
A66: =A6 -> Club Abeille | B66: 25 | C66: =A12 -> Club Girafe | D66: =IF(G66=19,19,IF(ISBLANK(B66),"",IF(B66=19,0,36-B66))) -> 11 | E66: =IF(G66=19,0,IF(ISBLANK(B66),"",IF(B66<18,1,IF(B66=18,2,IF(B66>18,3))))) -> 3 | F66: =IF(G66=19,3,IF(ISBLANK(B66),"",IF(B66=19,0,IF(D66<18,1,IF(D66=18,2,IF(D66>=20,3)))))) -> 1 | L66: =IF(B66>D66,A66&C66,IF(D66>B66,C66&A66,"/")) -> Club AbeilleClub Girafe | N66: =A66&C66 -> Club AbeilleClub Girafe | O66: =E66 -> 3 | P66: =C66&A66 -> Club GirafeClub Abeille | Q66: =F66 -> 1 | R66: =B66 -> 25 | S66: =D66 -> 11
A67: =A7 -> Club Baleine | B67: 26 | C67: =A11 -> Club Fourmi | D67: =IF(G67=19,19,IF(ISBLANK(B67),"",IF(B67=19,0,36-B67))) -> 10 | E67: =IF(G67=19,0,IF(ISBLANK(B67),"",IF(B67<18,1,IF(B67=18,2,IF(B67>18,3))))) -> 3 | F67: =IF(G67=19,3,IF(ISBLANK(B67),"",IF(B67=19,0,IF(D67<18,1,IF(D67=18,2,IF(D67>=20,3)))))) -> 1 | L67: =IF(B67>D67,A67&C67,IF(D67>B67,C67&A67,"/")) -> Club BaleineClub Fourmi | N67: =A67&C67 -> Club BaleineClub Fourmi | O67: =E67 -> 3 | P67: =C67&A67 -> Club FourmiClub Baleine | Q67: =F67 -> 1 | R67: =B67 -> 26 | S67: =D67 -> 10
A68: =A10 -> Club Elephant | B68: 24 | C68: =A9 -> Club Dauphin | D68: =IF(G68=19,19,IF(ISBLANK(B68),"",IF(B68=19,0,36-B68))) -> 12 | E68: =IF(G68=19,0,IF(ISBLANK(B68),"",IF(B68<18,1,IF(B68=18,2,IF(B68>18,3))))) -> 3 | F68: =IF(G68=19,3,IF(ISBLANK(B68),"",IF(B68=19,0,IF(D68<18,1,IF(D68=18,2,IF(D68>=20,3)))))) -> 1 | L68: =IF(B68>D68,A68&C68,IF(D68>B68,C68&A68,"/")) -> Club ElephantClub Dauphin | N68: =A68&C68 -> Club ElephantClub Dauphin | O68: =E68 -> 3 | P68: =C68&A68 -> Club DauphinClub Elephant | Q68: =F68 -> 1 | R68: =B68 -> 24 | S68: =D68 -> 12
A69: =A8 -> Club Chat | B69: 13 | C69: =A13 -> Club Hirondelle | D69: =IF(G69=19,19,IF(ISBLANK(B69),"",IF(B69=19,0,36-B69))) -> 23 | E69: =IF(G69=19,0,IF(ISBLANK(B69),"",IF(B69<18,1,IF(B69=18,2,IF(B69>18,3))))) -> 1 | F69: =IF(G69=19,3,IF(ISBLANK(B69),"",IF(B69=19,0,IF(D69<18,1,IF(D69=18,2,IF(D69>=20,3)))))) -> 3 | L69: =IF(B69>D69,A69&C69,IF(D69>B69,C69&A69,"/")) -> Club HirondelleClub Chat | N69: =A69&C69 -> Club ChatClub Hirondelle | O69: =E69 -> 1 | P69: =C69&A69 -> Club HirondelleClub Chat | Q69: =F69 -> 3 | R69: =B69 -> 13 | S69: =D69 -> 23
C70: CLASSEMENT | G70: Classt Final | H70: Rencontres entre exaequos
A71: EQUIPES | C71: POINTS | D71: POUR | E71: CONTRE | F71: DIFF | H71: POINTS Exaequos | I71: Exaq | J71: n° | K71: =A6 -> Club Abeille | L71: =A7 -> Club Baleine | M71: =A8 -> Club Chat | N71: =A9 -> Club Dauphin | O71: =A10 -> Club Elephant | P71: =A11 -> Club Fourmi | Q71: =A12 -> Club Girafe | R71: =A13 -> Club Hirondelle | S71: Pts matchs | W71: 1000000*Pts matchs +1000 (Diff + abs(diff mini) )+Pour | X71: RANG | Y71: DIFF Exaequos | Z71: POUR Exaequos
A72: Club Hirondelle | B72: 1H | C72: 17 | D72: 140 | E72: 112 | F72: 28 | G72: 1 | H72: =IF(S72>0,S72,"") -> 3 | I72: =COUNTIF($C$72:$C$79,C72) -> 2 | J72: =IF(AND(I72>1,COUNTIFS(I$72:I72,I72,C$72:C72,C72)=1),MAX(J$71:J71)+1,"") -> 1 | K72: =IF($A72=K$71,"",IF(INDEX($C$72:$C$79,MATCH(K$71,$A$72:$A$79,0))=$C72,IFERROR(VLOOKUP($A72&K$71,$N$18:$O$69,2,0), VLOOKUP(K$71&$A72,$N$18:$Q$69,4,0)), "")) ->  | L72: 3 | S72: =SUM(K72:R72) -> 3 | W72: =IF(I72<3,S72*1000000+(F72+ABS(MIN($F$72:$F$79)))*1000+D72,S72*1000000+U96*1000+Z72) -> 3118140 | X72: =IF(I72>2,RANK(W72,OFFSET(W$71,MATCH(I72,$I$72:$I$79,0),,I72))) -> FALSE | Y72: =IF(S96=0,"",S96) -> 16 | Z72: =IF(S80=0,"",S80) -> 26
A73: Club Baleine | B73: 1B | C73: 17 | D73: 141 | E73: 111 | F73: 30 | G73: 2 | H73: =IF(S73>0,S73,"") -> 1 | I73: 2 | J73: =IF(AND(I73>1,COUNTIFS(I$72:I73,I73,C$72:C73,C73)=1),MAX(J$71:J72)+1,"") ->  | R73: 1 | S73: =SUM(K73:R73) -> 1 | W73: =IF(I73<3,S73*1000000+(F73+ABS(MIN($F$72:$F$79)))*1000+D73,S73*1000000+U97*1000+Z73) -> 1120141 | X73: =IF(I73>2,RANK(W73,OFFSET(W$71,MATCH(I73,$I$72:$I$79,0),,I73))) -> FALSE | Y73: -16 | Z73: 10
A74: Club Chat | B74: 1C | C74: 15 | D74: 147 | E74: 105 | F74: 42 | G74: 3 | H74: =IF(S74>0,S74,"") -> 4 | I74: 3 | J74: =IF(AND(I74>1,COUNTIFS(I$72:I74,I74,C$72:C74,C74)=1),MAX(J$71:J73)+1,"") -> 2 | K74: 1 | N74: 3 | S74: 4 | W74: 4020038 | X74: 1 | Y74: 4 | Z74: 38
A75: Club Abeille | B75: 1A | C75: 15 | D75: 134 | E75: 118 | F75: 16 | G75: 4 | H75: =IF(S75>0,S75,"") -> 4 | I75: 3 | J75: =IF(AND(I75>1,COUNTIFS(I$72:I75,I75,C$72:C75,C75)=1),MAX(J$71:J74)+1,"") ->  | M75: 3 | N75: 1 | S75: 4 | W75: 4016036 | X75: 2 | Z75: 36
A76: Club Dauphin | B76: 1D | C76: 15 | D76: 123 | E76: 129 | F76: -6 | G76: 5 | H76: =IF(S76>0,S76,"") -> 4 | I76: 3 | J76: =IF(AND(I76>1,COUNTIFS(I$72:I76,I76,C$72:C76,C76)=1),MAX(J$71:J75)+1,"") ->  | K76: 3 | M76: 1 | S76: 4 | W76: 4012034 | X76: 3 | Y76: -4 | Z76: 34
A77: Club Elephant | B77: 1E | C77: 13 | D77: 118 | E77: 134 | F77: -16 | G77: 6 | H77: =IF(S77>0,S77,"") ->  | I77: 1 | J77: =IF(AND(I77>1,COUNTIFS(I$72:I77,I77,C$72:C77,C77)=1),MAX(J$71:J76)+1,"") ->  | S77: 0 | W77: 74118 | X77: FALSE
A78: Club Girafe | B78: 1G | C78: 11 | D78: 124 | E78: 128 | F78: -4 | G78: 7 | H78: =IF(S78>0,S78,"") ->  | I78: 1 | J78: =IF(AND(I78>1,COUNTIFS(I$72:I78,I78,C$72:C78,C78)=1),MAX(J$71:J77)+1,"") ->  | S78: 0 | W78: 86124 | X78: FALSE
A79: Club Fourmi | B79: 1F | C79: 9 | D79: 81 | E79: 171 | F79: -90 | G79: 8 | H79: =IF(S79>0,S79,"") ->  | I79: 1 | J79: =IF(AND(I79>1,COUNTIFS(I$72:I79,I79,C$72:C79,C79)=1),MAX(J$71:J78)+1,"") ->  | S79: 0 | W79: 81 | X79: FALSE
I80: POUR | J80: =A72 -> Club Hirondelle | K80: =IF($A72=K$71,"",IF(INDEX($C$72:$C$79,MATCH(K$71,$A$72:$A$79,0))=$C72,IFERROR(VLOOKUP($A72&K$71,$N$18:$R$69,5,0), VLOOKUP(K$71&$A72,$N$18:$S$69,6,0)), "")) ->  | L80: 26 | S80: 26
J81: Club Baleine | R81: 10 | S81: 10
J82: Club Chat | K82: 14 | N82: 24 | S82: 38
J83: Club Abeille | M83: 22 | N83: 14 | S83: 36
J84: Club Dauphin | K84: 22 | M84: 12 | S84: 34
J85: Club Elephant | S85: 0
J86: Club Girafe | S86: 0
J87: Club Fourmi | S87: 0
I88: CONTRE | J88: =J80 -> Club Hirondelle | K88: =INDEX($K$80:$R$87,MATCH(K$71,$J$80:$J$87,0),MATCH($J80,$K$71:$R$71,0)) ->  | L88: =INDEX($K$80:$R$87,MATCH(L$71,$J$80:$J$87,0),MATCH($J80,$K$71:$R$71,0)) -> 10 | S88: 10
J89: =J81 -> Club Baleine | K89: =INDEX($K$80:$R$87,MATCH(K$71,$J$80:$J$87,0),MATCH($J81,$K$71:$R$71,0)) ->  | R89: 26 | S89: 26
J90: Club Chat | K90: 22 | N90: 12 | S90: 34
J91: Club Abeille | M91: 14 | N91: 22 | S91: 36
J92: Club Dauphin | K92: 14 | M92: 24 | S92: 38
J93: Club Elephant | S93: 0
J94: Club Girafe | S94: 0
J95: Club Fourmi | S95: 0 | U95: Diff pondérée
I96: DIFF | J96: =J88 -> Club Hirondelle | S96: =S80-S88 -> 16 | U96: =S96+ABS(MIN($S$96:$S$103)) -> 32
J97: =J89 -> Club Baleine | S97: =S81-S89 -> -16 | U97: 0
J98: Club Chat | S98: 4 | U98: 20
J99: Club Abeille | S99: 0 | U99: 16
J100: Club Dauphin | S100: -4 | U100: 12
J101: Club Elephant | S101: 0 | U101: 16
J102: Club Girafe | S102: 0 | U102: =S102+ABS(MIN($S$96:$S$103)) -> 16
J103: Club Fourmi | S103: 0 | U103: =S103+ABS(MIN($S$96:$S$103)) -> 16

Sheet P2
G1: 3
A2: CHAMPIONNAT DES CLUBS
A4: POULE 2
A5: EQUIPES | C5: POINTS | D5: Pour | E5: Contre | F5: Diff
A6: Club Iguane | B6: 1A | C6: =SUMIF($A$18:$A$69,A6,$E$18:$E$69)+SUMIF($C$18:$C$69,A6,$F$18:$F$69) -> 13 | D6: =SUMIF($A$18:$A$69,$A6,$B$18:$B$69)+SUMIF($C$18:$C$69,$A6,$D$18:$D$69) -> 120 | E6: =SUMIF($C$18:$C$69,$A6,$B$18:$B$69)+SUMIF($A$18:$A$69,$A6,$D$18:$D$69) -> 132 | F6: =D6-E6 -> -12
A7: Club Jaguar | B7: 1B | C7: =SUMIF($A$18:$A$69,A7,$E$18:$E$69)+SUMIF($C$18:$C$69,A7,$F$18:$F$69) -> 17 | D7: =SUMIF($A$18:$A$69,$A7,$B$18:$B$69)+SUMIF($C$18:$C$69,$A7,$D$18:$D$69) -> 135 | E7: =SUMIF($C$18:$C$69,$A7,$B$18:$B$69)+SUMIF($A$18:$A$69,$A7,$D$18:$D$69) -> 117 | F7: 18
A8: Club Koala | B8: 1C | C8: =SUMIF($A$18:$A$69,A8,$E$18:$E$69)+SUMIF($C$18:$C$69,A8,$F$18:$F$69) -> 15 | D8: 144 | E8: 108 | F8: 36
A9: Club Leopard | B9: 1D | C9: 11 | D9: 94 | E9: 158 | F9: -64
A10: Club Marsouin | B10: 1E | C10: 19 | D10: 172 | E10: 80 | F10: 92
A11: Club Narval | B11: 1F | C11: 13 | D11: 122 | E11: 130 | F11: -8
A12: Club Otarie | B12: 1G | C12: 15 | D12: 134 | E12: 118 | F12: =D12-E12 -> 16
A13: Club Panthere | B13: 1H | C13: 9 | D13: =SUMIF($A$18:$A$69,$A13,$B$18:$B$69)+SUMIF($C$18:$C$69,$A13,$D$18:$D$69) -> 87 | E13: 165 | F13: =D13-E13 -> -78
A15: 1er MATCH le | B15: à | C15: =A6 -> Club Iguane
G16: SI forfait éq recevante
A17: Equipes | B17: score | C17: Equipes | D17: score | E17: Points | F17: Points
A18: =A6 -> Club Iguane | B18: 32 | C18: =A7 -> Club Jaguar | D18: =IF(G18=19,19,IF(ISBLANK(B18),"",IF(B18=19,0,36-B18))) -> 4 | E18: =IF(G18=19,0,IF(ISBLANK(B18),"",IF(B18<18,1,IF(B18=18,2,IF(B18>18,3))))) -> 3 | F18: =IF(G18=19,3,IF(ISBLANK(B18),"",IF(B18=19,0,IF(D18<18,1,IF(D18=18,2,IF(D18>=20,3)))))) -> 1 | L18: =IF(B18>D18,A18&C18,IF(D18>B18,C18&A18,"/")) -> Club IguaneClub Jaguar | N18: =A18&C18 -> Club IguaneClub Jaguar | O18: =E18 -> 3 | P18: =C18&A18 -> Club JaguarClub Iguane | Q18: =F18 -> 1 | R18: =B18 -> 32 | S18: =D18 -> 4
A19: =A8 -> Club Koala | B19: 30 | C19: =A9 -> Club Leopard | D19: =IF(G19=19,19,IF(ISBLANK(B19),"",IF(B19=19,0,36-B19))) -> 6 | E19: =IF(G19=19,0,IF(ISBLANK(B19),"",IF(B19<18,1,IF(B19=18,2,IF(B19>18,3))))) -> 3 | F19: =IF(G19=19,3,IF(ISBLANK(B19),"",IF(B19=19,0,IF(D19<18,1,IF(D19=18,2,IF(D19>=20,3)))))) -> 1 | L19: =IF(B19>D19,A19&C19,IF(D19>B19,C19&A19,"/")) -> Club KoalaClub Leopard | N19: =A19&C19 -> Club KoalaClub Leopard | O19: =E19 -> 3 | P19: =C19&A19 -> Club LeopardClub Koala | Q19: =F19 -> 1 | R19: =B19 -> 30 | S19: =D19 -> 6
A20: =A10 -> Club Marsouin | B20: 28 | C20: =A11 -> Club Narval | D20: =IF(G20=19,19,IF(ISBLANK(B20),"",IF(B20=19,0,36-B20))) -> 8 | E20: =IF(G20=19,0,IF(ISBLANK(B20),"",IF(B20<18,1,IF(B20=18,2,IF(B20>18,3))))) -> 3 | F20: =IF(G20=19,3,IF(ISBLANK(B20),"",IF(B20=19,0,IF(D20<18,1,IF(D20=18,2,IF(D20>=20,3)))))) -> 1 | L20: =IF(B20>D20,A20&C20,IF(D20>B20,C20&A20,"/")) -> Club MarsouinClub Narval | N20: =A20&C20 -> Club MarsouinClub Narval | O20: =E20 -> 3 | P20: =C20&A20 -> Club NarvalClub Marsouin | Q20: =F20 -> 1 | R20: =B20 -> 28 | S20: =D20 -> 8
A21: =A12 -> Club Otarie | B21: 25 | C21: =A13 -> Club Panthere | D21: =IF(G21=19,19,IF(ISBLANK(B21),"",IF(B21=19,0,36-B21))) -> 11 | E21: =IF(G21=19,0,IF(ISBLANK(B21),"",IF(B21<18,1,IF(B21=18,2,IF(B21>18,3))))) -> 3 | F21: =IF(G21=19,3,IF(ISBLANK(B21),"",IF(B21=19,0,IF(D21<18,1,IF(D21=18,2,IF(D21>=20,3)))))) -> 1 | L21: =IF(B21>D21,A21&C21,IF(D21>B21,C21&A21,"/")) -> Club OtarieClub Panthere | N21: =A21&C21 -> Club OtarieClub Panthere | O21: =E21 -> 3 | P21: =C21&A21 -> Club PanthereClub Otarie | Q21: =F21 -> 1 | R21: =B21 -> 25 | S21: =D21 -> 11
A23: 2 éme MATCH le | B23: à | C23: =A7 -> Club Jaguar
G24: SI forfait éq recevante
A25: Equipes | B25: score | C25: Equipes | D25: score | E25: Points | F25: Points
A26: =A6 -> Club Iguane | B26: 15 | C26: =A8 -> Club Koala | D26: =IF(G26=19,19,IF(ISBLANK(B26),"",IF(B26=19,0,36-B26))) -> 21 | E26: =IF(G26=19,0,IF(ISBLANK(B26),"",IF(B26<18,1,IF(B26=18,2,IF(B26>18,3))))) -> 1 | F26: =IF(G26=19,3,IF(ISBLANK(B26),"",IF(B26=19,0,IF(D26<18,1,IF(D26=18,2,IF(D26>=20,3)))))) -> 3 | L26: =IF(B26>D26,A26&C26,IF(D26>B26,C26&A26,"/")) -> Club KoalaClub Iguane | N26: =A26&C26 -> Club IguaneClub Koala | O26: =E26 -> 1 | P26: =C26&A26 -> Club KoalaClub Iguane | Q26: =F26 -> 3 | R26: =B26 -> 15 | S26: =D26 -> 21
A27: =A7 -> Club Jaguar | B27: 20 | C27: =A13 -> Club Panthere | D27: =IF(G27=19,19,IF(ISBLANK(B27),"",IF(B27=19,0,36-B27))) -> 16 | E27: =IF(G27=19,0,IF(ISBLANK(B27),"",IF(B27<18,1,IF(B27=18,2,IF(B27>18,3))))) -> 3 | F27: =IF(G27=19,3,IF(ISBLANK(B27),"",IF(B27=19,0,IF(D27<18,1,IF(D27=18,2,IF(D27>=20,3)))))) -> 1 | L27: =IF(B27>D27,A27&C27,IF(D27>B27,C27&A27,"/")) -> Club JaguarClub Panthere | N27: =A27&C27 -> Club JaguarClub Panthere | O27: =E27 -> 3 | P27: =C27&A27 -> Club PanthereClub Jaguar | Q27: =F27 -> 1 | R27: =B27 -> 20 | S27: =D27 -> 16
A28: =A9 -> Club Leopard | B28: 25 | C28: =A11 -> Club Narval | D28: =IF(G28=19,19,IF(ISBLANK(B28),"",IF(B28=19,0,36-B28))) -> 11 | E28: =IF(G28=19,0,IF(ISBLANK(B28),"",IF(B28<18,1,IF(B28=18,2,IF(B28>18,3))))) -> 3 | F28: =IF(G28=19,3,IF(ISBLANK(B28),"",IF(B28=19,0,IF(D28<18,1,IF(D28=18,2,IF(D28>=20,3)))))) -> 1 | L28: =IF(B28>D28,A28&C28,IF(D28>B28,C28&A28,"/")) -> Club LeopardClub Narval | N28: =A28&C28 -> Club LeopardClub Narval | O28: =E28 -> 3 | P28: =C28&A28 -> Club NarvalClub Leopard | Q28: =F28 -> 1 | R28: =B28 -> 25 | S28: =D28 -> 11
A29: =A10 -> Club Marsouin | B29: 30 | C29: =A12 -> Club Otarie | D29: =IF(G29=19,19,IF(ISBLANK(B29),"",IF(B29=19,0,36-B29))) -> 6 | E29: =IF(G29=19,0,IF(ISBLANK(B29),"",IF(B29<18,1,IF(B29=18,2,IF(B29>18,3))))) -> 3 | F29: =IF(G29=19,3,IF(ISBLANK(B29),"",IF(B29=19,0,IF(D29<18,1,IF(D29=18,2,IF(D29>=20,3)))))) -> 1 | L29: =IF(B29>D29,A29&C29,IF(D29>B29,C29&A29,"/")) -> Club MarsouinClub Otarie | N29: =A29&C29 -> Club MarsouinClub Otarie | O29: =E29 -> 3 | P29: =C29&A29 -> Club OtarieClub Marsouin | Q29: =F29 -> 1 | R29: =B29 -> 30 | S29: =D29 -> 6
A31: 3 éme MATCH le | B31: à | C31: =A8 -> Club Koala
G32: SI forfait éq recevante
A33: Equipes | B33: score | C33: Equipes | D33: score | E33: Points | F33: Points
A34: =A6 -> Club Iguane | B34: 29 | C34: =A13 -> Club Panthere | D34: =IF(G34=19,19,IF(ISBLANK(B34),"",IF(B34=19,0,36-B34))) -> 7 | E34: =IF(G34=19,0,IF(ISBLANK(B34),"",IF(B34<18,1,IF(B34=18,2,IF(B34>18,3))))) -> 3 | F34: =IF(G34=19,3,IF(ISBLANK(B34),"",IF(B34=19,0,IF(D34<18,1,IF(D34=18,2,IF(D34>=20,3)))))) -> 1 | L34: =IF(B34>D34,A34&C34,IF(D34>B34,C34&A34,"/")) -> Club IguaneClub Panthere | N34: =A34&C34 -> Club IguaneClub Panthere | O34: =E34 -> 3 | P34: =C34&A34 -> Club PanthereClub Iguane | Q34: =F34 -> 1 | R34: =B34 -> 29 | S34: =D34 -> 7
A35: =A7 -> Club Jaguar | B35: 28 | C35: =A10 -> Club Marsouin | D35: =IF(G35=19,19,IF(ISBLANK(B35),"",IF(B35=19,0,36-B35))) -> 8 | E35: =IF(G35=19,0,IF(ISBLANK(B35),"",IF(B35<18,1,IF(B35=18,2,IF(B35>18,3))))) -> 3 | F35: =IF(G35=19,3,IF(ISBLANK(B35),"",IF(B35=19,0,IF(D35<18,1,IF(D35=18,2,IF(D35>=20,3)))))) -> 1 | L35: =IF(B35>D35,A35&C35,IF(D35>B35,C35&A35,"/")) -> Club JaguarClub Marsouin | N35: =A35&C35 -> Club JaguarClub Marsouin | O35: =E35 -> 3 | P35: =C35&A35 -> Club MarsouinClub Jaguar | Q35: =F35 -> 1 | R35: =B35 -> 28 | S35: =D35 -> 8
A36: =A8 -> Club Koala | B36: 27 | C36: =A11 -> Club Narval | D36: =IF(G36=19,19,IF(ISBLANK(B36),"",IF(B36=19,0,36-B36))) -> 9 | E36: =IF(G36=19,0,IF(ISBLANK(B36),"",IF(B36<18,1,IF(B36=18,2,IF(B36>18,3))))) -> 3 | F36: =IF(G36=19,3,IF(ISBLANK(B36),"",IF(B36=19,0,IF(D36<18,1,IF(D36=18,2,IF(D36>=20,3)))))) -> 1 | L36: =IF(B36>D36,A36&C36,IF(D36>B36,C36&A36,"/")) -> Club KoalaClub Narval | N36: =A36&C36 -> Club KoalaClub Narval | O36: =E36 -> 3 | P36: =C36&A36 -> Club NarvalClub Koala | Q36: =F36 -> 1 | R36: =B36 -> 27 | S36: =D36 -> 9
A37: =A9 -> Club Leopard | B37: 26 | C37: =A12 -> Club Otarie | D37: =IF(G37=19,19,IF(ISBLANK(B37),"",IF(B37=19,0,36-B37))) -> 10 | E37: =IF(G37=19,0,IF(ISBLANK(B37),"",IF(B37<18,1,IF(B37=18,2,IF(B37>18,3))))) -> 3 | F37: =IF(G37=19,3,IF(ISBLANK(B37),"",IF(B37=19,0,IF(D37<18,1,IF(D37=18,2,IF(D37>=20,3)))))) -> 1 | L37: =IF(B37>D37,A37&C37,IF(D37>B37,C37&A37,"/")) -> Club LeopardClub Otarie | N37: =A37&C37 -> Club LeopardClub Otarie | O37: =E37 -> 3 | P37: =C37&A37 -> Club OtarieClub Leopard | Q37: =F37 -> 1 | R37: =B37 -> 26 | S37: =D37 -> 10
A39: 4 éme MATCH le | B39: à | C39: =A9 -> Club Leopard
G40: SI forfait éq recevante
A41: Equipes | B41: score | C41: Equipes | D41: score | E41: Points | F41: Points
A42: =A6 -> Club Iguane | B42: 20 | C42: =A9 -> Club Leopard | D42: =IF(G42=19,19,IF(ISBLANK(B42),"",IF(B42=19,0,36-B42))) -> 16 | E42: =IF(G42=19,0,IF(ISBLANK(B42),"",IF(B42<18,1,IF(B42=18,2,IF(B42>18,3))))) -> 3 | F42: =IF(G42=19,3,IF(ISBLANK(B42),"",IF(B42=19,0,IF(D42<18,1,IF(D42=18,2,IF(D42>=20,3)))))) -> 1 | L42: =IF(B42>D42,A42&C42,IF(D42>B42,C42&A42,"/")) -> Club IguaneClub Leopard | N42: =A42&C42 -> Club IguaneClub Leopard | O42: =E42 -> 3 | P42: =C42&A42 -> Club LeopardClub Iguane | Q42: =F42 -> 1 | R42: =B42 -> 20 | S42: =D42 -> 16
A43: =A11 -> Club Narval | B43: 22 | C43: =A12 -> Club Otarie | D43: =IF(G43=19,19,IF(ISBLANK(B43),"",IF(B43=19,0,36-B43))) -> 14 | E43: =IF(G43=19,0,IF(ISBLANK(B43),"",IF(B43<18,1,IF(B43=18,2,IF(B43>18,3))))) -> 3 | F43: =IF(G43=19,3,IF(ISBLANK(B43),"",IF(B43=19,0,IF(D43<18,1,IF(D43=18,2,IF(D43>=20,3)))))) -> 1 | L43: =IF(B43>D43,A43&C43,IF(D43>B43,C43&A43,"/")) -> Club NarvalClub Otarie | N43: =A43&C43 -> Club NarvalClub Otarie | O43: =E43 -> 3 | P43: =C43&A43 -> Club OtarieClub Narval | Q43: =F43 -> 1 | R43: =B43 -> 22 | S43: =D43 -> 14
A44: =A7 -> Club Jaguar | B44: 24 | C44: =A8 -> Club Koala | D44: =IF(G44=19,19,IF(ISBLANK(B44),"",IF(B44=19,0,36-B44))) -> 12 | E44: =IF(G44=19,0,IF(ISBLANK(B44),"",IF(B44<18,1,IF(B44=18,2,IF(B44>18,3))))) -> 3 | F44: =IF(G44=19,3,IF(ISBLANK(B44),"",IF(B44=19,0,IF(D44<18,1,IF(D44=18,2,IF(D44>=20,3)))))) -> 1 | L44: =IF(B44>D44,A44&C44,IF(D44>B44,C44&A44,"/")) -> Club JaguarClub Koala | N44: =A44&C44 -> Club JaguarClub Koala | O44: =E44 -> 3 | P44: =C44&A44 -> Club KoalaClub Jaguar | Q44: =F44 -> 1 | R44: =B44 -> 24 | S44: =D44 -> 12
A45: =A10 -> Club Marsouin | B45: 26 | C45: =A13 -> Club Panthere | D45: =IF(G45=19,19,IF(ISBLANK(B45),"",IF(B45=19,0,36-B45))) -> 10 | E45: =IF(G45=19,0,IF(ISBLANK(B45),"",IF(B45<18,1,IF(B45=18,2,IF(B45>18,3))))) -> 3 | F45: =IF(G45=19,3,IF(ISBLANK(B45),"",IF(B45=19,0,IF(D45<18,1,IF(D45=18,2,IF(D45>=20,3)))))) -> 1 | L45: =IF(B45>D45,A45&C45,IF(D45>B45,C45&A45,"/")) -> Club MarsouinClub Panthere | N45: =A45&C45 -> Club MarsouinClub Panthere | O45: =E45 -> 3 | P45: =C45&A45 -> Club PanthereClub Marsouin | Q45: =F45 -> 1 | R45: =B45 -> 26 | S45: =D45 -> 10
A47: 5 éme MATCH le | B47: à | C47: =A10 -> Club Marsouin
G48: SI forfait éq recevante
A49: Equipes | B49: score | C49: Equipes | D49: score | E49: Points | F49: Points
A50: =A6 -> Club Iguane | B50: 4 | C50: =A11 -> Club Narval | D50: =IF(G50=19,19,IF(ISBLANK(B50),"",IF(B50=19,0,36-B50))) -> 32 | E50: =IF(G50=19,0,IF(ISBLANK(B50),"",IF(B50<18,1,IF(B50=18,2,IF(B50>18,3))))) -> 1 | F50: =IF(G50=19,3,IF(ISBLANK(B50),"",IF(B50=19,0,IF(D50<18,1,IF(D50=18,2,IF(D50>=20,3)))))) -> 3 | L50: =IF(B50>D50,A50&C50,IF(D50>B50,C50&A50,"/")) -> Club NarvalClub Iguane | N50: =A50&C50 -> Club IguaneClub Narval | O50: =E50 -> 1 | P50: =C50&A50 -> Club NarvalClub Iguane | Q50: =F50 -> 3 | R50: =B50 -> 4 | S50: =D50 -> 32
A51: =A9 -> Club Leopard | B51: 6 | C51: =A13 -> Club Panthere | D51: =IF(G51=19,19,IF(ISBLANK(B51),"",IF(B51=19,0,36-B51))) -> 30 | E51: =IF(G51=19,0,IF(ISBLANK(B51),"",IF(B51<18,1,IF(B51=18,2,IF(B51>18,3))))) -> 1 | F51: =IF(G51=19,3,IF(ISBLANK(B51),"",IF(B51=19,0,IF(D51<18,1,IF(D51=18,2,IF(D51>=20,3)))))) -> 3 | L51: =IF(B51>D51,A51&C51,IF(D51>B51,C51&A51,"/")) -> Club PanthereClub Leopard | N51: =A51&C51 -> Club LeopardClub Panthere | O51: =E51 -> 1 | P51: =C51&A51 -> Club PanthereClub Leopard | Q51: =F51 -> 3 | R51: =B51 -> 6 | S51: =D51 -> 30
A52: =A7 -> Club Jaguar | B52: 10 | C52: =A12 -> Club Otarie | D52: =IF(G52=19,19,IF(ISBLANK(B52),"",IF(B52=19,0,36-B52))) -> 26 | E52: =IF(G52=19,0,IF(ISBLANK(B52),"",IF(B52<18,1,IF(B52=18,2,IF(B52>18,3))))) -> 1 | F52: =IF(G52=19,3,IF(ISBLANK(B52),"",IF(B52=19,0,IF(D52<18,1,IF(D52=18,2,IF(D52>=20,3)))))) -> 3 | L52: =IF(B52>D52,A52&C52,IF(D52>B52,C52&A52,"/")) -> Club OtarieClub Jaguar | N52: =A52&C52 -> Club JaguarClub Otarie | O52: =E52 -> 1 | P52: =C52&A52 -> Club OtarieClub Jaguar | Q52: =F52 -> 3 | R52: =B52 -> 10 | S52: =D52 -> 26
A53: =A8 -> Club Koala | B53: 14 | C53: =A10 -> Club Marsouin | D53: =IF(G53=19,19,IF(ISBLANK(B53),"",IF(B53=19,0,36-B53))) -> 22 | E53: =IF(G53=19,0,IF(ISBLANK(B53),"",IF(B53<18,1,IF(B53=18,2,IF(B53>18,3))))) -> 1 | F53: =IF(G53=19,3,IF(ISBLANK(B53),"",IF(B53=19,0,IF(D53<18,1,IF(D53=18,2,IF(D53>=20,3)))))) -> 3 | L53: =IF(B53>D53,A53&C53,IF(D53>B53,C53&A53,"/")) -> Club MarsouinClub Koala | N53: =A53&C53 -> Club KoalaClub Marsouin | O53: =E53 -> 1 | P53: =C53&A53 -> Club MarsouinClub Koala | Q53: =F53 -> 3 | R53: =B53 -> 14 | S53: =D53 -> 22
A55: 6 éme MATCH le | B55: à | C55: =A11 -> Club Narval
G56: SI forfait éq recevante
A57: Equipes | B57: score | C57: Equipes | D57: score | E57: Points | F57: Points
A58: =A7 -> Club Jaguar | B58: 25 | C58: =A9 -> Club Leopard | D58: =IF(G58=19,19,IF(ISBLANK(B58),"",IF(B58=19,0,36-B58))) -> 11 | E58: =IF(G58=19,0,IF(ISBLANK(B58),"",IF(B58<18,1,IF(B58=18,2,IF(B58>18,3))))) -> 3 | F58: =IF(G58=19,3,IF(ISBLANK(B58),"",IF(B58=19,0,IF(D58<18,1,IF(D58=18,2,IF(D58>=20,3)))))) -> 1 | L58: =IF(B58>D58,A58&C58,IF(D58>B58,C58&A58,"/")) -> Club JaguarClub Leopard | N58: =A58&C58 -> Club JaguarClub Leopard | O58: =E58 -> 3 | P58: =C58&A58 -> Club LeopardClub Jaguar | Q58: =F58 -> 1 | R58: =B58 -> 25 | S58: =D58 -> 11
A59: =A10 -> Club Marsouin | B59: 26 | C59: =A6 -> Club Iguane | D59: =IF(G59=19,19,IF(ISBLANK(B59),"",IF(B59=19,0,36-B59))) -> 10 | E59: =IF(G59=19,0,IF(ISBLANK(B59),"",IF(B59<18,1,IF(B59=18,2,IF(B59>18,3))))) -> 3 | F59: =IF(G59=19,3,IF(ISBLANK(B59),"",IF(B59=19,0,IF(D59<18,1,IF(D59=18,2,IF(D59>=20,3)))))) -> 1 | L59: =IF(B59>D59,A59&C59,IF(D59>B59,C59&A59,"/")) -> Club MarsouinClub Iguane | N59: =A59&C59 -> Club MarsouinClub Iguane | O59: =E59 -> 3 | P59: =C59&A59 -> Club IguaneClub Marsouin | Q59: =F59 -> 1 | R59: =B59 -> 26 | S59: =D59 -> 10
A60: =A12 -> Club Otarie | B60: 27 | C60: =A8 -> Club Koala | D60: =IF(G60=19,19,IF(ISBLANK(B60),"",IF(B60=19,0,36-B60))) -> 9 | E60: =IF(G60=19,0,IF(ISBLANK(B60),"",IF(B60<18,1,IF(B60=18,2,IF(B60>18,3))))) -> 3 | F60: =IF(G60=19,3,IF(ISBLANK(B60),"",IF(B60=19,0,IF(D60<18,1,IF(D60=18,2,IF(D60>=20,3)))))) -> 1 | L60: =IF(B60>D60,A60&C60,IF(D60>B60,C60&A60,"/")) -> Club OtarieClub Koala | N60: =A60&C60 -> Club OtarieClub Koala | O60: =E60 -> 3 | P60: =C60&A60 -> Club KoalaClub Otarie | Q60: =F60 -> 1 | R60: =B60 -> 27 | S60: =D60 -> 9
A61: =A11 -> Club Narval | B61: 28 | C61: =A13 -> Club Panthere | D61: =IF(G61=19,19,IF(ISBLANK(B61),"",IF(B61=19,0,36-B61))) -> 8 | E61: =IF(G61=19,0,IF(ISBLANK(B61),"",IF(B61<18,1,IF(B61=18,2,IF(B61>18,3))))) -> 3 | F61: =IF(G61=19,3,IF(ISBLANK(B61),"",IF(B61=19,0,IF(D61<18,1,IF(D61=18,2,IF(D61>=20,3)))))) -> 1 | L61: =IF(B61>D61,A61&C61,IF(D61>B61,C61&A61,"/")) -> Club NarvalClub Panthere | N61: =A61&C61 -> Club NarvalClub Panthere | O61: =E61 -> 3 | P61: =C61&A61 -> Club PanthereClub Narval | Q61: =F61 -> 1 | R61: =B61 -> 28 | S61: =D61 -> 8
A63: 7 éme MATCH le | B63: à | C63: =A12 -> Club Otarie
G64: SI forfait éq recevante
A65: Equipes | B65: score | C65: Equipes | D65: score | E65: Points | F65: Points
A66: =A6 -> Club Iguane | B66: 10 | C66: =A12 -> Club Otarie | D66: =IF(G66=19,19,IF(ISBLANK(B66),"",IF(B66=19,0,36-B66))) -> 26 | E66: =IF(G66=19,0,IF(ISBLANK(B66),"",IF(B66<18,1,IF(B66=18,2,IF(B66>18,3))))) -> 1 | F66: =IF(G66=19,3,IF(ISBLANK(B66),"",IF(B66=19,0,IF(D66<18,1,IF(D66=18,2,IF(D66>=20,3)))))) -> 3 | L66: =IF(B66>D66,A66&C66,IF(D66>B66,C66&A66,"/")) -> Club OtarieClub Iguane | N66: =A66&C66 -> Club IguaneClub Otarie | O66: =E66 -> 1 | P66: =C66&A66 -> Club OtarieClub Iguane | Q66: =F66 -> 3 | R66: =B66 -> 10 | S66: =D66 -> 26
A67: =A7 -> Club Jaguar | B67: 24 | C67: =A11 -> Club Narval | D67: =IF(G67=19,19,IF(ISBLANK(B67),"",IF(B67=19,0,36-B67))) -> 12 | E67: =IF(G67=19,0,IF(ISBLANK(B67),"",IF(B67<18,1,IF(B67=18,2,IF(B67>18,3))))) -> 3 | F67: =IF(G67=19,3,IF(ISBLANK(B67),"",IF(B67=19,0,IF(D67<18,1,IF(D67=18,2,IF(D67>=20,3)))))) -> 1 | L67: =IF(B67>D67,A67&C67,IF(D67>B67,C67&A67,"/")) -> Club JaguarClub Narval | N67: =A67&C67 -> Club JaguarClub Narval | O67: =E67 -> 3 | P67: =C67&A67 -> Club NarvalClub Jaguar | Q67: =F67 -> 1 | R67: =B67 -> 24 | S67: =D67 -> 12
A68: =A10 -> Club Marsouin | B68: 32 | C68: =A9 -> Club Leopard | D68: =IF(G68=19,19,IF(ISBLANK(B68),"",IF(B68=19,0,36-B68))) -> 4 | E68: =IF(G68=19,0,IF(ISBLANK(B68),"",IF(B68<18,1,IF(B68=18,2,IF(B68>18,3))))) -> 3 | F68: =IF(G68=19,3,IF(ISBLANK(B68),"",IF(B68=19,0,IF(D68<18,1,IF(D68=18,2,IF(D68>=20,3)))))) -> 1 | L68: =IF(B68>D68,A68&C68,IF(D68>B68,C68&A68,"/")) -> Club MarsouinClub Leopard | N68: =A68&C68 -> Club MarsouinClub Leopard | O68: =E68 -> 3 | P68: =C68&A68 -> Club LeopardClub Marsouin | Q68: =F68 -> 1 | R68: =B68 -> 32 | S68: =D68 -> 4
A69: =A8 -> Club Koala | B69: 31 | C69: =A13 -> Club Panthere | D69: =IF(G69=19,19,IF(ISBLANK(B69),"",IF(B69=19,0,36-B69))) -> 5 | E69: =IF(G69=19,0,IF(ISBLANK(B69),"",IF(B69<18,1,IF(B69=18,2,IF(B69>18,3))))) -> 3 | F69: =IF(G69=19,3,IF(ISBLANK(B69),"",IF(B69=19,0,IF(D69<18,1,IF(D69=18,2,IF(D69>=20,3)))))) -> 1 | L69: =IF(B69>D69,A69&C69,IF(D69>B69,C69&A69,"/")) -> Club KoalaClub Panthere | N69: =A69&C69 -> Club KoalaClub Panthere | O69: =E69 -> 3 | P69: =C69&A69 -> Club PanthereClub Koala | Q69: =F69 -> 1 | R69: =B69 -> 31 | S69: =D69 -> 5
C70: CLASSEMENT | G70: Classt Final | H70: Rencontres entre exaequos
A71: EQUIPES | C71: POINTS | D71: POUR | E71: CONTRE | F71: DIFF | H71: POINTS Exaequos | I71: Exaq | J71: n° | K71: =A6 -> Club Iguane | L71: =A7 -> Club Jaguar | M71: =A8 -> Club Koala | N71: =A9 -> Club Leopard | O71: =A10 -> Club Marsouin | P71: =A11 -> Club Narval | Q71: =A12 -> Club Otarie | R71: =A13 -> Club Panthere | S71: Pts matchs | W71: 1000000*Pts matchs +1000 (Diff + abs(diff mini) )+Pour | X71: RANG | Y71: DIFF Exaequos | Z71: POUR Exaequos
A72: Club Marsouin | B72: 1E | C72: 19 | D72: 172 | E72: 80 | F72: 92 | G72: 1 | H72: =IF(S72>0,S72,"") ->  | I72: =COUNTIF($C$72:$C$79,C72) -> 1 | J72: =IF(AND(I72>1,COUNTIFS(I$72:I72,I72,C$72:C72,C72)=1),MAX(J$71:J71)+1,"") ->  | K72: =IF($A72=K$71,"",IF(INDEX($C$72:$C$79,MATCH(K$71,$A$72:$A$79,0))=$C72,IFERROR(VLOOKUP($A72&K$71,$N$18:$O$69,2,0), VLOOKUP(K$71&$A72,$N$18:$Q$69,4,0)), "")) ->  | S72: =SUM(K72:R72) -> 0 | W72: =IF(I72<3,S72*1000000+(F72+ABS(MIN($F$72:$F$79)))*1000+D72,S72*1000000+U96*1000+Z72) -> 170172 | X72: =IF(I72>2,RANK(W72,OFFSET(W$71,MATCH(I72,$I$72:$I$79,0),,I72))) -> FALSE | Y72: =IF(S96=0,"",S96) ->  | Z72: =IF(S80=0,"",S80) -> 
A73: Club Jaguar | B73: 1B | C73: 17 | D73: 135 | E73: 117 | F73: 18 | G73: 2 | H73: =IF(S73>0,S73,"") ->  | I73: 1 | J73: =IF(AND(I73>1,COUNTIFS(I$72:I73,I73,C$72:C73,C73)=1),MAX(J$71:J72)+1,"") ->  | S73: =SUM(K73:R73) -> 0 | W73: =IF(I73<3,S73*1000000+(F73+ABS(MIN($F$72:$F$79)))*1000+D73,S73*1000000+U97*1000+Z73) -> 96135 | X73: =IF(I73>2,RANK(W73,OFFSET(W$71,MATCH(I73,$I$72:$I$79,0),,I73))) -> FALSE
A74: Club Otarie | B74: 1G | C74: 15 | D74: 134 | E74: 118 | F74: 16 | G74: 3 | H74: =IF(S74>0,S74,"") -> 3 | I74: 2 | J74: =IF(AND(I74>1,COUNTIFS(I$72:I74,I74,C$72:C74,C74)=1),MAX(J$71:J73)+1,"") -> 1 | M74: 3 | S74: 3 | W74: 3094134 | X74: FALSE | Y74: 18 | Z74: 27
A75: Club Koala | B75: 1C | C75: 15 | D75: 144 | E75: 108 | F75: 36 | G75: 4 | H75: =IF(S75>0,S75,"") -> 1 | I75: 2 | J75: =IF(AND(I75>1,COUNTIFS(I$72:I75,I75,C$72:C75,C75)=1),MAX(J$71:J74)+1,"") ->  | Q75: 1 | S75: 1 | W75: 1114144 | X75: FALSE | Y75: -18 | Z75: 9
A76: Club Narval | B76: 1F | C76: 13 | D76: 122 | E76: 130 | F76: -8 | G76: 5 | H76: =IF(S76>0,S76,"") -> 3 | I76: 2 | J76: =IF(AND(I76>1,COUNTIFS(I$72:I76,I76,C$72:C76,C76)=1),MAX(J$71:J75)+1,"") -> 2 | K76: 3 | S76: 3 | W76: 3070122 | X76: FALSE | Y76: 28 | Z76: 32
A77: Club Iguane | B77: 1A | C77: 13 | D77: 120 | E77: 132 | F77: -12 | G77: 6 | H77: =IF(S77>0,S77,"") -> 1 | I77: 2 | J77: =IF(AND(I77>1,COUNTIFS(I$72:I77,I77,C$72:C77,C77)=1),MAX(J$71:J76)+1,"") ->  | P77: 1 | S77: 1 | W77: 1066120 | X77: FALSE | Y77: -28 | Z77: 4
A78: Club Leopard | B78: 1D | C78: 11 | D78: 94 | E78: 158 | F78: -64 | G78: 7 | H78: =IF(S78>0,S78,"") ->  | I78: 1 | J78: =IF(AND(I78>1,COUNTIFS(I$72:I78,I78,C$72:C78,C78)=1),MAX(J$71:J77)+1,"") ->  | S78: 0 | W78: 14094 | X78: FALSE
A79: Club Panthere | B79: 1H | C79: 9 | D79: 87 | E79: 165 | F79: -78 | G79: 8 | H79: =IF(S79>0,S79,"") ->  | I79: 1 | J79: =IF(AND(I79>1,COUNTIFS(I$72:I79,I79,C$72:C79,C79)=1),MAX(J$71:J78)+1,"") ->  | S79: 0 | W79: 87 | X79: FALSE
I80: POUR | J80: =A72 -> Club Marsouin | K80: =IF($A72=K$71,"",IF(INDEX($C$72:$C$79,MATCH(K$71,$A$72:$A$79,0))=$C72,IFERROR(VLOOKUP($A72&K$71,$N$18:$R$69,5,0), VLOOKUP(K$71&$A72,$N$18:$S$69,6,0)), "")) ->  | S80: 0
J81: Club Jaguar | S81: 0
J82: Club Otarie | M82: 27 | S82: 27
J83: Club Koala | Q83: 9 | S83: 9
J84: Club Narval | K84: 32 | S84: 32
J85: Club Iguane | P85: 4 | S85: 4
J86: Club Leopard | S86: 0
J87: Club Panthere | S87: 0
I88: CONTRE | J88: =J80 -> Club Marsouin | K88: =INDEX($K$80:$R$87,MATCH(K$71,$J$80:$J$87,0),MATCH($J80,$K$71:$R$71,0)) ->  | L88: =INDEX($K$80:$R$87,MATCH(L$71,$J$80:$J$87,0),MATCH($J80,$K$71:$R$71,0)) ->  | S88: 0
J89: =J81 -> Club Jaguar | K89: =INDEX($K$80:$R$87,MATCH(K$71,$J$80:$J$87,0),MATCH($J81,$K$71:$R$71,0)) ->  | S89: 0
J90: Club Otarie | M90: 9 | S90: 9
J91: Club Koala | Q91: 27 | S91: 27
J92: Club Narval | K92: 4 | S92: 4
J93: Club Iguane | P93: 32 | S93: 32
J94: Club Leopard | S94: 0
J95: Club Panthere | S95: 0 | U95: Diff pondérée
I96: DIFF | J96: =J88 -> Club Marsouin | S96: =S80-S88 -> 0 | U96: =S96+ABS(MIN($S$96:$S$103)) -> 28
J97: =J89 -> Club Jaguar | S97: =S81-S89 -> 0 | U97: 28
J98: Club Otarie | S98: 18 | U98: 46
J99: Club Koala | S99: -18 | U99: 10
J100: Club Narval | S100: 28 | U100: 56
J101: Club Iguane | S101: -28 | U101: 0
J102: Club Leopard | S102: 0 | U102: =S102+ABS(MIN($S$96:$S$103)) -> 28
J103: Club Panthere | S103: 0 | U103: =S103+ABS(MIN($S$96:$S$103)) -> 28

Sheet P3
G1: 3
A2: CHAMPIONNAT DES CLUBS
A4: POULE 3
A5: EQUIPES | C5: POINTS | D5: Pour | E5: Contre | F5: Diff
A6: AA | B6: 1A | C6: =SUMIF($A$18:$A$69,A6,$E$18:$E$69)+SUMIF($C$18:$C$69,A6,$F$18:$F$69) -> 0 | D6: =SUMIF($A$18:$A$69,$A6,$B$18:$B$69)+SUMIF($C$18:$C$69,$A6,$D$18:$D$69) -> 0 | E6: =SUMIF($C$18:$C$69,$A6,$B$18:$B$69)+SUMIF($A$18:$A$69,$A6,$D$18:$D$69) -> 0 | F6: =D6-E6 -> 0
A7: AB | B7: 1B | C7: =SUMIF($A$18:$A$69,A7,$E$18:$E$69)+SUMIF($C$18:$C$69,A7,$F$18:$F$69) -> 0 | D7: =SUMIF($A$18:$A$69,$A7,$B$18:$B$69)+SUMIF($C$18:$C$69,$A7,$D$18:$D$69) -> 0 | E7: =SUMIF($C$18:$C$69,$A7,$B$18:$B$69)+SUMIF($A$18:$A$69,$A7,$D$18:$D$69) -> 0 | F7: 0
A8: AC | B8: 1C | C8: =SUMIF($A$18:$A$69,A8,$E$18:$E$69)+SUMIF($C$18:$C$69,A8,$F$18:$F$69) -> 0 | D8: 0 | E8: 0 | F8: 0
A9: AD | B9: 1D | C9: 0 | D9: 0 | E9: 0 | F9: 0
A10: AE | B10: 1E | C10: 0 | D10: 0 | E10: 0 | F10: 0
A11: AF | B11: 1F | C11: 0 | D11: 0 | E11: 0 | F11: 0
A12: AG | B12: 1G | C12: 0 | D12: 0 | E12: 0 | F12: =D12-E12 -> 0
A13: AH | B13: 1H | C13: 0 | D13: =SUMIF($A$18:$A$69,$A13,$B$18:$B$69)+SUMIF($C$18:$C$69,$A13,$D$18:$D$69) -> 0 | E13: 0 | F13: =D13-E13 -> 0
A15: 1er MATCH le | B15: à | C15: =A6 -> AA
G16: SI forfait éq recevante
A17: Equipes | B17: score | C17: Equipes | D17: score | E17: Points | F17: Points
A18: =A6 -> AA | C18: =A7 -> AB | D18: =IF(G18=19,19,IF(ISBLANK(B18),"",IF(B18=19,0,36-B18))) ->  | E18: =IF(G18=19,0,IF(ISBLANK(B18),"",IF(B18<18,1,IF(B18=18,2,IF(B18>18,3))))) ->  | F18: =IF(G18=19,3,IF(ISBLANK(B18),"",IF(B18=19,0,IF(D18<18,1,IF(D18=18,2,IF(D18>=20,3)))))) ->  | L18: =IF(B18>D18,A18&C18,IF(D18>B18,C18&A18,"/")) -> / | N18: =A18&C18 -> AAAB | O18: =E18 ->  | P18: =C18&A18 -> ABAA | Q18: =F18 ->  | R18: =B18 -> 0 | S18: =D18 -> 
A19: =A8 -> AC | C19: =A9 -> AD | D19: =IF(G19=19,19,IF(ISBLANK(B19),"",IF(B19=19,0,36-B19))) ->  | E19: =IF(G19=19,0,IF(ISBLANK(B19),"",IF(B19<18,1,IF(B19=18,2,IF(B19>18,3))))) ->  | F19: =IF(G19=19,3,IF(ISBLANK(B19),"",IF(B19=19,0,IF(D19<18,1,IF(D19=18,2,IF(D19>=20,3)))))) ->  | L19: =IF(B19>D19,A19&C19,IF(D19>B19,C19&A19,"/")) -> / | N19: =A19&C19 -> ACAD | O19: =E19 ->  | P19: =C19&A19 -> ADAC | Q19: =F19 ->  | R19: =B19 -> 0 | S19: =D19 -> 
A20: =A10 -> AE | C20: =A11 -> AF | D20: =IF(G20=19,19,IF(ISBLANK(B20),"",IF(B20=19,0,36-B20))) ->  | E20: =IF(G20=19,0,IF(ISBLANK(B20),"",IF(B20<18,1,IF(B20=18,2,IF(B20>18,3))))) ->  | F20: =IF(G20=19,3,IF(ISBLANK(B20),"",IF(B20=19,0,IF(D20<18,1,IF(D20=18,2,IF(D20>=20,3)))))) ->  | L20: =IF(B20>D20,A20&C20,IF(D20>B20,C20&A20,"/")) -> / | N20: =A20&C20 -> AEAF | O20: =E20 ->  | P20: =C20&A20 -> AFAE | Q20: =F20 ->  | R20: =B20 -> 0 | S20: =D20 -> 
A21: =A12 -> AG | C21: =A13 -> AH | D21: =IF(G21=19,19,IF(ISBLANK(B21),"",IF(B21=19,0,36-B21))) ->  | E21: =IF(G21=19,0,IF(ISBLANK(B21),"",IF(B21<18,1,IF(B21=18,2,IF(B21>18,3))))) ->  | F21: =IF(G21=19,3,IF(ISBLANK(B21),"",IF(B21=19,0,IF(D21<18,1,IF(D21=18,2,IF(D21>=20,3)))))) ->  | L21: =IF(B21>D21,A21&C21,IF(D21>B21,C21&A21,"/")) -> / | N21: =A21&C21 -> AGAH | O21: =E21 ->  | P21: =C21&A21 -> AHAG | Q21: =F21 ->  | R21: =B21 -> 0 | S21: =D21 -> 
A23: 2 éme MATCH le | B23: à | C23: =A7 -> AB
G24: SI forfait éq recevante
A25: Equipes | B25: score | C25: Equipes | D25: score | E25: Points | F25: Points
A26: =A6 -> AA | C26: =A8 -> AC | D26: =IF(G26=19,19,IF(ISBLANK(B26),"",IF(B26=19,0,36-B26))) ->  | E26: =IF(G26=19,0,IF(ISBLANK(B26),"",IF(B26<18,1,IF(B26=18,2,IF(B26>18,3))))) ->  | F26: =IF(G26=19,3,IF(ISBLANK(B26),"",IF(B26=19,0,IF(D26<18,1,IF(D26=18,2,IF(D26>=20,3)))))) ->  | L26: =IF(B26>D26,A26&C26,IF(D26>B26,C26&A26,"/")) -> / | N26: =A26&C26 -> AAAC | O26: =E26 ->  | P26: =C26&A26 -> ACAA | Q26: =F26 ->  | R26: =B26 -> 0 | S26: =D26 -> 
A27: =A7 -> AB | C27: =A13 -> AH | D27: =IF(G27=19,19,IF(ISBLANK(B27),"",IF(B27=19,0,36-B27))) ->  | E27: =IF(G27=19,0,IF(ISBLANK(B27),"",IF(B27<18,1,IF(B27=18,2,IF(B27>18,3))))) ->  | F27: =IF(G27=19,3,IF(ISBLANK(B27),"",IF(B27=19,0,IF(D27<18,1,IF(D27=18,2,IF(D27>=20,3)))))) ->  | L27: =IF(B27>D27,A27&C27,IF(D27>B27,C27&A27,"/")) -> / | N27: =A27&C27 -> ABAH | O27: =E27 ->  | P27: =C27&A27 -> AHAB | Q27: =F27 ->  | R27: =B27 -> 0 | S27: =D27 -> 
A28: =A9 -> AD | C28: =A11 -> AF | D28: =IF(G28=19,19,IF(ISBLANK(B28),"",IF(B28=19,0,36-B28))) ->  | E28: =IF(G28=19,0,IF(ISBLANK(B28),"",IF(B28<18,1,IF(B28=18,2,IF(B28>18,3))))) ->  | F28: =IF(G28=19,3,IF(ISBLANK(B28),"",IF(B28=19,0,IF(D28<18,1,IF(D28=18,2,IF(D28>=20,3)))))) ->  | L28: =IF(B28>D28,A28&C28,IF(D28>B28,C28&A28,"/")) -> / | N28: =A28&C28 -> ADAF | O28: =E28 ->  | P28: =C28&A28 -> AFAD | Q28: =F28 ->  | R28: =B28 -> 0 | S28: =D28 -> 
A29: =A10 -> AE | C29: =A12 -> AG | D29: =IF(G29=19,19,IF(ISBLANK(B29),"",IF(B29=19,0,36-B29))) ->  | E29: =IF(G29=19,0,IF(ISBLANK(B29),"",IF(B29<18,1,IF(B29=18,2,IF(B29>18,3))))) ->  | F29: =IF(G29=19,3,IF(ISBLANK(B29),"",IF(B29=19,0,IF(D29<18,1,IF(D29=18,2,IF(D29>=20,3)))))) ->  | L29: =IF(B29>D29,A29&C29,IF(D29>B29,C29&A29,"/")) -> / | N29: =A29&C29 -> AEAG | O29: =E29 ->  | P29: =C29&A29 -> AGAE | Q29: =F29 ->  | R29: =B29 -> 0 | S29: =D29 -> 
A31: 3 éme MATCH le | B31: à | C31: =A8 -> AC
G32: SI forfait éq recevante
A33: Equipes | B33: score | C33: Equipes | D33: score | E33: Points | F33: Points
A34: =A6 -> AA | C34: =A13 -> AH | D34: =IF(G34=19,19,IF(ISBLANK(B34),"",IF(B34=19,0,36-B34))) ->  | E34: =IF(G34=19,0,IF(ISBLANK(B34),"",IF(B34<18,1,IF(B34=18,2,IF(B34>18,3))))) ->  | F34: =IF(G34=19,3,IF(ISBLANK(B34),"",IF(B34=19,0,IF(D34<18,1,IF(D34=18,2,IF(D34>=20,3)))))) ->  | L34: =IF(B34>D34,A34&C34,IF(D34>B34,C34&A34,"/")) -> / | N34: =A34&C34 -> AAAH | O34: =E34 ->  | P34: =C34&A34 -> AHAA | Q34: =F34 ->  | R34: =B34 -> 0 | S34: =D34 -> 
A35: =A7 -> AB | C35: =A10 -> AE | D35: =IF(G35=19,19,IF(ISBLANK(B35),"",IF(B35=19,0,36-B35))) ->  | E35: =IF(G35=19,0,IF(ISBLANK(B35),"",IF(B35<18,1,IF(B35=18,2,IF(B35>18,3))))) ->  | F35: =IF(G35=19,3,IF(ISBLANK(B35),"",IF(B35=19,0,IF(D35<18,1,IF(D35=18,2,IF(D35>=20,3)))))) ->  | L35: =IF(B35>D35,A35&C35,IF(D35>B35,C35&A35,"/")) -> / | N35: =A35&C35 -> ABAE | O35: =E35 ->  | P35: =C35&A35 -> AEAB | Q35: =F35 ->  | R35: =B35 -> 0 | S35: =D35 -> 
A36: =A8 -> AC | C36: =A11 -> AF | D36: =IF(G36=19,19,IF(ISBLANK(B36),"",IF(B36=19,0,36-B36))) ->  | E36: =IF(G36=19,0,IF(ISBLANK(B36),"",IF(B36<18,1,IF(B36=18,2,IF(B36>18,3))))) ->  | F36: =IF(G36=19,3,IF(ISBLANK(B36),"",IF(B36=19,0,IF(D36<18,1,IF(D36=18,2,IF(D36>=20,3)))))) ->  | L36: =IF(B36>D36,A36&C36,IF(D36>B36,C36&A36,"/")) -> / | N36: =A36&C36 -> ACAF | O36: =E36 ->  | P36: =C36&A36 -> AFAC | Q36: =F36 ->  | R36: =B36 -> 0 | S36: =D36 -> 
A37: =A9 -> AD | C37: =A12 -> AG | D37: =IF(G37=19,19,IF(ISBLANK(B37),"",IF(B37=19,0,36-B37))) ->  | E37: =IF(G37=19,0,IF(ISBLANK(B37),"",IF(B37<18,1,IF(B37=18,2,IF(B37>18,3))))) ->  | F37: =IF(G37=19,3,IF(ISBLANK(B37),"",IF(B37=19,0,IF(D37<18,1,IF(D37=18,2,IF(D37>=20,3)))))) ->  | L37: =IF(B37>D37,A37&C37,IF(D37>B37,C37&A37,"/")) -> / | N37: =A37&C37 -> ADAG | O37: =E37 ->  | P37: =C37&A37 -> AGAD | Q37: =F37 ->  | R37: =B37 -> 0 | S37: =D37 -> 
A39: 4 éme MATCH le | B39: à | C39: =A9 -> AD
G40: SI forfait éq recevante
A41: Equipes | B41: score | C41: Equipes | D41: score | E41: Points | F41: Points
A42: =A6 -> AA | C42: =A9 -> AD | D42: =IF(G42=19,19,IF(ISBLANK(B42),"",IF(B42=19,0,36-B42))) ->  | E42: =IF(G42=19,0,IF(ISBLANK(B42),"",IF(B42<18,1,IF(B42=18,2,IF(B42>18,3))))) ->  | F42: =IF(G42=19,3,IF(ISBLANK(B42),"",IF(B42=19,0,IF(D42<18,1,IF(D42=18,2,IF(D42>=20,3)))))) ->  | L42: =IF(B42>D42,A42&C42,IF(D42>B42,C42&A42,"/")) -> / | N42: =A42&C42 -> AAAD | O42: =E42 ->  | P42: =C42&A42 -> ADAA | Q42: =F42 ->  | R42: =B42 -> 0 | S42: =D42 -> 
A43: =A11 -> AF | C43: =A12 -> AG | D43: =IF(G43=19,19,IF(ISBLANK(B43),"",IF(B43=19,0,36-B43))) ->  | E43: =IF(G43=19,0,IF(ISBLANK(B43),"",IF(B43<18,1,IF(B43=18,2,IF(B43>18,3))))) ->  | F43: =IF(G43=19,3,IF(ISBLANK(B43),"",IF(B43=19,0,IF(D43<18,1,IF(D43=18,2,IF(D43>=20,3)))))) ->  | L43: =IF(B43>D43,A43&C43,IF(D43>B43,C43&A43,"/")) -> / | N43: =A43&C43 -> AFAG | O43: =E43 ->  | P43: =C43&A43 -> AGAF | Q43: =F43 ->  | R43: =B43 -> 0 | S43: =D43 -> 
A44: =A7 -> AB | C44: =A8 -> AC | D44: =IF(G44=19,19,IF(ISBLANK(B44),"",IF(B44=19,0,36-B44))) ->  | E44: =IF(G44=19,0,IF(ISBLANK(B44),"",IF(B44<18,1,IF(B44=18,2,IF(B44>18,3))))) ->  | F44: =IF(G44=19,3,IF(ISBLANK(B44),"",IF(B44=19,0,IF(D44<18,1,IF(D44=18,2,IF(D44>=20,3)))))) ->  | L44: =IF(B44>D44,A44&C44,IF(D44>B44,C44&A44,"/")) -> / | N44: =A44&C44 -> ABAC | O44: =E44 ->  | P44: =C44&A44 -> ACAB | Q44: =F44 ->  | R44: =B44 -> 0 | S44: =D44 -> 
A45: =A10 -> AE | C45: =A13 -> AH | D45: =IF(G45=19,19,IF(ISBLANK(B45),"",IF(B45=19,0,36-B45))) ->  | E45: =IF(G45=19,0,IF(ISBLANK(B45),"",IF(B45<18,1,IF(B45=18,2,IF(B45>18,3))))) ->  | F45: =IF(G45=19,3,IF(ISBLANK(B45),"",IF(B45=19,0,IF(D45<18,1,IF(D45=18,2,IF(D45>=20,3)))))) ->  | L45: =IF(B45>D45,A45&C45,IF(D45>B45,C45&A45,"/")) -> / | N45: =A45&C45 -> AEAH | O45: =E45 ->  | P45: =C45&A45 -> AHAE | Q45: =F45 ->  | R45: =B45 -> 0 | S45: =D45 -> 
A47: 5 éme MATCH le | B47: à | C47: =A10 -> AE
G48: SI forfait éq recevante
A49: Equipes | B49: score | C49: Equipes | D49: score | E49: Points | F49: Points
A50: =A6 -> AA | C50: =A11 -> AF | D50: =IF(G50=19,19,IF(ISBLANK(B50),"",IF(B50=19,0,36-B50))) ->  | E50: =IF(G50=19,0,IF(ISBLANK(B50),"",IF(B50<18,1,IF(B50=18,2,IF(B50>18,3))))) ->  | F50: =IF(G50=19,3,IF(ISBLANK(B50),"",IF(B50=19,0,IF(D50<18,1,IF(D50=18,2,IF(D50>=20,3)))))) ->  | L50: =IF(B50>D50,A50&C50,IF(D50>B50,C50&A50,"/")) -> / | N50: =A50&C50 -> AAAF | O50: =E50 ->  | P50: =C50&A50 -> AFAA | Q50: =F50 ->  | R50: =B50 -> 0 | S50: =D50 -> 
A51: =A9 -> AD | C51: =A13 -> AH | D51: =IF(G51=19,19,IF(ISBLANK(B51),"",IF(B51=19,0,36-B51))) ->  | E51: =IF(G51=19,0,IF(ISBLANK(B51),"",IF(B51<18,1,IF(B51=18,2,IF(B51>18,3))))) ->  | F51: =IF(G51=19,3,IF(ISBLANK(B51),"",IF(B51=19,0,IF(D51<18,1,IF(D51=18,2,IF(D51>=20,3)))))) ->  | L51: =IF(B51>D51,A51&C51,IF(D51>B51,C51&A51,"/")) -> / | N51: =A51&C51 -> ADAH | O51: =E51 ->  | P51: =C51&A51 -> AHAD | Q51: =F51 ->  | R51: =B51 -> 0 | S51: =D51 -> 
A52: =A7 -> AB | C52: =A12 -> AG | D52: =IF(G52=19,19,IF(ISBLANK(B52),"",IF(B52=19,0,36-B52))) ->  | E52: =IF(G52=19,0,IF(ISBLANK(B52),"",IF(B52<18,1,IF(B52=18,2,IF(B52>18,3))))) ->  | F52: =IF(G52=19,3,IF(ISBLANK(B52),"",IF(B52=19,0,IF(D52<18,1,IF(D52=18,2,IF(D52>=20,3)))))) ->  | L52: =IF(B52>D52,A52&C52,IF(D52>B52,C52&A52,"/")) -> / | N52: =A52&C52 -> ABAG | O52: =E52 ->  | P52: =C52&A52 -> AGAB | Q52: =F52 ->  | R52: =B52 -> 0 | S52: =D52 -> 
A53: =A8 -> AC | C53: =A10 -> AE | D53: =IF(G53=19,19,IF(ISBLANK(B53),"",IF(B53=19,0,36-B53))) ->  | E53: =IF(G53=19,0,IF(ISBLANK(B53),"",IF(B53<18,1,IF(B53=18,2,IF(B53>18,3))))) ->  | F53: =IF(G53=19,3,IF(ISBLANK(B53),"",IF(B53=19,0,IF(D53<18,1,IF(D53=18,2,IF(D53>=20,3)))))) ->  | L53: =IF(B53>D53,A53&C53,IF(D53>B53,C53&A53,"/")) -> / | N53: =A53&C53 -> ACAE | O53: =E53 ->  | P53: =C53&A53 -> AEAC | Q53: =F53 ->  | R53: =B53 -> 0 | S53: =D53 -> 
A55: 6 éme MATCH le | B55: à | C55: =A11 -> AF
G56: SI forfait éq recevante
A57: Equipes | B57: score | C57: Equipes | D57: score | E57: Points | F57: Points
A58: =A7 -> AB | C58: =A9 -> AD | D58: =IF(G58=19,19,IF(ISBLANK(B58),"",IF(B58=19,0,36-B58))) ->  | E58: =IF(G58=19,0,IF(ISBLANK(B58),"",IF(B58<18,1,IF(B58=18,2,IF(B58>18,3))))) ->  | F58: =IF(G58=19,3,IF(ISBLANK(B58),"",IF(B58=19,0,IF(D58<18,1,IF(D58=18,2,IF(D58>=20,3)))))) ->  | L58: =IF(B58>D58,A58&C58,IF(D58>B58,C58&A58,"/")) -> / | N58: =A58&C58 -> ABAD | O58: =E58 ->  | P58: =C58&A58 -> ADAB | Q58: =F58 ->  | R58: =B58 -> 0 | S58: =D58 -> 
A59: =A10 -> AE | C59: =A6 -> AA | D59: =IF(G59=19,19,IF(ISBLANK(B59),"",IF(B59=19,0,36-B59))) ->  | E59: =IF(G59=19,0,IF(ISBLANK(B59),"",IF(B59<18,1,IF(B59=18,2,IF(B59>18,3))))) ->  | F59: =IF(G59=19,3,IF(ISBLANK(B59),"",IF(B59=19,0,IF(D59<18,1,IF(D59=18,2,IF(D59>=20,3)))))) ->  | L59: =IF(B59>D59,A59&C59,IF(D59>B59,C59&A59,"/")) -> / | N59: =A59&C59 -> AEAA | O59: =E59 ->  | P59: =C59&A59 -> AAAE | Q59: =F59 ->  | R59: =B59 -> 0 | S59: =D59 -> 
A60: =A12 -> AG | C60: =A8 -> AC | D60: =IF(G60=19,19,IF(ISBLANK(B60),"",IF(B60=19,0,36-B60))) ->  | E60: =IF(G60=19,0,IF(ISBLANK(B60),"",IF(B60<18,1,IF(B60=18,2,IF(B60>18,3))))) ->  | F60: =IF(G60=19,3,IF(ISBLANK(B60),"",IF(B60=19,0,IF(D60<18,1,IF(D60=18,2,IF(D60>=20,3)))))) ->  | L60: =IF(B60>D60,A60&C60,IF(D60>B60,C60&A60,"/")) -> / | N60: =A60&C60 -> AGAC | O60: =E60 ->  | P60: =C60&A60 -> ACAG | Q60: =F60 ->  | R60: =B60 -> 0 | S60: =D60 -> 
A61: =A11 -> AF | C61: =A13 -> AH | D61: =IF(G61=19,19,IF(ISBLANK(B61),"",IF(B61=19,0,36-B61))) ->  | E61: =IF(G61=19,0,IF(ISBLANK(B61),"",IF(B61<18,1,IF(B61=18,2,IF(B61>18,3))))) ->  | F61: =IF(G61=19,3,IF(ISBLANK(B61),"",IF(B61=19,0,IF(D61<18,1,IF(D61=18,2,IF(D61>=20,3)))))) ->  | L61: =IF(B61>D61,A61&C61,IF(D61>B61,C61&A61,"/")) -> / | N61: =A61&C61 -> AFAH | O61: =E61 ->  | P61: =C61&A61 -> AHAF | Q61: =F61 ->  | R61: =B61 -> 0 | S61: =D61 -> 
A63: 7 éme MATCH le | B63: à | C63: =A12 -> AG
G64: SI forfait éq recevante
A65: Equipes | B65: score | C65: Equipes | D65: score | E65: Points | F65: Points
A66: =A6 -> AA | C66: =A12 -> AG | D66: =IF(G66=19,19,IF(ISBLANK(B66),"",IF(B66=19,0,36-B66))) ->  | E66: =IF(G66=19,0,IF(ISBLANK(B66),"",IF(B66<18,1,IF(B66=18,2,IF(B66>18,3))))) ->  | F66: =IF(G66=19,3,IF(ISBLANK(B66),"",IF(B66=19,0,IF(D66<18,1,IF(D66=18,2,IF(D66>=20,3)))))) ->  | L66: =IF(B66>D66,A66&C66,IF(D66>B66,C66&A66,"/")) -> / | N66: =A66&C66 -> AAAG | O66: =E66 ->  | P66: =C66&A66 -> AGAA | Q66: =F66 ->  | R66: =B66 -> 0 | S66: =D66 -> 
A67: =A7 -> AB | C67: =A11 -> AF | D67: =IF(G67=19,19,IF(ISBLANK(B67),"",IF(B67=19,0,36-B67))) ->  | E67: =IF(G67=19,0,IF(ISBLANK(B67),"",IF(B67<18,1,IF(B67=18,2,IF(B67>18,3))))) ->  | F67: =IF(G67=19,3,IF(ISBLANK(B67),"",IF(B67=19,0,IF(D67<18,1,IF(D67=18,2,IF(D67>=20,3)))))) ->  | L67: =IF(B67>D67,A67&C67,IF(D67>B67,C67&A67,"/")) -> / | N67: =A67&C67 -> ABAF | O67: =E67 ->  | P67: =C67&A67 -> AFAB | Q67: =F67 ->  | R67: =B67 -> 0 | S67: =D67 -> 
A68: =A10 -> AE | C68: =A9 -> AD | D68: =IF(G68=19,19,IF(ISBLANK(B68),"",IF(B68=19,0,36-B68))) ->  | E68: =IF(G68=19,0,IF(ISBLANK(B68),"",IF(B68<18,1,IF(B68=18,2,IF(B68>18,3))))) ->  | F68: =IF(G68=19,3,IF(ISBLANK(B68),"",IF(B68=19,0,IF(D68<18,1,IF(D68=18,2,IF(D68>=20,3)))))) ->  | L68: =IF(B68>D68,A68&C68,IF(D68>B68,C68&A68,"/")) -> / | N68: =A68&C68 -> AEAD | O68: =E68 ->  | P68: =C68&A68 -> ADAE | Q68: =F68 ->  | R68: =B68 -> 0 | S68: =D68 -> 
A69: =A8 -> AC | C69: =A13 -> AH | D69: =IF(G69=19,19,IF(ISBLANK(B69),"",IF(B69=19,0,36-B69))) ->  | E69: =IF(G69=19,0,IF(ISBLANK(B69),"",IF(B69<18,1,IF(B69=18,2,IF(B69>18,3))))) ->  | F69: =IF(G69=19,3,IF(ISBLANK(B69),"",IF(B69=19,0,IF(D69<18,1,IF(D69=18,2,IF(D69>=20,3)))))) ->  | L69: =IF(B69>D69,A69&C69,IF(D69>B69,C69&A69,"/")) -> / | N69: =A69&C69 -> ACAH | O69: =E69 ->  | P69: =C69&A69 -> AHAC | Q69: =F69 ->  | R69: =B69 -> 0 | S69: =D69 -> 
C70: CLASSEMENT | G70: Classt Final | H70: Rencontres entre exaequos
A71: EQUIPES | C71: POINTS | D71: POUR | E71: CONTRE | F71: DIFF | H71: POINTS Exaequos | I71: Exaq | J71: n° | K71: =A6 -> AA | L71: =A7 -> AB | M71: =A8 -> AC | N71: =A9 -> AD | O71: =A10 -> AE | P71: =A11 -> AF | Q71: =A12 -> AG | R71: =A13 -> AH | S71: Pts matchs | W71: 1000000*Pts matchs +1000 (Diff + abs(diff mini) )+Pour | X71: RANG | Y71: DIFF Exaequos | Z71: POUR Exaequos
B72: 1A | C72: 0 | D72: 0 | E72: 0 | F72: 0 | G72: 1 | H72: =IF(S72>0,S72,"") ->  | I72: =COUNTIF($C$72:$C$79,C72) -> 8 | J72: =IF(AND(I72>1,COUNTIFS(I$72:I72,I72,C$72:C72,C72)=1),MAX(J$71:J71)+1,"") -> 1 | K72: =IF($A72=K$71,"",IF(INDEX($C$72:$C$79,MATCH(K$71,$A$72:$A$79,0))=$C72,IFERROR(VLOOKUP($A72&K$71,$N$18:$O$69,2,0), VLOOKUP(K$71&$A72,$N$18:$Q$69,4,0)), "")) ->  | S72: =SUM(K72:R72) ->  | W72: =IF(I72<3,S72*1000000+(F72+ABS(MIN($F$72:$F$79)))*1000+D72,S72*1000000+U96*1000+Z72) ->  | X72: =IF(I72>2,RANK(W72,OFFSET(W$71,MATCH(I72,$I$72:$I$79,0),,I72))) ->  | Y72: =IF(S96=0,"",S96) ->  | Z72: =IF(S80=0,"",S80) -> 
B73: 1B | C73: 0 | D73: 0 | E73: 0 | F73: 0 | G73: 2 | I73: 8 | J73: =IF(AND(I73>1,COUNTIFS(I$72:I73,I73,C$72:C73,C73)=1),MAX(J$71:J72)+1,"") ->  | S73: =SUM(K73:R73) ->  | W73: =IF(I73<3,S73*1000000+(F73+ABS(MIN($F$72:$F$79)))*1000+D73,S73*1000000+U97*1000+Z73) ->  | X73: =IF(I73>2,RANK(W73,OFFSET(W$71,MATCH(I73,$I$72:$I$79,0),,I73))) -> 
B74: 1C | C74: 0 | D74: 0 | E74: 0 | F74: 0 | G74: 3 | I74: 8 | J74: =IF(AND(I74>1,COUNTIFS(I$72:I74,I74,C$72:C74,C74)=1),MAX(J$71:J73)+1,"") -> 
B75: 1D | C75: 0 | D75: 0 | E75: 0 | F75: 0 | G75: 4 | I75: 8 | J75: =IF(AND(I75>1,COUNTIFS(I$72:I75,I75,C$72:C75,C75)=1),MAX(J$71:J74)+1,"") -> 
B76: 1E | C76: 0 | D76: 0 | E76: 0 | F76: 0 | G76: 5 | I76: 8 | J76: =IF(AND(I76>1,COUNTIFS(I$72:I76,I76,C$72:C76,C76)=1),MAX(J$71:J75)+1,"") -> 
B77: 1F | C77: 0 | D77: 0 | E77: 0 | F77: 0 | G77: 6 | I77: 8 | J77: =IF(AND(I77>1,COUNTIFS(I$72:I77,I77,C$72:C77,C77)=1),MAX(J$71:J76)+1,"") -> 
B78: 1G | C78: 0 | D78: 0 | E78: 0 | F78: 0 | G78: 7 | I78: 8 | J78: =IF(AND(I78>1,COUNTIFS(I$72:I78,I78,C$72:C78,C78)=1),MAX(J$71:J77)+1,"") -> 
B79: 1H | C79: 0 | D79: 0 | E79: 0 | F79: 0 | G79: 8 | I79: 8 | J79: =IF(AND(I79>1,COUNTIFS(I$72:I79,I79,C$72:C79,C79)=1),MAX(J$71:J78)+1,"") -> 
I80: POUR | J80: =A72 -> 0 | K80: =IF($A72=K$71,"",IF(INDEX($C$72:$C$79,MATCH(K$71,$A$72:$A$79,0))=$C72,IFERROR(VLOOKUP($A72&K$71,$N$18:$R$69,5,0), VLOOKUP(K$71&$A72,$N$18:$S$69,6,0)), "")) -> 
J81: 0
J82: 0
J83: 0
J84: 0
J85: 0
J86: 0
J87: 0
I88: CONTRE | J88: =J80 -> 0 | K88: =INDEX($K$80:$R$87,MATCH(K$71,$J$80:$J$87,0),MATCH($J80,$K$71:$R$71,0)) ->  | L88: =INDEX($K$80:$R$87,MATCH(L$71,$J$80:$J$87,0),MATCH($J80,$K$71:$R$71,0)) -> 
J89: =J81 -> 0 | K89: =INDEX($K$80:$R$87,MATCH(K$71,$J$80:$J$87,0),MATCH($J81,$K$71:$R$71,0)) -> 
J90: 0
J91: 0
J92: 0
J93: 0
J94: 0
J95: 0 | U95: Diff pondérée
I96: DIFF | J96: =J88 -> 0 | S96: =S80-S88 ->  | U96: =S96+ABS(MIN($S$96:$S$103)) -> 
J97: =J89 -> 0 | S97: =S81-S89 -> 
J98: 0
J99: 0
J100: 0
J101: 0
J102: 0 | U102: =S102+ABS(MIN($S$96:$S$103)) -> 
J103: 0 | U103: =S103+ABS(MIN($S$96:$S$103)) -> 

Sheet P4
G1: 3
A2: CHAMPIONNAT DES CLUBS
A4: POULE 4
A5: EQUIPES | C5: POINTS | D5: Pour | E5: Contre | F5: Diff
A6: AA | B6: 1A | C6: =SUMIF($A$18:$A$69,A6,$E$18:$E$69)+SUMIF($C$18:$C$69,A6,$F$18:$F$69) -> 0 | D6: =SUMIF($A$18:$A$69,$A6,$B$18:$B$69)+SUMIF($C$18:$C$69,$A6,$D$18:$D$69) -> 0 | E6: =SUMIF($C$18:$C$69,$A6,$B$18:$B$69)+SUMIF($A$18:$A$69,$A6,$D$18:$D$69) -> 0 | F6: =D6-E6 -> 0
A7: AB | B7: 1B | C7: =SUMIF($A$18:$A$69,A7,$E$18:$E$69)+SUMIF($C$18:$C$69,A7,$F$18:$F$69) -> 0 | D7: =SUMIF($A$18:$A$69,$A7,$B$18:$B$69)+SUMIF($C$18:$C$69,$A7,$D$18:$D$69) -> 0 | E7: =SUMIF($C$18:$C$69,$A7,$B$18:$B$69)+SUMIF($A$18:$A$69,$A7,$D$18:$D$69) -> 0 | F7: 0
A8: AC | B8: 1C | C8: =SUMIF($A$18:$A$69,A8,$E$18:$E$69)+SUMIF($C$18:$C$69,A8,$F$18:$F$69) -> 0 | D8: 0 | E8: 0 | F8: 0
A9: AD | B9: 1D | C9: 0 | D9: 0 | E9: 0 | F9: 0
A10: AE | B10: 1E | C10: 0 | D10: 0 | E10: 0 | F10: 0
A11: AF | B11: 1F | C11: 0 | D11: 0 | E11: 0 | F11: 0
A12: AG | B12: 1G | C12: 0 | D12: 0 | E12: 0 | F12: =D12-E12 -> 0
A13: AH | B13: 1H | C13: 0 | D13: =SUMIF($A$18:$A$69,$A13,$B$18:$B$69)+SUMIF($C$18:$C$69,$A13,$D$18:$D$69) -> 0 | E13: 0 | F13: =D13-E13 -> 0
A15: 1er MATCH le | B15: à | C15: =A6 -> AA
G16: SI forfait éq recevante
A17: Equipes | B17: score | C17: Equipes | D17: score | E17: Points | F17: Points
A18: =A6 -> AA | C18: =A7 -> AB | D18: =IF(G18=19,19,IF(ISBLANK(B18),"",IF(B18=19,0,36-B18))) ->  | E18: =IF(G18=19,0,IF(ISBLANK(B18),"",IF(B18<18,1,IF(B18=18,2,IF(B18>18,3))))) ->  | F18: =IF(G18=19,3,IF(ISBLANK(B18),"",IF(B18=19,0,IF(D18<18,1,IF(D18=18,2,IF(D18>=20,3)))))) ->  | L18: =IF(B18>D18,A18&C18,IF(D18>B18,C18&A18,"/")) -> / | N18: =A18&C18 -> AAAB | O18: =E18 ->  | P18: =C18&A18 -> ABAA | Q18: =F18 ->  | R18: =B18 -> 0 | S18: =D18 -> 
A19: =A8 -> AC | C19: =A9 -> AD | D19: =IF(G19=19,19,IF(ISBLANK(B19),"",IF(B19=19,0,36-B19))) ->  | E19: =IF(G19=19,0,IF(ISBLANK(B19),"",IF(B19<18,1,IF(B19=18,2,IF(B19>18,3))))) ->  | F19: =IF(G19=19,3,IF(ISBLANK(B19),"",IF(B19=19,0,IF(D19<18,1,IF(D19=18,2,IF(D19>=20,3)))))) ->  | L19: =IF(B19>D19,A19&C19,IF(D19>B19,C19&A19,"/")) -> / | N19: =A19&C19 -> ACAD | O19: =E19 ->  | P19: =C19&A19 -> ADAC | Q19: =F19 ->  | R19: =B19 -> 0 | S19: =D19 -> 
A20: =A10 -> AE | C20: =A11 -> AF | D20: =IF(G20=19,19,IF(ISBLANK(B20),"",IF(B20=19,0,36-B20))) ->  | E20: =IF(G20=19,0,IF(ISBLANK(B20),"",IF(B20<18,1,IF(B20=18,2,IF(B20>18,3))))) ->  | F20: =IF(G20=19,3,IF(ISBLANK(B20),"",IF(B20=19,0,IF(D20<18,1,IF(D20=18,2,IF(D20>=20,3)))))) ->  | L20: =IF(B20>D20,A20&C20,IF(D20>B20,C20&A20,"/")) -> / | N20: =A20&C20 -> AEAF | O20: =E20 ->  | P20: =C20&A20 -> AFAE | Q20: =F20 ->  | R20: =B20 -> 0 | S20: =D20 -> 
A21: =A12 -> AG | C21: =A13 -> AH | D21: =IF(G21=19,19,IF(ISBLANK(B21),"",IF(B21=19,0,36-B21))) ->  | E21: =IF(G21=19,0,IF(ISBLANK(B21),"",IF(B21<18,1,IF(B21=18,2,IF(B21>18,3))))) ->  | F21: =IF(G21=19,3,IF(ISBLANK(B21),"",IF(B21=19,0,IF(D21<18,1,IF(D21=18,2,IF(D21>=20,3)))))) ->  | L21: =IF(B21>D21,A21&C21,IF(D21>B21,C21&A21,"/")) -> / | N21: =A21&C21 -> AGAH | O21: =E21 ->  | P21: =C21&A21 -> AHAG | Q21: =F21 ->  | R21: =B21 -> 0 | S21: =D21 -> 
A23: 2 éme MATCH le | B23: à | C23: =A7 -> AB
G24: SI forfait éq recevante
A25: Equipes | B25: score | C25: Equipes | D25: score | E25: Points | F25: Points
A26: =A6 -> AA | C26: =A8 -> AC | D26: =IF(G26=19,19,IF(ISBLANK(B26),"",IF(B26=19,0,36-B26))) ->  | E26: =IF(G26=19,0,IF(ISBLANK(B26),"",IF(B26<18,1,IF(B26=18,2,IF(B26>18,3))))) ->  | F26: =IF(G26=19,3,IF(ISBLANK(B26),"",IF(B26=19,0,IF(D26<18,1,IF(D26=18,2,IF(D26>=20,3)))))) ->  | L26: =IF(B26>D26,A26&C26,IF(D26>B26,C26&A26,"/")) -> / | N26: =A26&C26 -> AAAC | O26: =E26 ->  | P26: =C26&A26 -> ACAA | Q26: =F26 ->  | R26: =B26 -> 0 | S26: =D26 -> 
A27: =A7 -> AB | C27: =A13 -> AH | D27: =IF(G27=19,19,IF(ISBLANK(B27),"",IF(B27=19,0,36-B27))) ->  | E27: =IF(G27=19,0,IF(ISBLANK(B27),"",IF(B27<18,1,IF(B27=18,2,IF(B27>18,3))))) ->  | F27: =IF(G27=19,3,IF(ISBLANK(B27),"",IF(B27=19,0,IF(D27<18,1,IF(D27=18,2,IF(D27>=20,3)))))) ->  | L27: =IF(B27>D27,A27&C27,IF(D27>B27,C27&A27,"/")) -> / | N27: =A27&C27 -> ABAH | O27: =E27 ->  | P27: =C27&A27 -> AHAB | Q27: =F27 ->  | R27: =B27 -> 0 | S27: =D27 -> 
A28: =A9 -> AD | C28: =A11 -> AF | D28: =IF(G28=19,19,IF(ISBLANK(B28),"",IF(B28=19,0,36-B28))) ->  | E28: =IF(G28=19,0,IF(ISBLANK(B28),"",IF(B28<18,1,IF(B28=18,2,IF(B28>18,3))))) ->  | F28: =IF(G28=19,3,IF(ISBLANK(B28),"",IF(B28=19,0,IF(D28<18,1,IF(D28=18,2,IF(D28>=20,3)))))) ->  | L28: =IF(B28>D28,A28&C28,IF(D28>B28,C28&A28,"/")) -> / | N28: =A28&C28 -> ADAF | O28: =E28 ->  | P28: =C28&A28 -> AFAD | Q28: =F28 ->  | R28: =B28 -> 0 | S28: =D28 -> 
A29: =A10 -> AE | C29: =A12 -> AG | D29: =IF(G29=19,19,IF(ISBLANK(B29),"",IF(B29=19,0,36-B29))) ->  | E29: =IF(G29=19,0,IF(ISBLANK(B29),"",IF(B29<18,1,IF(B29=18,2,IF(B29>18,3))))) ->  | F29: =IF(G29=19,3,IF(ISBLANK(B29),"",IF(B29=19,0,IF(D29<18,1,IF(D29=18,2,IF(D29>=20,3)))))) ->  | L29: =IF(B29>D29,A29&C29,IF(D29>B29,C29&A29,"/")) -> / | N29: =A29&C29 -> AEAG | O29: =E29 ->  | P29: =C29&A29 -> AGAE | Q29: =F29 ->  | R29: =B29 -> 0 | S29: =D29 -> 
A31: 3 éme MATCH le | B31: à | C31: =A8 -> AC
G32: SI forfait éq recevante
A33: Equipes | B33: score | C33: Equipes | D33: score | E33: Points | F33: Points
A34: =A6 -> AA | C34: =A13 -> AH | D34: =IF(G34=19,19,IF(ISBLANK(B34),"",IF(B34=19,0,36-B34))) ->  | E34: =IF(G34=19,0,IF(ISBLANK(B34),"",IF(B34<18,1,IF(B34=18,2,IF(B34>18,3))))) ->  | F34: =IF(G34=19,3,IF(ISBLANK(B34),"",IF(B34=19,0,IF(D34<18,1,IF(D34=18,2,IF(D34>=20,3)))))) ->  | L34: =IF(B34>D34,A34&C34,IF(D34>B34,C34&A34,"/")) -> / | N34: =A34&C34 -> AAAH | O34: =E34 ->  | P34: =C34&A34 -> AHAA | Q34: =F34 ->  | R34: =B34 -> 0 | S34: =D34 -> 
A35: =A7 -> AB | C35: =A10 -> AE | D35: =IF(G35=19,19,IF(ISBLANK(B35),"",IF(B35=19,0,36-B35))) ->  | E35: =IF(G35=19,0,IF(ISBLANK(B35),"",IF(B35<18,1,IF(B35=18,2,IF(B35>18,3))))) ->  | F35: =IF(G35=19,3,IF(ISBLANK(B35),"",IF(B35=19,0,IF(D35<18,1,IF(D35=18,2,IF(D35>=20,3)))))) ->  | L35: =IF(B35>D35,A35&C35,IF(D35>B35,C35&A35,"/")) -> / | N35: =A35&C35 -> ABAE | O35: =E35 ->  | P35: =C35&A35 -> AEAB | Q35: =F35 ->  | R35: =B35 -> 0 | S35: =D35 -> 
A36: =A8 -> AC | C36: =A11 -> AF | D36: =IF(G36=19,19,IF(ISBLANK(B36),"",IF(B36=19,0,36-B36))) ->  | E36: =IF(G36=19,0,IF(ISBLANK(B36),"",IF(B36<18,1,IF(B36=18,2,IF(B36>18,3))))) ->  | F36: =IF(G36=19,3,IF(ISBLANK(B36),"",IF(B36=19,0,IF(D36<18,1,IF(D36=18,2,IF(D36>=20,3)))))) ->  | L36: =IF(B36>D36,A36&C36,IF(D36>B36,C36&A36,"/")) -> / | N36: =A36&C36 -> ACAF | O36: =E36 ->  | P36: =C36&A36 -> AFAC | Q36: =F36 ->  | R36: =B36 -> 0 | S36: =D36 -> 
A37: =A9 -> AD | C37: =A12 -> AG | D37: =IF(G37=19,19,IF(ISBLANK(B37),"",IF(B37=19,0,36-B37))) ->  | E37: =IF(G37=19,0,IF(ISBLANK(B37),"",IF(B37<18,1,IF(B37=18,2,IF(B37>18,3))))) ->  | F37: =IF(G37=19,3,IF(ISBLANK(B37),"",IF(B37=19,0,IF(D37<18,1,IF(D37=18,2,IF(D37>=20,3)))))) ->  | L37: =IF(B37>D37,A37&C37,IF(D37>B37,C37&A37,"/")) -> / | N37: =A37&C37 -> ADAG | O37: =E37 ->  | P37: =C37&A37 -> AGAD | Q37: =F37 ->  | R37: =B37 -> 0 | S37: =D37 -> 
A39: 4 éme MATCH le | B39: à | C39: =A9 -> AD
G40: SI forfait éq recevante
A41: Equipes | B41: score | C41: Equipes | D41: score | E41: Points | F41: Points
A42: =A6 -> AA | C42: =A9 -> AD | D42: =IF(G42=19,19,IF(ISBLANK(B42),"",IF(B42=19,0,36-B42))) ->  | E42: =IF(G42=19,0,IF(ISBLANK(B42),"",IF(B42<18,1,IF(B42=18,2,IF(B42>18,3))))) ->  | F42: =IF(G42=19,3,IF(ISBLANK(B42),"",IF(B42=19,0,IF(D42<18,1,IF(D42=18,2,IF(D42>=20,3)))))) ->  | L42: =IF(B42>D42,A42&C42,IF(D42>B42,C42&A42,"/")) -> / | N42: =A42&C42 -> AAAD | O42: =E42 ->  | P42: =C42&A42 -> ADAA | Q42: =F42 ->  | R42: =B42 -> 0 | S42: =D42 -> 
A43: =A11 -> AF | C43: =A12 -> AG | D43: =IF(G43=19,19,IF(ISBLANK(B43),"",IF(B43=19,0,36-B43))) ->  | E43: =IF(G43=19,0,IF(ISBLANK(B43),"",IF(B43<18,1,IF(B43=18,2,IF(B43>18,3))))) ->  | F43: =IF(G43=19,3,IF(ISBLANK(B43),"",IF(B43=19,0,IF(D43<18,1,IF(D43=18,2,IF(D43>=20,3)))))) ->  | L43: =IF(B43>D43,A43&C43,IF(D43>B43,C43&A43,"/")) -> / | N43: =A43&C43 -> AFAG | O43: =E43 ->  | P43: =C43&A43 -> AGAF | Q43: =F43 ->  | R43: =B43 -> 0 | S43: =D43 -> 
A44: =A7 -> AB | C44: =A8 -> AC | D44: =IF(G44=19,19,IF(ISBLANK(B44),"",IF(B44=19,0,36-B44))) ->  | E44: =IF(G44=19,0,IF(ISBLANK(B44),"",IF(B44<18,1,IF(B44=18,2,IF(B44>18,3))))) ->  | F44: =IF(G44=19,3,IF(ISBLANK(B44),"",IF(B44=19,0,IF(D44<18,1,IF(D44=18,2,IF(D44>=20,3)))))) ->  | L44: =IF(B44>D44,A44&C44,IF(D44>B44,C44&A44,"/")) -> / | N44: =A44&C44 -> ABAC | O44: =E44 ->  | P44: =C44&A44 -> ACAB | Q44: =F44 ->  | R44: =B44 -> 0 | S44: =D44 -> 
A45: =A10 -> AE | C45: =A13 -> AH | D45: =IF(G45=19,19,IF(ISBLANK(B45),"",IF(B45=19,0,36-B45))) ->  | E45: =IF(G45=19,0,IF(ISBLANK(B45),"",IF(B45<18,1,IF(B45=18,2,IF(B45>18,3))))) ->  | F45: =IF(G45=19,3,IF(ISBLANK(B45),"",IF(B45=19,0,IF(D45<18,1,IF(D45=18,2,IF(D45>=20,3)))))) ->  | L45: =IF(B45>D45,A45&C45,IF(D45>B45,C45&A45,"/")) -> / | N45: =A45&C45 -> AEAH | O45: =E45 ->  | P45: =C45&A45 -> AHAE | Q45: =F45 ->  | R45: =B45 -> 0 | S45: =D45 -> 
A47: 5 éme MATCH le | B47: à | C47: =A10 -> AE
G48: SI forfait éq recevante
A49: Equipes | B49: score | C49: Equipes | D49: score | E49: Points | F49: Points
A50: =A6 -> AA | C50: =A11 -> AF | D50: =IF(G50=19,19,IF(ISBLANK(B50),"",IF(B50=19,0,36-B50))) ->  | E50: =IF(G50=19,0,IF(ISBLANK(B50),"",IF(B50<18,1,IF(B50=18,2,IF(B50>18,3))))) ->  | F50: =IF(G50=19,3,IF(ISBLANK(B50),"",IF(B50=19,0,IF(D50<18,1,IF(D50=18,2,IF(D50>=20,3)))))) ->  | L50: =IF(B50>D50,A50&C50,IF(D50>B50,C50&A50,"/")) -> / | N50: =A50&C50 -> AAAF | O50: =E50 ->  | P50: =C50&A50 -> AFAA | Q50: =F50 ->  | R50: =B50 -> 0 | S50: =D50 -> 
A51: =A9 -> AD | C51: =A13 -> AH | D51: =IF(G51=19,19,IF(ISBLANK(B51),"",IF(B51=19,0,36-B51))) ->  | E51: =IF(G51=19,0,IF(ISBLANK(B51),"",IF(B51<18,1,IF(B51=18,2,IF(B51>18,3))))) ->  | F51: =IF(G51=19,3,IF(ISBLANK(B51),"",IF(B51=19,0,IF(D51<18,1,IF(D51=18,2,IF(D51>=20,3)))))) ->  | L51: =IF(B51>D51,A51&C51,IF(D51>B51,C51&A51,"/")) -> / | N51: =A51&C51 -> ADAH | O51: =E51 ->  | P51: =C51&A51 -> AHAD | Q51: =F51 ->  | R51: =B51 -> 0 | S51: =D51 -> 
A52: =A7 -> AB | C52: =A12 -> AG | D52: =IF(G52=19,19,IF(ISBLANK(B52),"",IF(B52=19,0,36-B52))) ->  | E52: =IF(G52=19,0,IF(ISBLANK(B52),"",IF(B52<18,1,IF(B52=18,2,IF(B52>18,3))))) ->  | F52: =IF(G52=19,3,IF(ISBLANK(B52),"",IF(B52=19,0,IF(D52<18,1,IF(D52=18,2,IF(D52>=20,3)))))) ->  | L52: =IF(B52>D52,A52&C52,IF(D52>B52,C52&A52,"/")) -> / | N52: =A52&C52 -> ABAG | O52: =E52 ->  | P52: =C52&A52 -> AGAB | Q52: =F52 ->  | R52: =B52 -> 0 | S52: =D52 -> 
A53: =A8 -> AC | C53: =A10 -> AE | D53: =IF(G53=19,19,IF(ISBLANK(B53),"",IF(B53=19,0,36-B53))) ->  | E53: =IF(G53=19,0,IF(ISBLANK(B53),"",IF(B53<18,1,IF(B53=18,2,IF(B53>18,3))))) ->  | F53: =IF(G53=19,3,IF(ISBLANK(B53),"",IF(B53=19,0,IF(D53<18,1,IF(D53=18,2,IF(D53>=20,3)))))) ->  | L53: =IF(B53>D53,A53&C53,IF(D53>B53,C53&A53,"/")) -> / | N53: =A53&C53 -> ACAE | O53: =E53 ->  | P53: =C53&A53 -> AEAC | Q53: =F53 ->  | R53: =B53 -> 0 | S53: =D53 -> 
A55: 6 éme MATCH le | B55: à | C55: =A11 -> AF
G56: SI forfait éq recevante
A57: Equipes | B57: score | C57: Equipes | D57: score | E57: Points | F57: Points
A58: =A7 -> AB | C58: =A9 -> AD | D58: =IF(G58=19,19,IF(ISBLANK(B58),"",IF(B58=19,0,36-B58))) ->  | E58: =IF(G58=19,0,IF(ISBLANK(B58),"",IF(B58<18,1,IF(B58=18,2,IF(B58>18,3))))) ->  | F58: =IF(G58=19,3,IF(ISBLANK(B58),"",IF(B58=19,0,IF(D58<18,1,IF(D58=18,2,IF(D58>=20,3)))))) ->  | L58: =IF(B58>D58,A58&C58,IF(D58>B58,C58&A58,"/")) -> / | N58: =A58&C58 -> ABAD | O58: =E58 ->  | P58: =C58&A58 -> ADAB | Q58: =F58 ->  | R58: =B58 -> 0 | S58: =D58 -> 
A59: =A10 -> AE | C59: =A6 -> AA | D59: =IF(G59=19,19,IF(ISBLANK(B59),"",IF(B59=19,0,36-B59))) ->  | E59: =IF(G59=19,0,IF(ISBLANK(B59),"",IF(B59<18,1,IF(B59=18,2,IF(B59>18,3))))) ->  | F59: =IF(G59=19,3,IF(ISBLANK(B59),"",IF(B59=19,0,IF(D59<18,1,IF(D59=18,2,IF(D59>=20,3)))))) ->  | L59: =IF(B59>D59,A59&C59,IF(D59>B59,C59&A59,"/")) -> / | N59: =A59&C59 -> AEAA | O59: =E59 ->  | P59: =C59&A59 -> AAAE | Q59: =F59 ->  | R59: =B59 -> 0 | S59: =D59 -> 
A60: =A12 -> AG | C60: =A8 -> AC | D60: =IF(G60=19,19,IF(ISBLANK(B60),"",IF(B60=19,0,36-B60))) ->  | E60: =IF(G60=19,0,IF(ISBLANK(B60),"",IF(B60<18,1,IF(B60=18,2,IF(B60>18,3))))) ->  | F60: =IF(G60=19,3,IF(ISBLANK(B60),"",IF(B60=19,0,IF(D60<18,1,IF(D60=18,2,IF(D60>=20,3)))))) ->  | L60: =IF(B60>D60,A60&C60,IF(D60>B60,C60&A60,"/")) -> / | N60: =A60&C60 -> AGAC | O60: =E60 ->  | P60: =C60&A60 -> ACAG | Q60: =F60 ->  | R60: =B60 -> 0 | S60: =D60 -> 
A61: =A11 -> AF | C61: =A13 -> AH | D61: =IF(G61=19,19,IF(ISBLANK(B61),"",IF(B61=19,0,36-B61))) ->  | E61: =IF(G61=19,0,IF(ISBLANK(B61),"",IF(B61<18,1,IF(B61=18,2,IF(B61>18,3))))) ->  | F61: =IF(G61=19,3,IF(ISBLANK(B61),"",IF(B61=19,0,IF(D61<18,1,IF(D61=18,2,IF(D61>=20,3)))))) ->  | L61: =IF(B61>D61,A61&C61,IF(D61>B61,C61&A61,"/")) -> / | N61: =A61&C61 -> AFAH | O61: =E61 ->  | P61: =C61&A61 -> AHAF | Q61: =F61 ->  | R61: =B61 -> 0 | S61: =D61 -> 
A63: 7 éme MATCH le | B63: à | C63: =A12 -> AG
G64: SI forfait éq recevante
A65: Equipes | B65: score | C65: Equipes | D65: score | E65: Points | F65: Points
A66: =A6 -> AA | C66: =A12 -> AG | D66: =IF(G66=19,19,IF(ISBLANK(B66),"",IF(B66=19,0,36-B66))) ->  | E66: =IF(G66=19,0,IF(ISBLANK(B66),"",IF(B66<18,1,IF(B66=18,2,IF(B66>18,3))))) ->  | F66: =IF(G66=19,3,IF(ISBLANK(B66),"",IF(B66=19,0,IF(D66<18,1,IF(D66=18,2,IF(D66>=20,3)))))) ->  | L66: =IF(B66>D66,A66&C66,IF(D66>B66,C66&A66,"/")) -> / | N66: =A66&C66 -> AAAG | O66: =E66 ->  | P66: =C66&A66 -> AGAA | Q66: =F66 ->  | R66: =B66 -> 0 | S66: =D66 -> 
A67: =A7 -> AB | C67: =A11 -> AF | D67: =IF(G67=19,19,IF(ISBLANK(B67),"",IF(B67=19,0,36-B67))) ->  | E67: =IF(G67=19,0,IF(ISBLANK(B67),"",IF(B67<18,1,IF(B67=18,2,IF(B67>18,3))))) ->  | F67: =IF(G67=19,3,IF(ISBLANK(B67),"",IF(B67=19,0,IF(D67<18,1,IF(D67=18,2,IF(D67>=20,3)))))) ->  | L67: =IF(B67>D67,A67&C67,IF(D67>B67,C67&A67,"/")) -> / | N67: =A67&C67 -> ABAF | O67: =E67 ->  | P67: =C67&A67 -> AFAB | Q67: =F67 ->  | R67: =B67 -> 0 | S67: =D67 -> 
A68: =A10 -> AE | C68: =A9 -> AD | D68: =IF(G68=19,19,IF(ISBLANK(B68),"",IF(B68=19,0,36-B68))) ->  | E68: =IF(G68=19,0,IF(ISBLANK(B68),"",IF(B68<18,1,IF(B68=18,2,IF(B68>18,3))))) ->  | F68: =IF(G68=19,3,IF(ISBLANK(B68),"",IF(B68=19,0,IF(D68<18,1,IF(D68=18,2,IF(D68>=20,3)))))) ->  | L68: =IF(B68>D68,A68&C68,IF(D68>B68,C68&A68,"/")) -> / | N68: =A68&C68 -> AEAD | O68: =E68 ->  | P68: =C68&A68 -> ADAE | Q68: =F68 ->  | R68: =B68 -> 0 | S68: =D68 -> 
A69: =A8 -> AC | C69: =A13 -> AH | D69: =IF(G69=19,19,IF(ISBLANK(B69),"",IF(B69=19,0,36-B69))) ->  | E69: =IF(G69=19,0,IF(ISBLANK(B69),"",IF(B69<18,1,IF(B69=18,2,IF(B69>18,3))))) ->  | F69: =IF(G69=19,3,IF(ISBLANK(B69),"",IF(B69=19,0,IF(D69<18,1,IF(D69=18,2,IF(D69>=20,3)))))) ->  | L69: =IF(B69>D69,A69&C69,IF(D69>B69,C69&A69,"/")) -> / | N69: =A69&C69 -> ACAH | O69: =E69 ->  | P69: =C69&A69 -> AHAC | Q69: =F69 ->  | R69: =B69 -> 0 | S69: =D69 -> 
C70: CLASSEMENT | G70: Classt Final | H70: Rencontres entre exaequos
A71: EQUIPES | C71: POINTS | D71: POUR | E71: CONTRE | F71: DIFF | H71: POINTS Exaequos | I71: Exaq | J71: n° | K71: =A6 -> AA | L71: =A7 -> AB | M71: =A8 -> AC | N71: =A9 -> AD | O71: =A10 -> AE | P71: =A11 -> AF | Q71: =A12 -> AG | R71: =A13 -> AH | S71: Pts matchs | W71: 1000000*Pts matchs +1000 (Diff + abs(diff mini) )+Pour | X71: RANG | Y71: DIFF Exaequos | Z71: POUR Exaequos
B72: 1A | C72: 0 | D72: 0 | E72: 0 | F72: 0 | G72: 1 | H72: =IF(S72>0,S72,"") ->  | I72: =COUNTIF($C$72:$C$79,C72) -> 8 | J72: =IF(AND(I72>1,COUNTIFS(I$72:I72,I72,C$72:C72,C72)=1),MAX(J$71:J71)+1,"") -> 1 | K72: =IF($A72=K$71,"",IF(INDEX($C$72:$C$79,MATCH(K$71,$A$72:$A$79,0))=$C72,IFERROR(VLOOKUP($A72&K$71,$N$18:$O$69,2,0), VLOOKUP(K$71&$A72,$N$18:$Q$69,4,0)), "")) ->  | S72: =SUM(K72:R72) ->  | W72: =IF(I72<3,S72*1000000+(F72+ABS(MIN($F$72:$F$79)))*1000+D72,S72*1000000+U96*1000+Z72) ->  | X72: =IF(I72>2,RANK(W72,OFFSET(W$71,MATCH(I72,$I$72:$I$79,0),,I72))) ->  | Y72: =IF(S96=0,"",S96) ->  | Z72: =IF(S80=0,"",S80) -> 
B73: 1B | C73: 0 | D73: 0 | E73: 0 | F73: 0 | G73: 2 | I73: 8 | J73: =IF(AND(I73>1,COUNTIFS(I$72:I73,I73,C$72:C73,C73)=1),MAX(J$71:J72)+1,"") ->  | S73: =SUM(K73:R73) ->  | W73: =IF(I73<3,S73*1000000+(F73+ABS(MIN($F$72:$F$79)))*1000+D73,S73*1000000+U97*1000+Z73) ->  | X73: =IF(I73>2,RANK(W73,OFFSET(W$71,MATCH(I73,$I$72:$I$79,0),,I73))) -> 
B74: 1C | C74: 0 | D74: 0 | E74: 0 | F74: 0 | G74: 3 | I74: 8 | J74: =IF(AND(I74>1,COUNTIFS(I$72:I74,I74,C$72:C74,C74)=1),MAX(J$71:J73)+1,"") -> 
B75: 1D | C75: 0 | D75: 0 | E75: 0 | F75: 0 | G75: 4 | I75: 8 | J75: =IF(AND(I75>1,COUNTIFS(I$72:I75,I75,C$72:C75,C75)=1),MAX(J$71:J74)+1,"") -> 
B76: 1E | C76: 0 | D76: 0 | E76: 0 | F76: 0 | G76: 5 | I76: 8 | J76: =IF(AND(I76>1,COUNTIFS(I$72:I76,I76,C$72:C76,C76)=1),MAX(J$71:J75)+1,"") -> 
B77: 1F | C77: 0 | D77: 0 | E77: 0 | F77: 0 | G77: 6 | I77: 8 | J77: =IF(AND(I77>1,COUNTIFS(I$72:I77,I77,C$72:C77,C77)=1),MAX(J$71:J76)+1,"") -> 
B78: 1G | C78: 0 | D78: 0 | E78: 0 | F78: 0 | G78: 7 | I78: 8 | J78: =IF(AND(I78>1,COUNTIFS(I$72:I78,I78,C$72:C78,C78)=1),MAX(J$71:J77)+1,"") -> 
B79: 1H | C79: 0 | D79: 0 | E79: 0 | F79: 0 | G79: 8 | I79: 8 | J79: =IF(AND(I79>1,COUNTIFS(I$72:I79,I79,C$72:C79,C79)=1),MAX(J$71:J78)+1,"") -> 
I80: POUR | J80: =A72 -> 0 | K80: =IF($A72=K$71,"",IF(INDEX($C$72:$C$79,MATCH(K$71,$A$72:$A$79,0))=$C72,IFERROR(VLOOKUP($A72&K$71,$N$18:$R$69,5,0), VLOOKUP(K$71&$A72,$N$18:$S$69,6,0)), "")) -> 
J81: 0
J82: 0
J83: 0
J84: 0
J85: 0
J86: 0
J87: 0
I88: CONTRE | J88: =J80 -> 0 | K88: =INDEX($K$80:$R$87,MATCH(K$71,$J$80:$J$87,0),MATCH($J80,$K$71:$R$71,0)) ->  | L88: =INDEX($K$80:$R$87,MATCH(L$71,$J$80:$J$87,0),MATCH($J80,$K$71:$R$71,0)) -> 
J89: =J81 -> 0 | K89: =INDEX($K$80:$R$87,MATCH(K$71,$J$80:$J$87,0),MATCH($J81,$K$71:$R$71,0)) -> 
J90: 0
J91: 0
J92: 0
J93: 0
J94: 0
J95: 0 | U95: Diff pondérée
I96: DIFF | J96: =J88 -> 0 | S96: =S80-S88 ->  | U96: =S96+ABS(MIN($S$96:$S$103)) -> 
J97: =J89 -> 0 | S97: =S81-S89 -> 
J98: 0
J99: 0
J100: 0
J101: 0
J102: 0 | U102: =S102+ABS(MIN($S$96:$S$103)) -> 
J103: 0 | U103: =S103+ABS(MIN($S$96:$S$103)) -> 

Sheet P5
G1: 3
A2: CHAMPIONNAT DES CLUBS
A4: POULE 5
A5: EQUIPES | C5: POINTS | D5: Pour | E5: Contre | F5: Diff
A6: AA | B6: 1A | C6: =SUMIF($A$18:$A$69,A6,$E$18:$E$69)+SUMIF($C$18:$C$69,A6,$F$18:$F$69) -> 0 | D6: =SUMIF($A$18:$A$69,$A6,$B$18:$B$69)+SUMIF($C$18:$C$69,$A6,$D$18:$D$69) -> 0 | E6: =SUMIF($C$18:$C$69,$A6,$B$18:$B$69)+SUMIF($A$18:$A$69,$A6,$D$18:$D$69) -> 0 | F6: =D6-E6 -> 0
A7: AB | B7: 1B | C7: =SUMIF($A$18:$A$69,A7,$E$18:$E$69)+SUMIF($C$18:$C$69,A7,$F$18:$F$69) -> 0 | D7: =SUMIF($A$18:$A$69,$A7,$B$18:$B$69)+SUMIF($C$18:$C$69,$A7,$D$18:$D$69) -> 0 | E7: =SUMIF($C$18:$C$69,$A7,$B$18:$B$69)+SUMIF($A$18:$A$69,$A7,$D$18:$D$69) -> 0 | F7: 0
A8: AC | B8: 1C | C8: =SUMIF($A$18:$A$69,A8,$E$18:$E$69)+SUMIF($C$18:$C$69,A8,$F$18:$F$69) -> 0 | D8: 0 | E8: 0 | F8: 0
A9: AD | B9: 1D | C9: 0 | D9: 0 | E9: 0 | F9: 0
A10: AE | B10: 1E | C10: 0 | D10: 0 | E10: 0 | F10: 0
A11: AF | B11: 1F | C11: 0 | D11: 0 | E11: 0 | F11: 0
A12: AG | B12: 1G | C12: 0 | D12: 0 | E12: 0 | F12: =D12-E12 -> 0
A13: AH | B13: 1H | C13: 0 | D13: =SUMIF($A$18:$A$69,$A13,$B$18:$B$69)+SUMIF($C$18:$C$69,$A13,$D$18:$D$69) -> 0 | E13: 0 | F13: =D13-E13 -> 0
A15: 1er MATCH le | B15: à | C15: =A6 -> AA
G16: SI forfait éq recevante
A17: Equipes | B17: score | C17: Equipes | D17: score | E17: Points | F17: Points
A18: =A6 -> AA | C18: =A7 -> AB | D18: =IF(G18=19,19,IF(ISBLANK(B18),"",IF(B18=19,0,36-B18))) ->  | E18: =IF(G18=19,0,IF(ISBLANK(B18),"",IF(B18<18,1,IF(B18=18,2,IF(B18>18,3))))) ->  | F18: =IF(G18=19,3,IF(ISBLANK(B18),"",IF(B18=19,0,IF(D18<18,1,IF(D18=18,2,IF(D18>=20,3)))))) ->  | L18: =IF(B18>D18,A18&C18,IF(D18>B18,C18&A18,"/")) -> / | N18: =A18&C18 -> AAAB | O18: =E18 ->  | P18: =C18&A18 -> ABAA | Q18: =F18 ->  | R18: =B18 -> 0 | S18: =D18 -> 
A19: =A8 -> AC | C19: =A9 -> AD | D19: =IF(G19=19,19,IF(ISBLANK(B19),"",IF(B19=19,0,36-B19))) ->  | E19: =IF(G19=19,0,IF(ISBLANK(B19),"",IF(B19<18,1,IF(B19=18,2,IF(B19>18,3))))) ->  | F19: =IF(G19=19,3,IF(ISBLANK(B19),"",IF(B19=19,0,IF(D19<18,1,IF(D19=18,2,IF(D19>=20,3)))))) ->  | L19: =IF(B19>D19,A19&C19,IF(D19>B19,C19&A19,"/")) -> / | N19: =A19&C19 -> ACAD | O19: =E19 ->  | P19: =C19&A19 -> ADAC | Q19: =F19 ->  | R19: =B19 -> 0 | S19: =D19 -> 
A20: =A10 -> AE | C20: =A11 -> AF | D20: =IF(G20=19,19,IF(ISBLANK(B20),"",IF(B20=19,0,36-B20))) ->  | E20: =IF(G20=19,0,IF(ISBLANK(B20),"",IF(B20<18,1,IF(B20=18,2,IF(B20>18,3))))) ->  | F20: =IF(G20=19,3,IF(ISBLANK(B20),"",IF(B20=19,0,IF(D20<18,1,IF(D20=18,2,IF(D20>=20,3)))))) ->  | L20: =IF(B20>D20,A20&C20,IF(D20>B20,C20&A20,"/")) -> / | N20: =A20&C20 -> AEAF | O20: =E20 ->  | P20: =C20&A20 -> AFAE | Q20: =F20 ->  | R20: =B20 -> 0 | S20: =D20 -> 
A21: =A12 -> AG | C21: =A13 -> AH | D21: =IF(G21=19,19,IF(ISBLANK(B21),"",IF(B21=19,0,36-B21))) ->  | E21: =IF(G21=19,0,IF(ISBLANK(B21),"",IF(B21<18,1,IF(B21=18,2,IF(B21>18,3))))) ->  | F21: =IF(G21=19,3,IF(ISBLANK(B21),"",IF(B21=19,0,IF(D21<18,1,IF(D21=18,2,IF(D21>=20,3)))))) ->  | L21: =IF(B21>D21,A21&C21,IF(D21>B21,C21&A21,"/")) -> / | N21: =A21&C21 -> AGAH | O21: =E21 ->  | P21: =C21&A21 -> AHAG | Q21: =F21 ->  | R21: =B21 -> 0 | S21: =D21 -> 
A23: 2 éme MATCH le | B23: à | C23: =A7 -> AB
G24: SI forfait éq recevante
A25: Equipes | B25: score | C25: Equipes | D25: score | E25: Points | F25: Points
A26: =A6 -> AA | C26: =A8 -> AC | D26: =IF(G26=19,19,IF(ISBLANK(B26),"",IF(B26=19,0,36-B26))) ->  | E26: =IF(G26=19,0,IF(ISBLANK(B26),"",IF(B26<18,1,IF(B26=18,2,IF(B26>18,3))))) ->  | F26: =IF(G26=19,3,IF(ISBLANK(B26),"",IF(B26=19,0,IF(D26<18,1,IF(D26=18,2,IF(D26>=20,3)))))) ->  | L26: =IF(B26>D26,A26&C26,IF(D26>B26,C26&A26,"/")) -> / | N26: =A26&C26 -> AAAC | O26: =E26 ->  | P26: =C26&A26 -> ACAA | Q26: =F26 ->  | R26: =B26 -> 0 | S26: =D26 -> 
A27: =A7 -> AB | C27: =A13 -> AH | D27: =IF(G27=19,19,IF(ISBLANK(B27),"",IF(B27=19,0,36-B27))) ->  | E27: =IF(G27=19,0,IF(ISBLANK(B27),"",IF(B27<18,1,IF(B27=18,2,IF(B27>18,3))))) ->  | F27: =IF(G27=19,3,IF(ISBLANK(B27),"",IF(B27=19,0,IF(D27<18,1,IF(D27=18,2,IF(D27>=20,3)))))) ->  | L27: =IF(B27>D27,A27&C27,IF(D27>B27,C27&A27,"/")) -> / | N27: =A27&C27 -> ABAH | O27: =E27 ->  | P27: =C27&A27 -> AHAB | Q27: =F27 ->  | R27: =B27 -> 0 | S27: =D27 -> 
A28: =A9 -> AD | C28: =A11 -> AF | D28: =IF(G28=19,19,IF(ISBLANK(B28),"",IF(B28=19,0,36-B28))) ->  | E28: =IF(G28=19,0,IF(ISBLANK(B28),"",IF(B28<18,1,IF(B28=18,2,IF(B28>18,3))))) ->  | F28: =IF(G28=19,3,IF(ISBLANK(B28),"",IF(B28=19,0,IF(D28<18,1,IF(D28=18,2,IF(D28>=20,3)))))) ->  | L28: =IF(B28>D28,A28&C28,IF(D28>B28,C28&A28,"/")) -> / | N28: =A28&C28 -> ADAF | O28: =E28 ->  | P28: =C28&A28 -> AFAD | Q28: =F28 ->  | R28: =B28 -> 0 | S28: =D28 -> 
A29: =A10 -> AE | C29: =A12 -> AG | D29: =IF(G29=19,19,IF(ISBLANK(B29),"",IF(B29=19,0,36-B29))) ->  | E29: =IF(G29=19,0,IF(ISBLANK(B29),"",IF(B29<18,1,IF(B29=18,2,IF(B29>18,3))))) ->  | F29: =IF(G29=19,3,IF(ISBLANK(B29),"",IF(B29=19,0,IF(D29<18,1,IF(D29=18,2,IF(D29>=20,3)))))) ->  | L29: =IF(B29>D29,A29&C29,IF(D29>B29,C29&A29,"/")) -> / | N29: =A29&C29 -> AEAG | O29: =E29 ->  | P29: =C29&A29 -> AGAE | Q29: =F29 ->  | R29: =B29 -> 0 | S29: =D29 -> 
A31: 3 éme MATCH le | B31: à | C31: =A8 -> AC
G32: SI forfait éq recevante
A33: Equipes | B33: score | C33: Equipes | D33: score | E33: Points | F33: Points
A34: =A6 -> AA | C34: =A13 -> AH | D34: =IF(G34=19,19,IF(ISBLANK(B34),"",IF(B34=19,0,36-B34))) ->  | E34: =IF(G34=19,0,IF(ISBLANK(B34),"",IF(B34<18,1,IF(B34=18,2,IF(B34>18,3))))) ->  | F34: =IF(G34=19,3,IF(ISBLANK(B34),"",IF(B34=19,0,IF(D34<18,1,IF(D34=18,2,IF(D34>=20,3)))))) ->  | L34: =IF(B34>D34,A34&C34,IF(D34>B34,C34&A34,"/")) -> / | N34: =A34&C34 -> AAAH | O34: =E34 ->  | P34: =C34&A34 -> AHAA | Q34: =F34 ->  | R34: =B34 -> 0 | S34: =D34 -> 
A35: =A7 -> AB | C35: =A10 -> AE | D35: =IF(G35=19,19,IF(ISBLANK(B35),"",IF(B35=19,0,36-B35))) ->  | E35: =IF(G35=19,0,IF(ISBLANK(B35),"",IF(B35<18,1,IF(B35=18,2,IF(B35>18,3))))) ->  | F35: =IF(G35=19,3,IF(ISBLANK(B35),"",IF(B35=19,0,IF(D35<18,1,IF(D35=18,2,IF(D35>=20,3)))))) ->  | L35: =IF(B35>D35,A35&C35,IF(D35>B35,C35&A35,"/")) -> / | N35: =A35&C35 -> ABAE | O35: =E35 ->  | P35: =C35&A35 -> AEAB | Q35: =F35 ->  | R35: =B35 -> 0 | S35: =D35 -> 
A36: =A8 -> AC | C36: =A11 -> AF | D36: =IF(G36=19,19,IF(ISBLANK(B36),"",IF(B36=19,0,36-B36))) ->  | E36: =IF(G36=19,0,IF(ISBLANK(B36),"",IF(B36<18,1,IF(B36=18,2,IF(B36>18,3))))) ->  | F36: =IF(G36=19,3,IF(ISBLANK(B36),"",IF(B36=19,0,IF(D36<18,1,IF(D36=18,2,IF(D36>=20,3)))))) ->  | L36: =IF(B36>D36,A36&C36,IF(D36>B36,C36&A36,"/")) -> / | N36: =A36&C36 -> ACAF | O36: =E36 ->  | P36: =C36&A36 -> AFAC | Q36: =F36 ->  | R36: =B36 -> 0 | S36: =D36 -> 
A37: =A9 -> AD | C37: =A12 -> AG | D37: =IF(G37=19,19,IF(ISBLANK(B37),"",IF(B37=19,0,36-B37))) ->  | E37: =IF(G37=19,0,IF(ISBLANK(B37),"",IF(B37<18,1,IF(B37=18,2,IF(B37>18,3))))) ->  | F37: =IF(G37=19,3,IF(ISBLANK(B37),"",IF(B37=19,0,IF(D37<18,1,IF(D37=18,2,IF(D37>=20,3)))))) ->  | L37: =IF(B37>D37,A37&C37,IF(D37>B37,C37&A37,"/")) -> / | N37: =A37&C37 -> ADAG | O37: =E37 ->  | P37: =C37&A37 -> AGAD | Q37: =F37 ->  | R37: =B37 -> 0 | S37: =D37 -> 
A39: 4 éme MATCH le | B39: à | C39: =A9 -> AD
G40: SI forfait éq recevante
A41: Equipes | B41: score | C41: Equipes | D41: score | E41: Points | F41: Points
A42: =A6 -> AA | C42: =A9 -> AD | D42: =IF(G42=19,19,IF(ISBLANK(B42),"",IF(B42=19,0,36-B42))) ->  | E42: =IF(G42=19,0,IF(ISBLANK(B42),"",IF(B42<18,1,IF(B42=18,2,IF(B42>18,3))))) ->  | F42: =IF(G42=19,3,IF(ISBLANK(B42),"",IF(B42=19,0,IF(D42<18,1,IF(D42=18,2,IF(D42>=20,3)))))) ->  | L42: =IF(B42>D42,A42&C42,IF(D42>B42,C42&A42,"/")) -> / | N42: =A42&C42 -> AAAD | O42: =E42 ->  | P42: =C42&A42 -> ADAA | Q42: =F42 ->  | R42: =B42 -> 0 | S42: =D42 -> 
A43: =A11 -> AF | C43: =A12 -> AG | D43: =IF(G43=19,19,IF(ISBLANK(B43),"",IF(B43=19,0,36-B43))) ->  | E43: =IF(G43=19,0,IF(ISBLANK(B43),"",IF(B43<18,1,IF(B43=18,2,IF(B43>18,3))))) ->  | F43: =IF(G43=19,3,IF(ISBLANK(B43),"",IF(B43=19,0,IF(D43<18,1,IF(D43=18,2,IF(D43>=20,3)))))) ->  | L43: =IF(B43>D43,A43&C43,IF(D43>B43,C43&A43,"/")) -> / | N43: =A43&C43 -> AFAG | O43: =E43 ->  | P43: =C43&A43 -> AGAF | Q43: =F43 ->  | R43: =B43 -> 0 | S43: =D43 -> 
A44: =A7 -> AB | C44: =A8 -> AC | D44: =IF(G44=19,19,IF(ISBLANK(B44),"",IF(B44=19,0,36-B44))) ->  | E44: =IF(G44=19,0,IF(ISBLANK(B44),"",IF(B44<18,1,IF(B44=18,2,IF(B44>18,3))))) ->  | F44: =IF(G44=19,3,IF(ISBLANK(B44),"",IF(B44=19,0,IF(D44<18,1,IF(D44=18,2,IF(D44>=20,3)))))) ->  | L44: =IF(B44>D44,A44&C44,IF(D44>B44,C44&A44,"/")) -> / | N44: =A44&C44 -> ABAC | O44: =E44 ->  | P44: =C44&A44 -> ACAB | Q44: =F44 ->  | R44: =B44 -> 0 | S44: =D44 -> 
A45: =A10 -> AE | C45: =A13 -> AH | D45: =IF(G45=19,19,IF(ISBLANK(B45),"",IF(B45=19,0,36-B45))) ->  | E45: =IF(G45=19,0,IF(ISBLANK(B45),"",IF(B45<18,1,IF(B45=18,2,IF(B45>18,3))))) ->  | F45: =IF(G45=19,3,IF(ISBLANK(B45),"",IF(B45=19,0,IF(D45<18,1,IF(D45=18,2,IF(D45>=20,3)))))) ->  | L45: =IF(B45>D45,A45&C45,IF(D45>B45,C45&A45,"/")) -> / | N45: =A45&C45 -> AEAH | O45: =E45 ->  | P45: =C45&A45 -> AHAE | Q45: =F45 ->  | R45: =B45 -> 0 | S45: =D45 -> 
A47: 5 éme MATCH le | B47: à | C47: =A10 -> AE
G48: SI forfait éq recevante
A49: Equipes | B49: score | C49: Equipes | D49: score | E49: Points | F49: Points
A50: =A6 -> AA | C50: =A11 -> AF | D50: =IF(G50=19,19,IF(ISBLANK(B50),"",IF(B50=19,0,36-B50))) ->  | E50: =IF(G50=19,0,IF(ISBLANK(B50),"",IF(B50<18,1,IF(B50=18,2,IF(B50>18,3))))) ->  | F50: =IF(G50=19,3,IF(ISBLANK(B50),"",IF(B50=19,0,IF(D50<18,1,IF(D50=18,2,IF(D50>=20,3)))))) ->  | L50: =IF(B50>D50,A50&C50,IF(D50>B50,C50&A50,"/")) -> / | N50: =A50&C50 -> AAAF | O50: =E50 ->  | P50: =C50&A50 -> AFAA | Q50: =F50 ->  | R50: =B50 -> 0 | S50: =D50 -> 
A51: =A9 -> AD | C51: =A13 -> AH | D51: =IF(G51=19,19,IF(ISBLANK(B51),"",IF(B51=19,0,36-B51))) ->  | E51: =IF(G51=19,0,IF(ISBLANK(B51),"",IF(B51<18,1,IF(B51=18,2,IF(B51>18,3))))) ->  | F51: =IF(G51=19,3,IF(ISBLANK(B51),"",IF(B51=19,0,IF(D51<18,1,IF(D51=18,2,IF(D51>=20,3)))))) ->  | L51: =IF(B51>D51,A51&C51,IF(D51>B51,C51&A51,"/")) -> / | N51: =A51&C51 -> ADAH | O51: =E51 ->  | P51: =C51&A51 -> AHAD | Q51: =F51 ->  | R51: =B51 -> 0 | S51: =D51 -> 
A52: =A7 -> AB | C52: =A12 -> AG | D52: =IF(G52=19,19,IF(ISBLANK(B52),"",IF(B52=19,0,36-B52))) ->  | E52: =IF(G52=19,0,IF(ISBLANK(B52),"",IF(B52<18,1,IF(B52=18,2,IF(B52>18,3))))) ->  | F52: =IF(G52=19,3,IF(ISBLANK(B52),"",IF(B52=19,0,IF(D52<18,1,IF(D52=18,2,IF(D52>=20,3)))))) ->  | L52: =IF(B52>D52,A52&C52,IF(D52>B52,C52&A52,"/")) -> / | N52: =A52&C52 -> ABAG | O52: =E52 ->  | P52: =C52&A52 -> AGAB | Q52: =F52 ->  | R52: =B52 -> 0 | S52: =D52 -> 
A53: =A8 -> AC | C53: =A10 -> AE | D53: =IF(G53=19,19,IF(ISBLANK(B53),"",IF(B53=19,0,36-B53))) ->  | E53: =IF(G53=19,0,IF(ISBLANK(B53),"",IF(B53<18,1,IF(B53=18,2,IF(B53>18,3))))) ->  | F53: =IF(G53=19,3,IF(ISBLANK(B53),"",IF(B53=19,0,IF(D53<18,1,IF(D53=18,2,IF(D53>=20,3)))))) ->  | L53: =IF(B53>D53,A53&C53,IF(D53>B53,C53&A53,"/")) -> / | N53: =A53&C53 -> ACAE | O53: =E53 ->  | P53: =C53&A53 -> AEAC | Q53: =F53 ->  | R53: =B53 -> 0 | S53: =D53 -> 
A55: 6 éme MATCH le | B55: à | C55: =A11 -> AF
G56: SI forfait éq recevante
A57: Equipes | B57: score | C57: Equipes | D57: score | E57: Points | F57: Points
A58: =A7 -> AB | C58: =A9 -> AD | D58: =IF(G58=19,19,IF(ISBLANK(B58),"",IF(B58=19,0,36-B58))) ->  | E58: =IF(G58=19,0,IF(ISBLANK(B58),"",IF(B58<18,1,IF(B58=18,2,IF(B58>18,3))))) ->  | F58: =IF(G58=19,3,IF(ISBLANK(B58),"",IF(B58=19,0,IF(D58<18,1,IF(D58=18,2,IF(D58>=20,3)))))) ->  | L58: =IF(B58>D58,A58&C58,IF(D58>B58,C58&A58,"/")) -> / | N58: =A58&C58 -> ABAD | O58: =E58 ->  | P58: =C58&A58 -> ADAB | Q58: =F58 ->  | R58: =B58 -> 0 | S58: =D58 -> 
A59: =A10 -> AE | C59: =A6 -> AA | D59: =IF(G59=19,19,IF(ISBLANK(B59),"",IF(B59=19,0,36-B59))) ->  | E59: =IF(G59=19,0,IF(ISBLANK(B59),"",IF(B59<18,1,IF(B59=18,2,IF(B59>18,3))))) ->  | F59: =IF(G59=19,3,IF(ISBLANK(B59),"",IF(B59=19,0,IF(D59<18,1,IF(D59=18,2,IF(D59>=20,3)))))) ->  | L59: =IF(B59>D59,A59&C59,IF(D59>B59,C59&A59,"/")) -> / | N59: =A59&C59 -> AEAA | O59: =E59 ->  | P59: =C59&A59 -> AAAE | Q59: =F59 ->  | R59: =B59 -> 0 | S59: =D59 -> 
A60: =A12 -> AG | C60: =A8 -> AC | D60: =IF(G60=19,19,IF(ISBLANK(B60),"",IF(B60=19,0,36-B60))) ->  | E60: =IF(G60=19,0,IF(ISBLANK(B60),"",IF(B60<18,1,IF(B60=18,2,IF(B60>18,3))))) ->  | F60: =IF(G60=19,3,IF(ISBLANK(B60),"",IF(B60=19,0,IF(D60<18,1,IF(D60=18,2,IF(D60>=20,3)))))) ->  | L60: =IF(B60>D60,A60&C60,IF(D60>B60,C60&A60,"/")) -> / | N60: =A60&C60 -> AGAC | O60: =E60 ->  | P60: =C60&A60 -> ACAG | Q60: =F60 ->  | R60: =B60 -> 0 | S60: =D60 -> 
A61: =A11 -> AF | C61: =A13 -> AH | D61: =IF(G61=19,19,IF(ISBLANK(B61),"",IF(B61=19,0,36-B61))) ->  | E61: =IF(G61=19,0,IF(ISBLANK(B61),"",IF(B61<18,1,IF(B61=18,2,IF(B61>18,3))))) ->  | F61: =IF(G61=19,3,IF(ISBLANK(B61),"",IF(B61=19,0,IF(D61<18,1,IF(D61=18,2,IF(D61>=20,3)))))) ->  | L61: =IF(B61>D61,A61&C61,IF(D61>B61,C61&A61,"/")) -> / | N61: =A61&C61 -> AFAH | O61: =E61 ->  | P61: =C61&A61 -> AHAF | Q61: =F61 ->  | R61: =B61 -> 0 | S61: =D61 -> 
A63: 7 éme MATCH le | B63: à | C63: =A12 -> AG
G64: SI forfait éq recevante
A65: Equipes | B65: score | C65: Equipes | D65: score | E65: Points | F65: Points
A66: =A6 -> AA | C66: =A12 -> AG | D66: =IF(G66=19,19,IF(ISBLANK(B66),"",IF(B66=19,0,36-B66))) ->  | E66: =IF(G66=19,0,IF(ISBLANK(B66),"",IF(B66<18,1,IF(B66=18,2,IF(B66>18,3))))) ->  | F66: =IF(G66=19,3,IF(ISBLANK(B66),"",IF(B66=19,0,IF(D66<18,1,IF(D66=18,2,IF(D66>=20,3)))))) ->  | L66: =IF(B66>D66,A66&C66,IF(D66>B66,C66&A66,"/")) -> / | N66: =A66&C66 -> AAAG | O66: =E66 ->  | P66: =C66&A66 -> AGAA | Q66: =F66 ->  | R66: =B66 -> 0 | S66: =D66 -> 
A67: =A7 -> AB | C67: =A11 -> AF | D67: =IF(G67=19,19,IF(ISBLANK(B67),"",IF(B67=19,0,36-B67))) ->  | E67: =IF(G67=19,0,IF(ISBLANK(B67),"",IF(B67<18,1,IF(B67=18,2,IF(B67>18,3))))) ->  | F67: =IF(G67=19,3,IF(ISBLANK(B67),"",IF(B67=19,0,IF(D67<18,1,IF(D67=18,2,IF(D67>=20,3)))))) ->  | L67: =IF(B67>D67,A67&C67,IF(D67>B67,C67&A67,"/")) -> / | N67: =A67&C67 -> ABAF | O67: =E67 ->  | P67: =C67&A67 -> AFAB | Q67: =F67 ->  | R67: =B67 -> 0 | S67: =D67 -> 
A68: =A10 -> AE | C68: =A9 -> AD | D68: =IF(G68=19,19,IF(ISBLANK(B68),"",IF(B68=19,0,36-B68))) ->  | E68: =IF(G68=19,0,IF(ISBLANK(B68),"",IF(B68<18,1,IF(B68=18,2,IF(B68>18,3))))) ->  | F68: =IF(G68=19,3,IF(ISBLANK(B68),"",IF(B68=19,0,IF(D68<18,1,IF(D68=18,2,IF(D68>=20,3)))))) ->  | L68: =IF(B68>D68,A68&C68,IF(D68>B68,C68&A68,"/")) -> / | N68: =A68&C68 -> AEAD | O68: =E68 ->  | P68: =C68&A68 -> ADAE | Q68: =F68 ->  | R68: =B68 -> 0 | S68: =D68 -> 
A69: =A8 -> AC | C69: =A13 -> AH | D69: =IF(G69=19,19,IF(ISBLANK(B69),"",IF(B69=19,0,36-B69))) ->  | E69: =IF(G69=19,0,IF(ISBLANK(B69),"",IF(B69<18,1,IF(B69=18,2,IF(B69>18,3))))) ->  | F69: =IF(G69=19,3,IF(ISBLANK(B69),"",IF(B69=19,0,IF(D69<18,1,IF(D69=18,2,IF(D69>=20,3)))))) ->  | L69: =IF(B69>D69,A69&C69,IF(D69>B69,C69&A69,"/")) -> / | N69: =A69&C69 -> ACAH | O69: =E69 ->  | P69: =C69&A69 -> AHAC | Q69: =F69 ->  | R69: =B69 -> 0 | S69: =D69 -> 
C70: CLASSEMENT | G70: Classt Final | H70: Rencontres entre exaequos
A71: EQUIPES | C71: POINTS | D71: POUR | E71: CONTRE | F71: DIFF | H71: POINTS Exaequos | I71: Exaq | J71: n° | K71: =A6 -> AA | L71: =A7 -> AB | M71: =A8 -> AC | N71: =A9 -> AD | O71: =A10 -> AE | P71: =A11 -> AF | Q71: =A12 -> AG | R71: =A13 -> AH | S71: Pts matchs | W71: 1000000*Pts matchs +1000 (Diff + abs(diff mini) )+Pour | X71: RANG | Y71: DIFF Exaequos | Z71: POUR Exaequos
B72: 1A | C72: 0 | D72: 0 | E72: 0 | F72: 0 | G72: 1 | H72: =IF(S72>0,S72,"") ->  | I72: =COUNTIF($C$72:$C$79,C72) -> 8 | J72: =IF(AND(I72>1,COUNTIFS(I$72:I72,I72,C$72:C72,C72)=1),MAX(J$71:J71)+1,"") -> 1 | K72: =IF($A72=K$71,"",IF(INDEX($C$72:$C$79,MATCH(K$71,$A$72:$A$79,0))=$C72,IFERROR(VLOOKUP($A72&K$71,$N$18:$O$69,2,0), VLOOKUP(K$71&$A72,$N$18:$Q$69,4,0)), "")) ->  | S72: =SUM(K72:R72) ->  | W72: =IF(I72<3,S72*1000000+(F72+ABS(MIN($F$72:$F$79)))*1000+D72,S72*1000000+U96*1000+Z72) ->  | X72: =IF(I72>2,RANK(W72,OFFSET(W$71,MATCH(I72,$I$72:$I$79,0),,I72))) ->  | Y72: =IF(S96=0,"",S96) ->  | Z72: =IF(S80=0,"",S80) -> 
B73: 1B | C73: 0 | D73: 0 | E73: 0 | F73: 0 | G73: 2 | I73: 8 | J73: =IF(AND(I73>1,COUNTIFS(I$72:I73,I73,C$72:C73,C73)=1),MAX(J$71:J72)+1,"") ->  | S73: =SUM(K73:R73) ->  | W73: =IF(I73<3,S73*1000000+(F73+ABS(MIN($F$72:$F$79)))*1000+D73,S73*1000000+U97*1000+Z73) ->  | X73: =IF(I73>2,RANK(W73,OFFSET(W$71,MATCH(I73,$I$72:$I$79,0),,I73))) -> 
B74: 1C | C74: 0 | D74: 0 | E74: 0 | F74: 0 | G74: 3 | I74: 8 | J74: =IF(AND(I74>1,COUNTIFS(I$72:I74,I74,C$72:C74,C74)=1),MAX(J$71:J73)+1,"") -> 
B75: 1D | C75: 0 | D75: 0 | E75: 0 | F75: 0 | G75: 4 | I75: 8 | J75: =IF(AND(I75>1,COUNTIFS(I$72:I75,I75,C$72:C75,C75)=1),MAX(J$71:J74)+1,"") -> 
B76: 1E | C76: 0 | D76: 0 | E76: 0 | F76: 0 | G76: 5 | I76: 8 | J76: =IF(AND(I76>1,COUNTIFS(I$72:I76,I76,C$72:C76,C76)=1),MAX(J$71:J75)+1,"") -> 
B77: 1F | C77: 0 | D77: 0 | E77: 0 | F77: 0 | G77: 6 | I77: 8 | J77: =IF(AND(I77>1,COUNTIFS(I$72:I77,I77,C$72:C77,C77)=1),MAX(J$71:J76)+1,"") -> 
B78: 1G | C78: 0 | D78: 0 | E78: 0 | F78: 0 | G78: 7 | I78: 8 | J78: =IF(AND(I78>1,COUNTIFS(I$72:I78,I78,C$72:C78,C78)=1),MAX(J$71:J77)+1,"") -> 
B79: 1H | C79: 0 | D79: 0 | E79: 0 | F79: 0 | G79: 8 | I79: 8 | J79: =IF(AND(I79>1,COUNTIFS(I$72:I79,I79,C$72:C79,C79)=1),MAX(J$71:J78)+1,"") -> 
I80: POUR | J80: =A72 -> 0 | K80: =IF($A72=K$71,"",IF(INDEX($C$72:$C$79,MATCH(K$71,$A$72:$A$79,0))=$C72,IFERROR(VLOOKUP($A72&K$71,$N$18:$R$69,5,0), VLOOKUP(K$71&$A72,$N$18:$S$69,6,0)), "")) -> 
J81: 0
J82: 0
J83: 0
J84: 0
J85: 0
J86: 0
J87: 0
I88: CONTRE | J88: =J80 -> 0 | K88: =INDEX($K$80:$R$87,MATCH(K$71,$J$80:$J$87,0),MATCH($J80,$K$71:$R$71,0)) ->  | L88: =INDEX($K$80:$R$87,MATCH(L$71,$J$80:$J$87,0),MATCH($J80,$K$71:$R$71,0)) -> 
J89: =J81 -> 0 | K89: =INDEX($K$80:$R$87,MATCH(K$71,$J$80:$J$87,0),MATCH($J81,$K$71:$R$71,0)) -> 
J90: 0
J91: 0
J92: 0
J93: 0
J94: 0
J95: 0 | U95: Diff pondérée
I96: DIFF | J96: =J88 -> 0 | S96: =S80-S88 ->  | U96: =S96+ABS(MIN($S$96:$S$103)) -> 
J97: =J89 -> 0 | S97: =S81-S89 -> 
J98: 0
J99: 0
J100: 0
J101: 0
J102: 0 | U102: =S102+ABS(MIN($S$96:$S$103)) -> 
J103: 0 | U103: =S103+ABS(MIN($S$96:$S$103)) -> 

Sheet P6
G1: 3
A2: CHAMPIONNAT DES CLUBS
A4: POULE 6
A5: EQUIPES | C5: POINTS | D5: Pour | E5: Contre | F5: Diff
A6: AA | B6: 1A | C6: =SUMIF($A$18:$A$69,A6,$E$18:$E$69)+SUMIF($C$18:$C$69,A6,$F$18:$F$69) -> 0 | D6: =SUMIF($A$18:$A$69,$A6,$B$18:$B$69)+SUMIF($C$18:$C$69,$A6,$D$18:$D$69) -> 0 | E6: =SUMIF($C$18:$C$69,$A6,$B$18:$B$69)+SUMIF($A$18:$A$69,$A6,$D$18:$D$69) -> 0 | F6: =D6-E6 -> 0
A7: AB | B7: 1B | C7: =SUMIF($A$18:$A$69,A7,$E$18:$E$69)+SUMIF($C$18:$C$69,A7,$F$18:$F$69) -> 0 | D7: =SUMIF($A$18:$A$69,$A7,$B$18:$B$69)+SUMIF($C$18:$C$69,$A7,$D$18:$D$69) -> 0 | E7: =SUMIF($C$18:$C$69,$A7,$B$18:$B$69)+SUMIF($A$18:$A$69,$A7,$D$18:$D$69) -> 0 | F7: 0
A8: AC | B8: 1C | C8: =SUMIF($A$18:$A$69,A8,$E$18:$E$69)+SUMIF($C$18:$C$69,A8,$F$18:$F$69) -> 0 | D8: 0 | E8: 0 | F8: 0
A9: AD | B9: 1D | C9: 0 | D9: 0 | E9: 0 | F9: 0
A10: AE | B10: 1E | C10: 0 | D10: 0 | E10: 0 | F10: 0
A11: AF | B11: 1F | C11: 0 | D11: 0 | E11: 0 | F11: 0
A12: AG | B12: 1G | C12: 0 | D12: 0 | E12: 0 | F12: =D12-E12 -> 0
A13: AH | B13: 1H | C13: 0 | D13: =SUMIF($A$18:$A$69,$A13,$B$18:$B$69)+SUMIF($C$18:$C$69,$A13,$D$18:$D$69) -> 0 | E13: 0 | F13: =D13-E13 -> 0
A15: 1er MATCH le | B15: à | C15: =A6 -> AA
G16: SI forfait éq recevante
A17: Equipes | B17: score | C17: Equipes | D17: score | E17: Points | F17: Points
A18: =A6 -> AA | C18: =A7 -> AB | D18: =IF(G18=19,19,IF(ISBLANK(B18),"",IF(B18=19,0,36-B18))) ->  | E18: =IF(G18=19,0,IF(ISBLANK(B18),"",IF(B18<18,1,IF(B18=18,2,IF(B18>18,3))))) ->  | F18: =IF(G18=19,3,IF(ISBLANK(B18),"",IF(B18=19,0,IF(D18<18,1,IF(D18=18,2,IF(D18>=20,3)))))) ->  | L18: =IF(B18>D18,A18&C18,IF(D18>B18,C18&A18,"/")) -> / | N18: =A18&C18 -> AAAB | O18: =E18 ->  | P18: =C18&A18 -> ABAA | Q18: =F18 ->  | R18: =B18 -> 0 | S18: =D18 -> 
A19: =A8 -> AC | C19: =A9 -> AD | D19: =IF(G19=19,19,IF(ISBLANK(B19),"",IF(B19=19,0,36-B19))) ->  | E19: =IF(G19=19,0,IF(ISBLANK(B19),"",IF(B19<18,1,IF(B19=18,2,IF(B19>18,3))))) ->  | F19: =IF(G19=19,3,IF(ISBLANK(B19),"",IF(B19=19,0,IF(D19<18,1,IF(D19=18,2,IF(D19>=20,3)))))) ->  | L19: =IF(B19>D19,A19&C19,IF(D19>B19,C19&A19,"/")) -> / | N19: =A19&C19 -> ACAD | O19: =E19 ->  | P19: =C19&A19 -> ADAC | Q19: =F19 ->  | R19: =B19 -> 0 | S19: =D19 -> 
A20: =A10 -> AE | C20: =A11 -> AF | D20: =IF(G20=19,19,IF(ISBLANK(B20),"",IF(B20=19,0,36-B20))) ->  | E20: =IF(G20=19,0,IF(ISBLANK(B20),"",IF(B20<18,1,IF(B20=18,2,IF(B20>18,3))))) ->  | F20: =IF(G20=19,3,IF(ISBLANK(B20),"",IF(B20=19,0,IF(D20<18,1,IF(D20=18,2,IF(D20>=20,3)))))) ->  | L20: =IF(B20>D20,A20&C20,IF(D20>B20,C20&A20,"/")) -> / | N20: =A20&C20 -> AEAF | O20: =E20 ->  | P20: =C20&A20 -> AFAE | Q20: =F20 ->  | R20: =B20 -> 0 | S20: =D20 -> 
A21: =A12 -> AG | C21: =A13 -> AH | D21: =IF(G21=19,19,IF(ISBLANK(B21),"",IF(B21=19,0,36-B21))) ->  | E21: =IF(G21=19,0,IF(ISBLANK(B21),"",IF(B21<18,1,IF(B21=18,2,IF(B21>18,3))))) ->  | F21: =IF(G21=19,3,IF(ISBLANK(B21),"",IF(B21=19,0,IF(D21<18,1,IF(D21=18,2,IF(D21>=20,3)))))) ->  | L21: =IF(B21>D21,A21&C21,IF(D21>B21,C21&A21,"/")) -> / | N21: =A21&C21 -> AGAH | O21: =E21 ->  | P21: =C21&A21 -> AHAG | Q21: =F21 ->  | R21: =B21 -> 0 | S21: =D21 -> 
A23: 2 éme MATCH le | B23: à | C23: =A7 -> AB
G24: SI forfait éq recevante
A25: Equipes | B25: score | C25: Equipes | D25: score | E25: Points | F25: Points
A26: =A6 -> AA | C26: =A8 -> AC | D26: =IF(G26=19,19,IF(ISBLANK(B26),"",IF(B26=19,0,36-B26))) ->  | E26: =IF(G26=19,0,IF(ISBLANK(B26),"",IF(B26<18,1,IF(B26=18,2,IF(B26>18,3))))) ->  | F26: =IF(G26=19,3,IF(ISBLANK(B26),"",IF(B26=19,0,IF(D26<18,1,IF(D26=18,2,IF(D26>=20,3)))))) ->  | L26: =IF(B26>D26,A26&C26,IF(D26>B26,C26&A26,"/")) -> / | N26: =A26&C26 -> AAAC | O26: =E26 ->  | P26: =C26&A26 -> ACAA | Q26: =F26 ->  | R26: =B26 -> 0 | S26: =D26 -> 
A27: =A7 -> AB | C27: =A13 -> AH | D27: =IF(G27=19,19,IF(ISBLANK(B27),"",IF(B27=19,0,36-B27))) ->  | E27: =IF(G27=19,0,IF(ISBLANK(B27),"",IF(B27<18,1,IF(B27=18,2,IF(B27>18,3))))) ->  | F27: =IF(G27=19,3,IF(ISBLANK(B27),"",IF(B27=19,0,IF(D27<18,1,IF(D27=18,2,IF(D27>=20,3)))))) ->  | L27: =IF(B27>D27,A27&C27,IF(D27>B27,C27&A27,"/")) -> / | N27: =A27&C27 -> ABAH | O27: =E27 ->  | P27: =C27&A27 -> AHAB | Q27: =F27 ->  | R27: =B27 -> 0 | S27: =D27 -> 
A28: =A9 -> AD | C28: =A11 -> AF | D28: =IF(G28=19,19,IF(ISBLANK(B28),"",IF(B28=19,0,36-B28))) ->  | E28: =IF(G28=19,0,IF(ISBLANK(B28),"",IF(B28<18,1,IF(B28=18,2,IF(B28>18,3))))) ->  | F28: =IF(G28=19,3,IF(ISBLANK(B28),"",IF(B28=19,0,IF(D28<18,1,IF(D28=18,2,IF(D28>=20,3)))))) ->  | L28: =IF(B28>D28,A28&C28,IF(D28>B28,C28&A28,"/")) -> / | N28: =A28&C28 -> ADAF | O28: =E28 ->  | P28: =C28&A28 -> AFAD | Q28: =F28 ->  | R28: =B28 -> 0 | S28: =D28 -> 
A29: =A10 -> AE | C29: =A12 -> AG | D29: =IF(G29=19,19,IF(ISBLANK(B29),"",IF(B29=19,0,36-B29))) ->  | E29: =IF(G29=19,0,IF(ISBLANK(B29),"",IF(B29<18,1,IF(B29=18,2,IF(B29>18,3))))) ->  | F29: =IF(G29=19,3,IF(ISBLANK(B29),"",IF(B29=19,0,IF(D29<18,1,IF(D29=18,2,IF(D29>=20,3)))))) ->  | L29: =IF(B29>D29,A29&C29,IF(D29>B29,C29&A29,"/")) -> / | N29: =A29&C29 -> AEAG | O29: =E29 ->  | P29: =C29&A29 -> AGAE | Q29: =F29 ->  | R29: =B29 -> 0 | S29: =D29 -> 
A31: 3 éme MATCH le | B31: à | C31: =A8 -> AC
G32: SI forfait éq recevante
A33: Equipes | B33: score | C33: Equipes | D33: score | E33: Points | F33: Points
A34: =A6 -> AA | C34: =A13 -> AH | D34: =IF(G34=19,19,IF(ISBLANK(B34),"",IF(B34=19,0,36-B34))) ->  | E34: =IF(G34=19,0,IF(ISBLANK(B34),"",IF(B34<18,1,IF(B34=18,2,IF(B34>18,3))))) ->  | F34: =IF(G34=19,3,IF(ISBLANK(B34),"",IF(B34=19,0,IF(D34<18,1,IF(D34=18,2,IF(D34>=20,3)))))) ->  | L34: =IF(B34>D34,A34&C34,IF(D34>B34,C34&A34,"/")) -> / | N34: =A34&C34 -> AAAH | O34: =E34 ->  | P34: =C34&A34 -> AHAA | Q34: =F34 ->  | R34: =B34 -> 0 | S34: =D34 -> 
A35: =A7 -> AB | C35: =A10 -> AE | D35: =IF(G35=19,19,IF(ISBLANK(B35),"",IF(B35=19,0,36-B35))) ->  | E35: =IF(G35=19,0,IF(ISBLANK(B35),"",IF(B35<18,1,IF(B35=18,2,IF(B35>18,3))))) ->  | F35: =IF(G35=19,3,IF(ISBLANK(B35),"",IF(B35=19,0,IF(D35<18,1,IF(D35=18,2,IF(D35>=20,3)))))) ->  | L35: =IF(B35>D35,A35&C35,IF(D35>B35,C35&A35,"/")) -> / | N35: =A35&C35 -> ABAE | O35: =E35 ->  | P35: =C35&A35 -> AEAB | Q35: =F35 ->  | R35: =B35 -> 0 | S35: =D35 -> 
A36: =A8 -> AC | C36: =A11 -> AF | D36: =IF(G36=19,19,IF(ISBLANK(B36),"",IF(B36=19,0,36-B36))) ->  | E36: =IF(G36=19,0,IF(ISBLANK(B36),"",IF(B36<18,1,IF(B36=18,2,IF(B36>18,3))))) ->  | F36: =IF(G36=19,3,IF(ISBLANK(B36),"",IF(B36=19,0,IF(D36<18,1,IF(D36=18,2,IF(D36>=20,3)))))) ->  | L36: =IF(B36>D36,A36&C36,IF(D36>B36,C36&A36,"/")) -> / | N36: =A36&C36 -> ACAF | O36: =E36 ->  | P36: =C36&A36 -> AFAC | Q36: =F36 ->  | R36: =B36 -> 0 | S36: =D36 -> 
A37: =A9 -> AD | C37: =A12 -> AG | D37: =IF(G37=19,19,IF(ISBLANK(B37),"",IF(B37=19,0,36-B37))) ->  | E37: =IF(G37=19,0,IF(ISBLANK(B37),"",IF(B37<18,1,IF(B37=18,2,IF(B37>18,3))))) ->  | F37: =IF(G37=19,3,IF(ISBLANK(B37),"",IF(B37=19,0,IF(D37<18,1,IF(D37=18,2,IF(D37>=20,3)))))) ->  | L37: =IF(B37>D37,A37&C37,IF(D37>B37,C37&A37,"/")) -> / | N37: =A37&C37 -> ADAG | O37: =E37 ->  | P37: =C37&A37 -> AGAD | Q37: =F37 ->  | R37: =B37 -> 0 | S37: =D37 -> 
A39: 4 éme MATCH le | B39: à | C39: =A9 -> AD
G40: SI forfait éq recevante
A41: Equipes | B41: score | C41: Equipes | D41: score | E41: Points | F41: Points
A42: =A6 -> AA | C42: =A9 -> AD | D42: =IF(G42=19,19,IF(ISBLANK(B42),"",IF(B42=19,0,36-B42))) ->  | E42: =IF(G42=19,0,IF(ISBLANK(B42),"",IF(B42<18,1,IF(B42=18,2,IF(B42>18,3))))) ->  | F42: =IF(G42=19,3,IF(ISBLANK(B42),"",IF(B42=19,0,IF(D42<18,1,IF(D42=18,2,IF(D42>=20,3)))))) ->  | L42: =IF(B42>D42,A42&C42,IF(D42>B42,C42&A42,"/")) -> / | N42: =A42&C42 -> AAAD | O42: =E42 ->  | P42: =C42&A42 -> ADAA | Q42: =F42 ->  | R42: =B42 -> 0 | S42: =D42 -> 
A43: =A11 -> AF | C43: =A12 -> AG | D43: =IF(G43=19,19,IF(ISBLANK(B43),"",IF(B43=19,0,36-B43))) ->  | E43: =IF(G43=19,0,IF(ISBLANK(B43),"",IF(B43<18,1,IF(B43=18,2,IF(B43>18,3))))) ->  | F43: =IF(G43=19,3,IF(ISBLANK(B43),"",IF(B43=19,0,IF(D43<18,1,IF(D43=18,2,IF(D43>=20,3)))))) ->  | L43: =IF(B43>D43,A43&C43,IF(D43>B43,C43&A43,"/")) -> / | N43: =A43&C43 -> AFAG | O43: =E43 ->  | P43: =C43&A43 -> AGAF | Q43: =F43 ->  | R43: =B43 -> 0 | S43: =D43 -> 
A44: =A7 -> AB | C44: =A8 -> AC | D44: =IF(G44=19,19,IF(ISBLANK(B44),"",IF(B44=19,0,36-B44))) ->  | E44: =IF(G44=19,0,IF(ISBLANK(B44),"",IF(B44<18,1,IF(B44=18,2,IF(B44>18,3))))) ->  | F44: =IF(G44=19,3,IF(ISBLANK(B44),"",IF(B44=19,0,IF(D44<18,1,IF(D44=18,2,IF(D44>=20,3)))))) ->  | L44: =IF(B44>D44,A44&C44,IF(D44>B44,C44&A44,"/")) -> / | N44: =A44&C44 -> ABAC | O44: =E44 ->  | P44: =C44&A44 -> ACAB | Q44: =F44 ->  | R44: =B44 -> 0 | S44: =D44 -> 
A45: =A10 -> AE | C45: =A13 -> AH | D45: =IF(G45=19,19,IF(ISBLANK(B45),"",IF(B45=19,0,36-B45))) ->  | E45: =IF(G45=19,0,IF(ISBLANK(B45),"",IF(B45<18,1,IF(B45=18,2,IF(B45>18,3))))) ->  | F45: =IF(G45=19,3,IF(ISBLANK(B45),"",IF(B45=19,0,IF(D45<18,1,IF(D45=18,2,IF(D45>=20,3)))))) ->  | L45: =IF(B45>D45,A45&C45,IF(D45>B45,C45&A45,"/")) -> / | N45: =A45&C45 -> AEAH | O45: =E45 ->  | P45: =C45&A45 -> AHAE | Q45: =F45 ->  | R45: =B45 -> 0 | S45: =D45 -> 
A47: 5 éme MATCH le | B47: à | C47: =A10 -> AE
G48: SI forfait éq recevante
A49: Equipes | B49: score | C49: Equipes | D49: score | E49: Points | F49: Points
A50: =A6 -> AA | C50: =A11 -> AF | D50: =IF(G50=19,19,IF(ISBLANK(B50),"",IF(B50=19,0,36-B50))) ->  | E50: =IF(G50=19,0,IF(ISBLANK(B50),"",IF(B50<18,1,IF(B50=18,2,IF(B50>18,3))))) ->  | F50: =IF(G50=19,3,IF(ISBLANK(B50),"",IF(B50=19,0,IF(D50<18,1,IF(D50=18,2,IF(D50>=20,3)))))) ->  | L50: =IF(B50>D50,A50&C50,IF(D50>B50,C50&A50,"/")) -> / | N50: =A50&C50 -> AAAF | O50: =E50 ->  | P50: =C50&A50 -> AFAA | Q50: =F50 ->  | R50: =B50 -> 0 | S50: =D50 -> 
A51: =A9 -> AD | C51: =A13 -> AH | D51: =IF(G51=19,19,IF(ISBLANK(B51),"",IF(B51=19,0,36-B51))) ->  | E51: =IF(G51=19,0,IF(ISBLANK(B51),"",IF(B51<18,1,IF(B51=18,2,IF(B51>18,3))))) ->  | F51: =IF(G51=19,3,IF(ISBLANK(B51),"",IF(B51=19,0,IF(D51<18,1,IF(D51=18,2,IF(D51>=20,3)))))) ->  | L51: =IF(B51>D51,A51&C51,IF(D51>B51,C51&A51,"/")) -> / | N51: =A51&C51 -> ADAH | O51: =E51 ->  | P51: =C51&A51 -> AHAD | Q51: =F51 ->  | R51: =B51 -> 0 | S51: =D51 -> 
A52: =A7 -> AB | C52: =A12 -> AG | D52: =IF(G52=19,19,IF(ISBLANK(B52),"",IF(B52=19,0,36-B52))) ->  | E52: =IF(G52=19,0,IF(ISBLANK(B52),"",IF(B52<18,1,IF(B52=18,2,IF(B52>18,3))))) ->  | F52: =IF(G52=19,3,IF(ISBLANK(B52),"",IF(B52=19,0,IF(D52<18,1,IF(D52=18,2,IF(D52>=20,3)))))) ->  | L52: =IF(B52>D52,A52&C52,IF(D52>B52,C52&A52,"/")) -> / | N52: =A52&C52 -> ABAG | O52: =E52 ->  | P52: =C52&A52 -> AGAB | Q52: =F52 ->  | R52: =B52 -> 0 | S52: =D52 -> 
A53: =A8 -> AC | C53: =A10 -> AE | D53: =IF(G53=19,19,IF(ISBLANK(B53),"",IF(B53=19,0,36-B53))) ->  | E53: =IF(G53=19,0,IF(ISBLANK(B53),"",IF(B53<18,1,IF(B53=18,2,IF(B53>18,3))))) ->  | F53: =IF(G53=19,3,IF(ISBLANK(B53),"",IF(B53=19,0,IF(D53<18,1,IF(D53=18,2,IF(D53>=20,3)))))) ->  | L53: =IF(B53>D53,A53&C53,IF(D53>B53,C53&A53,"/")) -> / | N53: =A53&C53 -> ACAE | O53: =E53 ->  | P53: =C53&A53 -> AEAC | Q53: =F53 ->  | R53: =B53 -> 0 | S53: =D53 -> 
A55: 6 éme MATCH le | B55: à | C55: =A11 -> AF
G56: SI forfait éq recevante
A57: Equipes | B57: score | C57: Equipes | D57: score | E57: Points | F57: Points
A58: =A7 -> AB | C58: =A9 -> AD | D58: =IF(G58=19,19,IF(ISBLANK(B58),"",IF(B58=19,0,36-B58))) ->  | E58: =IF(G58=19,0,IF(ISBLANK(B58),"",IF(B58<18,1,IF(B58=18,2,IF(B58>18,3))))) ->  | F58: =IF(G58=19,3,IF(ISBLANK(B58),"",IF(B58=19,0,IF(D58<18,1,IF(D58=18,2,IF(D58>=20,3)))))) ->  | L58: =IF(B58>D58,A58&C58,IF(D58>B58,C58&A58,"/")) -> / | N58: =A58&C58 -> ABAD | O58: =E58 ->  | P58: =C58&A58 -> ADAB | Q58: =F58 ->  | R58: =B58 -> 0 | S58: =D58 -> 
A59: =A10 -> AE | C59: =A6 -> AA | D59: =IF(G59=19,19,IF(ISBLANK(B59),"",IF(B59=19,0,36-B59))) ->  | E59: =IF(G59=19,0,IF(ISBLANK(B59),"",IF(B59<18,1,IF(B59=18,2,IF(B59>18,3))))) ->  | F59: =IF(G59=19,3,IF(ISBLANK(B59),"",IF(B59=19,0,IF(D59<18,1,IF(D59=18,2,IF(D59>=20,3)))))) ->  | L59: =IF(B59>D59,A59&C59,IF(D59>B59,C59&A59,"/")) -> / | N59: =A59&C59 -> AEAA | O59: =E59 ->  | P59: =C59&A59 -> AAAE | Q59: =F59 ->  | R59: =B59 -> 0 | S59: =D59 -> 
A60: =A12 -> AG | C60: =A8 -> AC | D60: =IF(G60=19,19,IF(ISBLANK(B60),"",IF(B60=19,0,36-B60))) ->  | E60: =IF(G60=19,0,IF(ISBLANK(B60),"",IF(B60<18,1,IF(B60=18,2,IF(B60>18,3))))) ->  | F60: =IF(G60=19,3,IF(ISBLANK(B60),"",IF(B60=19,0,IF(D60<18,1,IF(D60=18,2,IF(D60>=20,3)))))) ->  | L60: =IF(B60>D60,A60&C60,IF(D60>B60,C60&A60,"/")) -> / | N60: =A60&C60 -> AGAC | O60: =E60 ->  | P60: =C60&A60 -> ACAG | Q60: =F60 ->  | R60: =B60 -> 0 | S60: =D60 -> 
A61: =A11 -> AF | C61: =A13 -> AH | D61: =IF(G61=19,19,IF(ISBLANK(B61),"",IF(B61=19,0,36-B61))) ->  | E61: =IF(G61=19,0,IF(ISBLANK(B61),"",IF(B61<18,1,IF(B61=18,2,IF(B61>18,3))))) ->  | F61: =IF(G61=19,3,IF(ISBLANK(B61),"",IF(B61=19,0,IF(D61<18,1,IF(D61=18,2,IF(D61>=20,3)))))) ->  | L61: =IF(B61>D61,A61&C61,IF(D61>B61,C61&A61,"/")) -> / | N61: =A61&C61 -> AFAH | O61: =E61 ->  | P61: =C61&A61 -> AHAF | Q61: =F61 ->  | R61: =B61 -> 0 | S61: =D61 -> 
A63: 7 éme MATCH le | B63: à | C63: =A12 -> AG
G64: SI forfait éq recevante
A65: Equipes | B65: score | C65: Equipes | D65: score | E65: Points | F65: Points
A66: =A6 -> AA | C66: =A12 -> AG | D66: =IF(G66=19,19,IF(ISBLANK(B66),"",IF(B66=19,0,36-B66))) ->  | E66: =IF(G66=19,0,IF(ISBLANK(B66),"",IF(B66<18,1,IF(B66=18,2,IF(B66>18,3))))) ->  | F66: =IF(G66=19,3,IF(ISBLANK(B66),"",IF(B66=19,0,IF(D66<18,1,IF(D66=18,2,IF(D66>=20,3)))))) ->  | L66: =IF(B66>D66,A66&C66,IF(D66>B66,C66&A66,"/")) -> / | N66: =A66&C66 -> AAAG | O66: =E66 ->  | P66: =C66&A66 -> AGAA | Q66: =F66 ->  | R66: =B66 -> 0 | S66: =D66 -> 
A67: =A7 -> AB | C67: =A11 -> AF | D67: =IF(G67=19,19,IF(ISBLANK(B67),"",IF(B67=19,0,36-B67))) ->  | E67: =IF(G67=19,0,IF(ISBLANK(B67),"",IF(B67<18,1,IF(B67=18,2,IF(B67>18,3))))) ->  | F67: =IF(G67=19,3,IF(ISBLANK(B67),"",IF(B67=19,0,IF(D67<18,1,IF(D67=18,2,IF(D67>=20,3)))))) ->  | L67: =IF(B67>D67,A67&C67,IF(D67>B67,C67&A67,"/")) -> / | N67: =A67&C67 -> ABAF | O67: =E67 ->  | P67: =C67&A67 -> AFAB | Q67: =F67 ->  | R67: =B67 -> 0 | S67: =D67 -> 
A68: =A10 -> AE | C68: =A9 -> AD | D68: =IF(G68=19,19,IF(ISBLANK(B68),"",IF(B68=19,0,36-B68))) ->  | E68: =IF(G68=19,0,IF(ISBLANK(B68),"",IF(B68<18,1,IF(B68=18,2,IF(B68>18,3))))) ->  | F68: =IF(G68=19,3,IF(ISBLANK(B68),"",IF(B68=19,0,IF(D68<18,1,IF(D68=18,2,IF(D68>=20,3)))))) ->  | L68: =IF(B68>D68,A68&C68,IF(D68>B68,C68&A68,"/")) -> / | N68: =A68&C68 -> AEAD | O68: =E68 ->  | P68: =C68&A68 -> ADAE | Q68: =F68 ->  | R68: =B68 -> 0 | S68: =D68 -> 
A69: =A8 -> AC | C69: =A13 -> AH | D69: =IF(G69=19,19,IF(ISBLANK(B69),"",IF(B69=19,0,36-B69))) ->  | E69: =IF(G69=19,0,IF(ISBLANK(B69),"",IF(B69<18,1,IF(B69=18,2,IF(B69>18,3))))) ->  | F69: =IF(G69=19,3,IF(ISBLANK(B69),"",IF(B69=19,0,IF(D69<18,1,IF(D69=18,2,IF(D69>=20,3)))))) ->  | L69: =IF(B69>D69,A69&C69,IF(D69>B69,C69&A69,"/")) -> / | N69: =A69&C69 -> ACAH | O69: =E69 ->  | P69: =C69&A69 -> AHAC | Q69: =F69 ->  | R69: =B69 -> 0 | S69: =D69 -> 
C70: CLASSEMENT | G70: Classt Final | H70: Rencontres entre exaequos
A71: EQUIPES | C71: POINTS | D71: POUR | E71: CONTRE | F71: DIFF | H71: POINTS Exaequos | I71: Exaq | J71: n° | K71: =A6 -> AA | L71: =A7 -> AB | M71: =A8 -> AC | N71: =A9 -> AD | O71: =A10 -> AE | P71: =A11 -> AF | Q71: =A12 -> AG | R71: =A13 -> AH | S71: Pts matchs | W71: 1000000*Pts matchs +1000 (Diff + abs(diff mini) )+Pour | X71: RANG | Y71: DIFF Exaequos | Z71: POUR Exaequos
B72: 1A | C72: 0 | D72: 0 | E72: 0 | F72: 0 | G72: 1 | H72: =IF(S72>0,S72,"") ->  | I72: =COUNTIF($C$72:$C$79,C72) -> 8 | J72: =IF(AND(I72>1,COUNTIFS(I$72:I72,I72,C$72:C72,C72)=1),MAX(J$71:J71)+1,"") -> 1 | K72: =IF($A72=K$71,"",IF(INDEX($C$72:$C$79,MATCH(K$71,$A$72:$A$79,0))=$C72,IFERROR(VLOOKUP($A72&K$71,$N$18:$O$69,2,0), VLOOKUP(K$71&$A72,$N$18:$Q$69,4,0)), "")) ->  | S72: =SUM(K72:R72) ->  | W72: =IF(I72<3,S72*1000000+(F72+ABS(MIN($F$72:$F$79)))*1000+D72,S72*1000000+U96*1000+Z72) ->  | X72: =IF(I72>2,RANK(W72,OFFSET(W$71,MATCH(I72,$I$72:$I$79,0),,I72))) ->  | Y72: =IF(S96=0,"",S96) ->  | Z72: =IF(S80=0,"",S80) -> 
B73: 1B | C73: 0 | D73: 0 | E73: 0 | F73: 0 | G73: 2 | I73: 8 | J73: =IF(AND(I73>1,COUNTIFS(I$72:I73,I73,C$72:C73,C73)=1),MAX(J$71:J72)+1,"") ->  | S73: =SUM(K73:R73) ->  | W73: =IF(I73<3,S73*1000000+(F73+ABS(MIN($F$72:$F$79)))*1000+D73,S73*1000000+U97*1000+Z73) ->  | X73: =IF(I73>2,RANK(W73,OFFSET(W$71,MATCH(I73,$I$72:$I$79,0),,I73))) -> 
B74: 1C | C74: 0 | D74: 0 | E74: 0 | F74: 0 | G74: 3 | I74: 8 | J74: =IF(AND(I74>1,COUNTIFS(I$72:I74,I74,C$72:C74,C74)=1),MAX(J$71:J73)+1,"") -> 
B75: 1D | C75: 0 | D75: 0 | E75: 0 | F75: 0 | G75: 4 | I75: 8 | J75: =IF(AND(I75>1,COUNTIFS(I$72:I75,I75,C$72:C75,C75)=1),MAX(J$71:J74)+1,"") -> 
B76: 1E | C76: 0 | D76: 0 | E76: 0 | F76: 0 | G76: 5 | I76: 8 | J76: =IF(AND(I76>1,COUNTIFS(I$72:I76,I76,C$72:C76,C76)=1),MAX(J$71:J75)+1,"") -> 
B77: 1F | C77: 0 | D77: 0 | E77: 0 | F77: 0 | G77: 6 | I77: 8 | J77: =IF(AND(I77>1,COUNTIFS(I$72:I77,I77,C$72:C77,C77)=1),MAX(J$71:J76)+1,"") -> 
B78: 1G | C78: 0 | D78: 0 | E78: 0 | F78: 0 | G78: 7 | I78: 8 | J78: =IF(AND(I78>1,COUNTIFS(I$72:I78,I78,C$72:C78,C78)=1),MAX(J$71:J77)+1,"") -> 
B79: 1H | C79: 0 | D79: 0 | E79: 0 | F79: 0 | G79: 8 | I79: 8 | J79: =IF(AND(I79>1,COUNTIFS(I$72:I79,I79,C$72:C79,C79)=1),MAX(J$71:J78)+1,"") -> 
I80: POUR | J80: =A72 -> 0 | K80: =IF($A72=K$71,"",IF(INDEX($C$72:$C$79,MATCH(K$71,$A$72:$A$79,0))=$C72,IFERROR(VLOOKUP($A72&K$71,$N$18:$R$69,5,0), VLOOKUP(K$71&$A72,$N$18:$S$69,6,0)), "")) -> 
J81: 0
J82: 0
J83: 0
J84: 0
J85: 0
J86: 0
J87: 0
I88: CONTRE | J88: =J80 -> 0 | K88: =INDEX($K$80:$R$87,MATCH(K$71,$J$80:$J$87,0),MATCH($J80,$K$71:$R$71,0)) ->  | L88: =INDEX($K$80:$R$87,MATCH(L$71,$J$80:$J$87,0),MATCH($J80,$K$71:$R$71,0)) -> 
J89: =J81 -> 0 | K89: =INDEX($K$80:$R$87,MATCH(K$71,$J$80:$J$87,0),MATCH($J81,$K$71:$R$71,0)) -> 
J90: 0
J91: 0
J92: 0
J93: 0
J94: 0
J95: 0 | U95: Diff pondérée
I96: DIFF | J96: =J88 -> 0 | S96: =S80-S88 ->  | U96: =S96+ABS(MIN($S$96:$S$103)) -> 
J97: =J89 -> 0 | S97: =S81-S89 -> 
J98: 0
J99: 0
J100: 0
J101: 0
J102: 0 | U102: =S102+ABS(MIN($S$96:$S$103)) -> 
J103: 0 | U103: =S103+ABS(MIN($S$96:$S$103)) -> 

Sheet P7
G1: 3
A2: CHAMPIONNAT DES CLUBS
A4: POULE 7
A5: EQUIPES | C5: POINTS | D5: Pour | E5: Contre | F5: Diff
A6: AA | B6: 1A | C6: =SUMIF($A$18:$A$69,A6,$E$18:$E$69)+SUMIF($C$18:$C$69,A6,$F$18:$F$69) -> 0 | D6: =SUMIF($A$18:$A$69,$A6,$B$18:$B$69)+SUMIF($C$18:$C$69,$A6,$D$18:$D$69) -> 0 | E6: =SUMIF($C$18:$C$69,$A6,$B$18:$B$69)+SUMIF($A$18:$A$69,$A6,$D$18:$D$69) -> 0 | F6: =D6-E6 -> 0
A7: AB | B7: 1B | C7: =SUMIF($A$18:$A$69,A7,$E$18:$E$69)+SUMIF($C$18:$C$69,A7,$F$18:$F$69) -> 0 | D7: =SUMIF($A$18:$A$69,$A7,$B$18:$B$69)+SUMIF($C$18:$C$69,$A7,$D$18:$D$69) -> 0 | E7: =SUMIF($C$18:$C$69,$A7,$B$18:$B$69)+SUMIF($A$18:$A$69,$A7,$D$18:$D$69) -> 0 | F7: 0
A8: AC | B8: 1C | C8: =SUMIF($A$18:$A$69,A8,$E$18:$E$69)+SUMIF($C$18:$C$69,A8,$F$18:$F$69) -> 0 | D8: 0 | E8: 0 | F8: 0
A9: AD | B9: 1D | C9: 0 | D9: 0 | E9: 0 | F9: 0
A10: AE | B10: 1E | C10: 0 | D10: 0 | E10: 0 | F10: 0
A11: AF | B11: 1F | C11: 0 | D11: 0 | E11: 0 | F11: 0
A12: AG | B12: 1G | C12: 0 | D12: 0 | E12: 0 | F12: =D12-E12 -> 0
A13: AH | B13: 1H | C13: 0 | D13: =SUMIF($A$18:$A$69,$A13,$B$18:$B$69)+SUMIF($C$18:$C$69,$A13,$D$18:$D$69) -> 0 | E13: 0 | F13: =D13-E13 -> 0
A15: 1er MATCH le | B15: à | C15: =A6 -> AA
G16: SI forfait éq recevante
A17: Equipes | B17: score | C17: Equipes | D17: score | E17: Points | F17: Points
A18: =A6 -> AA | C18: =A7 -> AB | D18: =IF(G18=19,19,IF(ISBLANK(B18),"",IF(B18=19,0,36-B18))) ->  | E18: =IF(G18=19,0,IF(ISBLANK(B18),"",IF(B18<18,1,IF(B18=18,2,IF(B18>18,3))))) ->  | F18: =IF(G18=19,3,IF(ISBLANK(B18),"",IF(B18=19,0,IF(D18<18,1,IF(D18=18,2,IF(D18>=20,3)))))) ->  | L18: =IF(B18>D18,A18&C18,IF(D18>B18,C18&A18,"/")) -> / | N18: =A18&C18 -> AAAB | O18: =E18 ->  | P18: =C18&A18 -> ABAA | Q18: =F18 ->  | R18: =B18 -> 0 | S18: =D18 -> 
A19: =A8 -> AC | C19: =A9 -> AD | D19: =IF(G19=19,19,IF(ISBLANK(B19),"",IF(B19=19,0,36-B19))) ->  | E19: =IF(G19=19,0,IF(ISBLANK(B19),"",IF(B19<18,1,IF(B19=18,2,IF(B19>18,3))))) ->  | F19: =IF(G19=19,3,IF(ISBLANK(B19),"",IF(B19=19,0,IF(D19<18,1,IF(D19=18,2,IF(D19>=20,3)))))) ->  | L19: =IF(B19>D19,A19&C19,IF(D19>B19,C19&A19,"/")) -> / | N19: =A19&C19 -> ACAD | O19: =E19 ->  | P19: =C19&A19 -> ADAC | Q19: =F19 ->  | R19: =B19 -> 0 | S19: =D19 -> 
A20: =A10 -> AE | C20: =A11 -> AF | D20: =IF(G20=19,19,IF(ISBLANK(B20),"",IF(B20=19,0,36-B20))) ->  | E20: =IF(G20=19,0,IF(ISBLANK(B20),"",IF(B20<18,1,IF(B20=18,2,IF(B20>18,3))))) ->  | F20: =IF(G20=19,3,IF(ISBLANK(B20),"",IF(B20=19,0,IF(D20<18,1,IF(D20=18,2,IF(D20>=20,3)))))) ->  | L20: =IF(B20>D20,A20&C20,IF(D20>B20,C20&A20,"/")) -> / | N20: =A20&C20 -> AEAF | O20: =E20 ->  | P20: =C20&A20 -> AFAE | Q20: =F20 ->  | R20: =B20 -> 0 | S20: =D20 -> 
A21: =A12 -> AG | C21: =A13 -> AH | D21: =IF(G21=19,19,IF(ISBLANK(B21),"",IF(B21=19,0,36-B21))) ->  | E21: =IF(G21=19,0,IF(ISBLANK(B21),"",IF(B21<18,1,IF(B21=18,2,IF(B21>18,3))))) ->  | F21: =IF(G21=19,3,IF(ISBLANK(B21),"",IF(B21=19,0,IF(D21<18,1,IF(D21=18,2,IF(D21>=20,3)))))) ->  | L21: =IF(B21>D21,A21&C21,IF(D21>B21,C21&A21,"/")) -> / | N21: =A21&C21 -> AGAH | O21: =E21 ->  | P21: =C21&A21 -> AHAG | Q21: =F21 ->  | R21: =B21 -> 0 | S21: =D21 -> 
A23: 2 éme MATCH le | B23: à | C23: =A7 -> AB
G24: SI forfait éq recevante
A25: Equipes | B25: score | C25: Equipes | D25: score | E25: Points | F25: Points
A26: =A6 -> AA | C26: =A8 -> AC | D26: =IF(G26=19,19,IF(ISBLANK(B26),"",IF(B26=19,0,36-B26))) ->  | E26: =IF(G26=19,0,IF(ISBLANK(B26),"",IF(B26<18,1,IF(B26=18,2,IF(B26>18,3))))) ->  | F26: =IF(G26=19,3,IF(ISBLANK(B26),"",IF(B26=19,0,IF(D26<18,1,IF(D26=18,2,IF(D26>=20,3)))))) ->  | L26: =IF(B26>D26,A26&C26,IF(D26>B26,C26&A26,"/")) -> / | N26: =A26&C26 -> AAAC | O26: =E26 ->  | P26: =C26&A26 -> ACAA | Q26: =F26 ->  | R26: =B26 -> 0 | S26: =D26 -> 
A27: =A7 -> AB | C27: =A13 -> AH | D27: =IF(G27=19,19,IF(ISBLANK(B27),"",IF(B27=19,0,36-B27))) ->  | E27: =IF(G27=19,0,IF(ISBLANK(B27),"",IF(B27<18,1,IF(B27=18,2,IF(B27>18,3))))) ->  | F27: =IF(G27=19,3,IF(ISBLANK(B27),"",IF(B27=19,0,IF(D27<18,1,IF(D27=18,2,IF(D27>=20,3)))))) ->  | L27: =IF(B27>D27,A27&C27,IF(D27>B27,C27&A27,"/")) -> / | N27: =A27&C27 -> ABAH | O27: =E27 ->  | P27: =C27&A27 -> AHAB | Q27: =F27 ->  | R27: =B27 -> 0 | S27: =D27 -> 
A28: =A9 -> AD | C28: =A11 -> AF | D28: =IF(G28=19,19,IF(ISBLANK(B28),"",IF(B28=19,0,36-B28))) ->  | E28: =IF(G28=19,0,IF(ISBLANK(B28),"",IF(B28<18,1,IF(B28=18,2,IF(B28>18,3))))) ->  | F28: =IF(G28=19,3,IF(ISBLANK(B28),"",IF(B28=19,0,IF(D28<18,1,IF(D28=18,2,IF(D28>=20,3)))))) ->  | L28: =IF(B28>D28,A28&C28,IF(D28>B28,C28&A28,"/")) -> / | N28: =A28&C28 -> ADAF | O28: =E28 ->  | P28: =C28&A28 -> AFAD | Q28: =F28 ->  | R28: =B28 -> 0 | S28: =D28 -> 
A29: =A10 -> AE | C29: =A12 -> AG | D29: =IF(G29=19,19,IF(ISBLANK(B29),"",IF(B29=19,0,36-B29))) ->  | E29: =IF(G29=19,0,IF(ISBLANK(B29),"",IF(B29<18,1,IF(B29=18,2,IF(B29>18,3))))) ->  | F29: =IF(G29=19,3,IF(ISBLANK(B29),"",IF(B29=19,0,IF(D29<18,1,IF(D29=18,2,IF(D29>=20,3)))))) ->  | L29: =IF(B29>D29,A29&C29,IF(D29>B29,C29&A29,"/")) -> / | N29: =A29&C29 -> AEAG | O29: =E29 ->  | P29: =C29&A29 -> AGAE | Q29: =F29 ->  | R29: =B29 -> 0 | S29: =D29 -> 
A31: 3 éme MATCH le | B31: à | C31: =A8 -> AC
G32: SI forfait éq recevante
A33: Equipes | B33: score | C33: Equipes | D33: score | E33: Points | F33: Points
A34: =A6 -> AA | C34: =A13 -> AH | D34: =IF(G34=19,19,IF(ISBLANK(B34),"",IF(B34=19,0,36-B34))) ->  | E34: =IF(G34=19,0,IF(ISBLANK(B34),"",IF(B34<18,1,IF(B34=18,2,IF(B34>18,3))))) ->  | F34: =IF(G34=19,3,IF(ISBLANK(B34),"",IF(B34=19,0,IF(D34<18,1,IF(D34=18,2,IF(D34>=20,3)))))) ->  | L34: =IF(B34>D34,A34&C34,IF(D34>B34,C34&A34,"/")) -> / | N34: =A34&C34 -> AAAH | O34: =E34 ->  | P34: =C34&A34 -> AHAA | Q34: =F34 ->  | R34: =B34 -> 0 | S34: =D34 -> 
A35: =A7 -> AB | C35: =A10 -> AE | D35: =IF(G35=19,19,IF(ISBLANK(B35),"",IF(B35=19,0,36-B35))) ->  | E35: =IF(G35=19,0,IF(ISBLANK(B35),"",IF(B35<18,1,IF(B35=18,2,IF(B35>18,3))))) ->  | F35: =IF(G35=19,3,IF(ISBLANK(B35),"",IF(B35=19,0,IF(D35<18,1,IF(D35=18,2,IF(D35>=20,3)))))) ->  | L35: =IF(B35>D35,A35&C35,IF(D35>B35,C35&A35,"/")) -> / | N35: =A35&C35 -> ABAE | O35: =E35 ->  | P35: =C35&A35 -> AEAB | Q35: =F35 ->  | R35: =B35 -> 0 | S35: =D35 -> 
A36: =A8 -> AC | C36: =A11 -> AF | D36: =IF(G36=19,19,IF(ISBLANK(B36),"",IF(B36=19,0,36-B36))) ->  | E36: =IF(G36=19,0,IF(ISBLANK(B36),"",IF(B36<18,1,IF(B36=18,2,IF(B36>18,3))))) ->  | F36: =IF(G36=19,3,IF(ISBLANK(B36),"",IF(B36=19,0,IF(D36<18,1,IF(D36=18,2,IF(D36>=20,3)))))) ->  | L36: =IF(B36>D36,A36&C36,IF(D36>B36,C36&A36,"/")) -> / | N36: =A36&C36 -> ACAF | O36: =E36 ->  | P36: =C36&A36 -> AFAC | Q36: =F36 ->  | R36: =B36 -> 0 | S36: =D36 -> 
A37: =A9 -> AD | C37: =A12 -> AG | D37: =IF(G37=19,19,IF(ISBLANK(B37),"",IF(B37=19,0,36-B37))) ->  | E37: =IF(G37=19,0,IF(ISBLANK(B37),"",IF(B37<18,1,IF(B37=18,2,IF(B37>18,3))))) ->  | F37: =IF(G37=19,3,IF(ISBLANK(B37),"",IF(B37=19,0,IF(D37<18,1,IF(D37=18,2,IF(D37>=20,3)))))) ->  | L37: =IF(B37>D37,A37&C37,IF(D37>B37,C37&A37,"/")) -> / | N37: =A37&C37 -> ADAG | O37: =E37 ->  | P37: =C37&A37 -> AGAD | Q37: =F37 ->  | R37: =B37 -> 0 | S37: =D37 -> 
A39: 4 éme MATCH le | B39: à | C39: =A9 -> AD
G40: SI forfait éq recevante
A41: Equipes | B41: score | C41: Equipes | D41: score | E41: Points | F41: Points
A42: =A6 -> AA | C42: =A9 -> AD | D42: =IF(G42=19,19,IF(ISBLANK(B42),"",IF(B42=19,0,36-B42))) ->  | E42: =IF(G42=19,0,IF(ISBLANK(B42),"",IF(B42<18,1,IF(B42=18,2,IF(B42>18,3))))) ->  | F42: =IF(G42=19,3,IF(ISBLANK(B42),"",IF(B42=19,0,IF(D42<18,1,IF(D42=18,2,IF(D42>=20,3)))))) ->  | L42: =IF(B42>D42,A42&C42,IF(D42>B42,C42&A42,"/")) -> / | N42: =A42&C42 -> AAAD | O42: =E42 ->  | P42: =C42&A42 -> ADAA | Q42: =F42 ->  | R42: =B42 -> 0 | S42: =D42 -> 
A43: =A11 -> AF | C43: =A12 -> AG | D43: =IF(G43=19,19,IF(ISBLANK(B43),"",IF(B43=19,0,36-B43))) ->  | E43: =IF(G43=19,0,IF(ISBLANK(B43),"",IF(B43<18,1,IF(B43=18,2,IF(B43>18,3))))) ->  | F43: =IF(G43=19,3,IF(ISBLANK(B43),"",IF(B43=19,0,IF(D43<18,1,IF(D43=18,2,IF(D43>=20,3)))))) ->  | L43: =IF(B43>D43,A43&C43,IF(D43>B43,C43&A43,"/")) -> / | N43: =A43&C43 -> AFAG | O43: =E43 ->  | P43: =C43&A43 -> AGAF | Q43: =F43 ->  | R43: =B43 -> 0 | S43: =D43 -> 
A44: =A7 -> AB | C44: =A8 -> AC | D44: =IF(G44=19,19,IF(ISBLANK(B44),"",IF(B44=19,0,36-B44))) ->  | E44: =IF(G44=19,0,IF(ISBLANK(B44),"",IF(B44<18,1,IF(B44=18,2,IF(B44>18,3))))) ->  | F44: =IF(G44=19,3,IF(ISBLANK(B44),"",IF(B44=19,0,IF(D44<18,1,IF(D44=18,2,IF(D44>=20,3)))))) ->  | L44: =IF(B44>D44,A44&C44,IF(D44>B44,C44&A44,"/")) -> / | N44: =A44&C44 -> ABAC | O44: =E44 ->  | P44: =C44&A44 -> ACAB | Q44: =F44 ->  | R44: =B44 -> 0 | S44: =D44 -> 
A45: =A10 -> AE | C45: =A13 -> AH | D45: =IF(G45=19,19,IF(ISBLANK(B45),"",IF(B45=19,0,36-B45))) ->  | E45: =IF(G45=19,0,IF(ISBLANK(B45),"",IF(B45<18,1,IF(B45=18,2,IF(B45>18,3))))) ->  | F45: =IF(G45=19,3,IF(ISBLANK(B45),"",IF(B45=19,0,IF(D45<18,1,IF(D45=18,2,IF(D45>=20,3)))))) ->  | L45: =IF(B45>D45,A45&C45,IF(D45>B45,C45&A45,"/")) -> / | N45: =A45&C45 -> AEAH | O45: =E45 ->  | P45: =C45&A45 -> AHAE | Q45: =F45 ->  | R45: =B45 -> 0 | S45: =D45 -> 
A47: 5 éme MATCH le | B47: à | C47: =A10 -> AE
G48: SI forfait éq recevante
A49: Equipes | B49: score | C49: Equipes | D49: score | E49: Points | F49: Points
A50: =A6 -> AA | C50: =A11 -> AF | D50: =IF(G50=19,19,IF(ISBLANK(B50),"",IF(B50=19,0,36-B50))) ->  | E50: =IF(G50=19,0,IF(ISBLANK(B50),"",IF(B50<18,1,IF(B50=18,2,IF(B50>18,3))))) ->  | F50: =IF(G50=19,3,IF(ISBLANK(B50),"",IF(B50=19,0,IF(D50<18,1,IF(D50=18,2,IF(D50>=20,3)))))) ->  | L50: =IF(B50>D50,A50&C50,IF(D50>B50,C50&A50,"/")) -> / | N50: =A50&C50 -> AAAF | O50: =E50 ->  | P50: =C50&A50 -> AFAA | Q50: =F50 ->  | R50: =B50 -> 0 | S50: =D50 -> 
A51: =A9 -> AD | C51: =A13 -> AH | D51: =IF(G51=19,19,IF(ISBLANK(B51),"",IF(B51=19,0,36-B51))) ->  | E51: =IF(G51=19,0,IF(ISBLANK(B51),"",IF(B51<18,1,IF(B51=18,2,IF(B51>18,3))))) ->  | F51: =IF(G51=19,3,IF(ISBLANK(B51),"",IF(B51=19,0,IF(D51<18,1,IF(D51=18,2,IF(D51>=20,3)))))) ->  | L51: =IF(B51>D51,A51&C51,IF(D51>B51,C51&A51,"/")) -> / | N51: =A51&C51 -> ADAH | O51: =E51 ->  | P51: =C51&A51 -> AHAD | Q51: =F51 ->  | R51: =B51 -> 0 | S51: =D51 -> 
A52: =A7 -> AB | C52: =A12 -> AG | D52: =IF(G52=19,19,IF(ISBLANK(B52),"",IF(B52=19,0,36-B52))) ->  | E52: =IF(G52=19,0,IF(ISBLANK(B52),"",IF(B52<18,1,IF(B52=18,2,IF(B52>18,3))))) ->  | F52: =IF(G52=19,3,IF(ISBLANK(B52),"",IF(B52=19,0,IF(D52<18,1,IF(D52=18,2,IF(D52>=20,3)))))) ->  | L52: =IF(B52>D52,A52&C52,IF(D52>B52,C52&A52,"/")) -> / | N52: =A52&C52 -> ABAG | O52: =E52 ->  | P52: =C52&A52 -> AGAB | Q52: =F52 ->  | R52: =B52 -> 0 | S52: =D52 -> 
A53: =A8 -> AC | C53: =A10 -> AE | D53: =IF(G53=19,19,IF(ISBLANK(B53),"",IF(B53=19,0,36-B53))) ->  | E53: =IF(G53=19,0,IF(ISBLANK(B53),"",IF(B53<18,1,IF(B53=18,2,IF(B53>18,3))))) ->  | F53: =IF(G53=19,3,IF(ISBLANK(B53),"",IF(B53=19,0,IF(D53<18,1,IF(D53=18,2,IF(D53>=20,3)))))) ->  | L53: =IF(B53>D53,A53&C53,IF(D53>B53,C53&A53,"/")) -> / | N53: =A53&C53 -> ACAE | O53: =E53 ->  | P53: =C53&A53 -> AEAC | Q53: =F53 ->  | R53: =B53 -> 0 | S53: =D53 -> 
A55: 6 éme MATCH le | B55: à | C55: =A11 -> AF
G56: SI forfait éq recevante
A57: Equipes | B57: score | C57: Equipes | D57: score | E57: Points | F57: Points
A58: =A7 -> AB | C58: =A9 -> AD | D58: =IF(G58=19,19,IF(ISBLANK(B58),"",IF(B58=19,0,36-B58))) ->  | E58: =IF(G58=19,0,IF(ISBLANK(B58),"",IF(B58<18,1,IF(B58=18,2,IF(B58>18,3))))) ->  | F58: =IF(G58=19,3,IF(ISBLANK(B58),"",IF(B58=19,0,IF(D58<18,1,IF(D58=18,2,IF(D58>=20,3)))))) ->  | L58: =IF(B58>D58,A58&C58,IF(D58>B58,C58&A58,"/")) -> / | N58: =A58&C58 -> ABAD | O58: =E58 ->  | P58: =C58&A58 -> ADAB | Q58: =F58 ->  | R58: =B58 -> 0 | S58: =D58 -> 
A59: =A10 -> AE | C59: =A6 -> AA | D59: =IF(G59=19,19,IF(ISBLANK(B59),"",IF(B59=19,0,36-B59))) ->  | E59: =IF(G59=19,0,IF(ISBLANK(B59),"",IF(B59<18,1,IF(B59=18,2,IF(B59>18,3))))) ->  | F59: =IF(G59=19,3,IF(ISBLANK(B59),"",IF(B59=19,0,IF(D59<18,1,IF(D59=18,2,IF(D59>=20,3)))))) ->  | L59: =IF(B59>D59,A59&C59,IF(D59>B59,C59&A59,"/")) -> / | N59: =A59&C59 -> AEAA | O59: =E59 ->  | P59: =C59&A59 -> AAAE | Q59: =F59 ->  | R59: =B59 -> 0 | S59: =D59 -> 
A60: =A12 -> AG | C60: =A8 -> AC | D60: =IF(G60=19,19,IF(ISBLANK(B60),"",IF(B60=19,0,36-B60))) ->  | E60: =IF(G60=19,0,IF(ISBLANK(B60),"",IF(B60<18,1,IF(B60=18,2,IF(B60>18,3))))) ->  | F60: =IF(G60=19,3,IF(ISBLANK(B60),"",IF(B60=19,0,IF(D60<18,1,IF(D60=18,2,IF(D60>=20,3)))))) ->  | L60: =IF(B60>D60,A60&C60,IF(D60>B60,C60&A60,"/")) -> / | N60: =A60&C60 -> AGAC | O60: =E60 ->  | P60: =C60&A60 -> ACAG | Q60: =F60 ->  | R60: =B60 -> 0 | S60: =D60 -> 
A61: =A11 -> AF | C61: =A13 -> AH | D61: =IF(G61=19,19,IF(ISBLANK(B61),"",IF(B61=19,0,36-B61))) ->  | E61: =IF(G61=19,0,IF(ISBLANK(B61),"",IF(B61<18,1,IF(B61=18,2,IF(B61>18,3))))) ->  | F61: =IF(G61=19,3,IF(ISBLANK(B61),"",IF(B61=19,0,IF(D61<18,1,IF(D61=18,2,IF(D61>=20,3)))))) ->  | L61: =IF(B61>D61,A61&C61,IF(D61>B61,C61&A61,"/")) -> / | N61: =A61&C61 -> AFAH | O61: =E61 ->  | P61: =C61&A61 -> AHAF | Q61: =F61 ->  | R61: =B61 -> 0 | S61: =D61 -> 
A63: 7 éme MATCH le | B63: à | C63: =A12 -> AG
G64: SI forfait éq recevante
A65: Equipes | B65: score | C65: Equipes | D65: score | E65: Points | F65: Points
A66: =A6 -> AA | C66: =A12 -> AG | D66: =IF(G66=19,19,IF(ISBLANK(B66),"",IF(B66=19,0,36-B66))) ->  | E66: =IF(G66=19,0,IF(ISBLANK(B66),"",IF(B66<18,1,IF(B66=18,2,IF(B66>18,3))))) ->  | F66: =IF(G66=19,3,IF(ISBLANK(B66),"",IF(B66=19,0,IF(D66<18,1,IF(D66=18,2,IF(D66>=20,3)))))) ->  | L66: =IF(B66>D66,A66&C66,IF(D66>B66,C66&A66,"/")) -> / | N66: =A66&C66 -> AAAG | O66: =E66 ->  | P66: =C66&A66 -> AGAA | Q66: =F66 ->  | R66: =B66 -> 0 | S66: =D66 -> 
A67: =A7 -> AB | C67: =A11 -> AF | D67: =IF(G67=19,19,IF(ISBLANK(B67),"",IF(B67=19,0,36-B67))) ->  | E67: =IF(G67=19,0,IF(ISBLANK(B67),"",IF(B67<18,1,IF(B67=18,2,IF(B67>18,3))))) ->  | F67: =IF(G67=19,3,IF(ISBLANK(B67),"",IF(B67=19,0,IF(D67<18,1,IF(D67=18,2,IF(D67>=20,3)))))) ->  | L67: =IF(B67>D67,A67&C67,IF(D67>B67,C67&A67,"/")) -> / | N67: =A67&C67 -> ABAF | O67: =E67 ->  | P67: =C67&A67 -> AFAB | Q67: =F67 ->  | R67: =B67 -> 0 | S67: =D67 -> 
A68: =A10 -> AE | C68: =A9 -> AD | D68: =IF(G68=19,19,IF(ISBLANK(B68),"",IF(B68=19,0,36-B68))) ->  | E68: =IF(G68=19,0,IF(ISBLANK(B68),"",IF(B68<18,1,IF(B68=18,2,IF(B68>18,3))))) ->  | F68: =IF(G68=19,3,IF(ISBLANK(B68),"",IF(B68=19,0,IF(D68<18,1,IF(D68=18,2,IF(D68>=20,3)))))) ->  | L68: =IF(B68>D68,A68&C68,IF(D68>B68,C68&A68,"/")) -> / | N68: =A68&C68 -> AEAD | O68: =E68 ->  | P68: =C68&A68 -> ADAE | Q68: =F68 ->  | R68: =B68 -> 0 | S68: =D68 -> 
A69: =A8 -> AC | C69: =A13 -> AH | D69: =IF(G69=19,19,IF(ISBLANK(B69),"",IF(B69=19,0,36-B69))) ->  | E69: =IF(G69=19,0,IF(ISBLANK(B69),"",IF(B69<18,1,IF(B69=18,2,IF(B69>18,3))))) ->  | F69: =IF(G69=19,3,IF(ISBLANK(B69),"",IF(B69=19,0,IF(D69<18,1,IF(D69=18,2,IF(D69>=20,3)))))) ->  | L69: =IF(B69>D69,A69&C69,IF(D69>B69,C69&A69,"/")) -> / | N69: =A69&C69 -> ACAH | O69: =E69 ->  | P69: =C69&A69 -> AHAC | Q69: =F69 ->  | R69: =B69 -> 0 | S69: =D69 -> 
C70: CLASSEMENT | G70: Classt Final | H70: Rencontres entre exaequos
A71: EQUIPES | C71: POINTS | D71: POUR | E71: CONTRE | F71: DIFF | H71: POINTS Exaequos | I71: Exaq | J71: n° | K71: =A6 -> AA | L71: =A7 -> AB | M71: =A8 -> AC | N71: =A9 -> AD | O71: =A10 -> AE | P71: =A11 -> AF | Q71: =A12 -> AG | R71: =A13 -> AH | S71: Pts matchs | W71: 1000000*Pts matchs +1000 (Diff + abs(diff mini) )+Pour | X71: RANG | Y71: DIFF Exaequos | Z71: POUR Exaequos
B72: 1A | C72: 0 | D72: 0 | E72: 0 | F72: 0 | G72: 1 | H72: =IF(S72>0,S72,"") ->  | I72: =COUNTIF($C$72:$C$79,C72) -> 8 | J72: =IF(AND(I72>1,COUNTIFS(I$72:I72,I72,C$72:C72,C72)=1),MAX(J$71:J71)+1,"") -> 1 | K72: =IF($A72=K$71,"",IF(INDEX($C$72:$C$79,MATCH(K$71,$A$72:$A$79,0))=$C72,IFERROR(VLOOKUP($A72&K$71,$N$18:$O$69,2,0), VLOOKUP(K$71&$A72,$N$18:$Q$69,4,0)), "")) ->  | S72: =SUM(K72:R72) ->  | W72: =IF(I72<3,S72*1000000+(F72+ABS(MIN($F$72:$F$79)))*1000+D72,S72*1000000+U96*1000+Z72) ->  | X72: =IF(I72>2,RANK(W72,OFFSET(W$71,MATCH(I72,$I$72:$I$79,0),,I72))) ->  | Y72: =IF(S96=0,"",S96) ->  | Z72: =IF(S80=0,"",S80) -> 
B73: 1B | C73: 0 | D73: 0 | E73: 0 | F73: 0 | G73: 2 | I73: 8 | J73: =IF(AND(I73>1,COUNTIFS(I$72:I73,I73,C$72:C73,C73)=1),MAX(J$71:J72)+1,"") ->  | S73: =SUM(K73:R73) ->  | W73: =IF(I73<3,S73*1000000+(F73+ABS(MIN($F$72:$F$79)))*1000+D73,S73*1000000+U97*1000+Z73) ->  | X73: =IF(I73>2,RANK(W73,OFFSET(W$71,MATCH(I73,$I$72:$I$79,0),,I73))) -> 
B74: 1C | C74: 0 | D74: 0 | E74: 0 | F74: 0 | G74: 3 | I74: 8 | J74: =IF(AND(I74>1,COUNTIFS(I$72:I74,I74,C$72:C74,C74)=1),MAX(J$71:J73)+1,"") -> 
B75: 1D | C75: 0 | D75: 0 | E75: 0 | F75: 0 | G75: 4 | I75: 8 | J75: =IF(AND(I75>1,COUNTIFS(I$72:I75,I75,C$72:C75,C75)=1),MAX(J$71:J74)+1,"") -> 
B76: 1E | C76: 0 | D76: 0 | E76: 0 | F76: 0 | G76: 5 | I76: 8 | J76: =IF(AND(I76>1,COUNTIFS(I$72:I76,I76,C$72:C76,C76)=1),MAX(J$71:J75)+1,"") -> 
B77: 1F | C77: 0 | D77: 0 | E77: 0 | F77: 0 | G77: 6 | I77: 8 | J77: =IF(AND(I77>1,COUNTIFS(I$72:I77,I77,C$72:C77,C77)=1),MAX(J$71:J76)+1,"") -> 
B78: 1G | C78: 0 | D78: 0 | E78: 0 | F78: 0 | G78: 7 | I78: 8 | J78: =IF(AND(I78>1,COUNTIFS(I$72:I78,I78,C$72:C78,C78)=1),MAX(J$71:J77)+1,"") -> 
B79: 1H | C79: 0 | D79: 0 | E79: 0 | F79: 0 | G79: 8 | I79: 8 | J79: =IF(AND(I79>1,COUNTIFS(I$72:I79,I79,C$72:C79,C79)=1),MAX(J$71:J78)+1,"") -> 
I80: POUR | J80: =A72 -> 0 | K80: =IF($A72=K$71,"",IF(INDEX($C$72:$C$79,MATCH(K$71,$A$72:$A$79,0))=$C72,IFERROR(VLOOKUP($A72&K$71,$N$18:$R$69,5,0), VLOOKUP(K$71&$A72,$N$18:$S$69,6,0)), "")) -> 
J81: 0
J82: 0
J83: 0
J84: 0
J85: 0
J86: 0
J87: 0
I88: CONTRE | J88: =J80 -> 0 | K88: =INDEX($K$80:$R$87,MATCH(K$71,$J$80:$J$87,0),MATCH($J80,$K$71:$R$71,0)) ->  | L88: =INDEX($K$80:$R$87,MATCH(L$71,$J$80:$J$87,0),MATCH($J80,$K$71:$R$71,0)) -> 
J89: =J81 -> 0 | K89: =INDEX($K$80:$R$87,MATCH(K$71,$J$80:$J$87,0),MATCH($J81,$K$71:$R$71,0)) -> 
J90: 0
J91: 0
J92: 0
J93: 0
J94: 0
J95: 0 | U95: Diff pondérée
I96: DIFF | J96: =J88 -> 0 | S96: =S80-S88 ->  | U96: =S96+ABS(MIN($S$96:$S$103)) -> 
J97: =J89 -> 0 | S97: =S81-S89 -> 
J98: 0
J99: 0
J100: 0
J101: 0
J102: 0 | U102: =S102+ABS(MIN($S$96:$S$103)) -> 
J103: 0 | U103: =S103+ABS(MIN($S$96:$S$103)) -> 

Sheet P8
G1: 3
A2: CHAMPIONNAT DES CLUBS
A4: POULE 8
A5: EQUIPES | C5: POINTS | D5: Pour | E5: Contre | F5: Diff
A6: AA | B6: 1A | C6: =SUMIF($A$18:$A$69,A6,$E$18:$E$69)+SUMIF($C$18:$C$69,A6,$F$18:$F$69) -> 0 | D6: =SUMIF($A$18:$A$69,$A6,$B$18:$B$69)+SUMIF($C$18:$C$69,$A6,$D$18:$D$69) -> 0 | E6: =SUMIF($C$18:$C$69,$A6,$B$18:$B$69)+SUMIF($A$18:$A$69,$A6,$D$18:$D$69) -> 0 | F6: =D6-E6 -> 0
A7: AB | B7: 1B | C7: =SUMIF($A$18:$A$69,A7,$E$18:$E$69)+SUMIF($C$18:$C$69,A7,$F$18:$F$69) -> 0 | D7: =SUMIF($A$18:$A$69,$A7,$B$18:$B$69)+SUMIF($C$18:$C$69,$A7,$D$18:$D$69) -> 0 | E7: =SUMIF($C$18:$C$69,$A7,$B$18:$B$69)+SUMIF($A$18:$A$69,$A7,$D$18:$D$69) -> 0 | F7: 0
A8: AC | B8: 1C | C8: =SUMIF($A$18:$A$69,A8,$E$18:$E$69)+SUMIF($C$18:$C$69,A8,$F$18:$F$69) -> 0 | D8: 0 | E8: 0 | F8: 0
A9: AD | B9: 1D | C9: 0 | D9: 0 | E9: 0 | F9: 0
A10: AE | B10: 1E | C10: 0 | D10: 0 | E10: 0 | F10: 0
A11: AF | B11: 1F | C11: 0 | D11: 0 | E11: 0 | F11: 0
A12: AG | B12: 1G | C12: 0 | D12: 0 | E12: 0 | F12: =D12-E12 -> 0
A13: AH | B13: 1H | C13: 0 | D13: =SUMIF($A$18:$A$69,$A13,$B$18:$B$69)+SUMIF($C$18:$C$69,$A13,$D$18:$D$69) -> 0 | E13: 0 | F13: =D13-E13 -> 0
A15: 1er MATCH le | B15: à | C15: =A6 -> AA
G16: SI forfait éq recevante
A17: Equipes | B17: score | C17: Equipes | D17: score | E17: Points | F17: Points
A18: =A6 -> AA | C18: =A7 -> AB | D18: =IF(G18=19,19,IF(ISBLANK(B18),"",IF(B18=19,0,36-B18))) ->  | E18: =IF(G18=19,0,IF(ISBLANK(B18),"",IF(B18<18,1,IF(B18=18,2,IF(B18>18,3))))) ->  | F18: =IF(G18=19,3,IF(ISBLANK(B18),"",IF(B18=19,0,IF(D18<18,1,IF(D18=18,2,IF(D18>=20,3)))))) ->  | L18: =IF(B18>D18,A18&C18,IF(D18>B18,C18&A18,"/")) -> / | N18: =A18&C18 -> AAAB | O18: =E18 ->  | P18: =C18&A18 -> ABAA | Q18: =F18 ->  | R18: =B18 -> 0 | S18: =D18 -> 
A19: =A8 -> AC | C19: =A9 -> AD | D19: =IF(G19=19,19,IF(ISBLANK(B19),"",IF(B19=19,0,36-B19))) ->  | E19: =IF(G19=19,0,IF(ISBLANK(B19),"",IF(B19<18,1,IF(B19=18,2,IF(B19>18,3))))) ->  | F19: =IF(G19=19,3,IF(ISBLANK(B19),"",IF(B19=19,0,IF(D19<18,1,IF(D19=18,2,IF(D19>=20,3)))))) ->  | L19: =IF(B19>D19,A19&C19,IF(D19>B19,C19&A19,"/")) -> / | N19: =A19&C19 -> ACAD | O19: =E19 ->  | P19: =C19&A19 -> ADAC | Q19: =F19 ->  | R19: =B19 -> 0 | S19: =D19 -> 
A20: =A10 -> AE | C20: =A11 -> AF | D20: =IF(G20=19,19,IF(ISBLANK(B20),"",IF(B20=19,0,36-B20))) ->  | E20: =IF(G20=19,0,IF(ISBLANK(B20),"",IF(B20<18,1,IF(B20=18,2,IF(B20>18,3))))) ->  | F20: =IF(G20=19,3,IF(ISBLANK(B20),"",IF(B20=19,0,IF(D20<18,1,IF(D20=18,2,IF(D20>=20,3)))))) ->  | L20: =IF(B20>D20,A20&C20,IF(D20>B20,C20&A20,"/")) -> / | N20: =A20&C20 -> AEAF | O20: =E20 ->  | P20: =C20&A20 -> AFAE | Q20: =F20 ->  | R20: =B20 -> 0 | S20: =D20 -> 
A21: =A12 -> AG | C21: =A13 -> AH | D21: =IF(G21=19,19,IF(ISBLANK(B21),"",IF(B21=19,0,36-B21))) ->  | E21: =IF(G21=19,0,IF(ISBLANK(B21),"",IF(B21<18,1,IF(B21=18,2,IF(B21>18,3))))) ->  | F21: =IF(G21=19,3,IF(ISBLANK(B21),"",IF(B21=19,0,IF(D21<18,1,IF(D21=18,2,IF(D21>=20,3)))))) ->  | L21: =IF(B21>D21,A21&C21,IF(D21>B21,C21&A21,"/")) -> / | N21: =A21&C21 -> AGAH | O21: =E21 ->  | P21: =C21&A21 -> AHAG | Q21: =F21 ->  | R21: =B21 -> 0 | S21: =D21 -> 
A23: 2 éme MATCH le | B23: à | C23: =A7 -> AB
G24: SI forfait éq recevante
A25: Equipes | B25: score | C25: Equipes | D25: score | E25: Points | F25: Points
A26: =A6 -> AA | C26: =A8 -> AC | D26: =IF(G26=19,19,IF(ISBLANK(B26),"",IF(B26=19,0,36-B26))) ->  | E26: =IF(G26=19,0,IF(ISBLANK(B26),"",IF(B26<18,1,IF(B26=18,2,IF(B26>18,3))))) ->  | F26: =IF(G26=19,3,IF(ISBLANK(B26),"",IF(B26=19,0,IF(D26<18,1,IF(D26=18,2,IF(D26>=20,3)))))) ->  | L26: =IF(B26>D26,A26&C26,IF(D26>B26,C26&A26,"/")) -> / | N26: =A26&C26 -> AAAC | O26: =E26 ->  | P26: =C26&A26 -> ACAA | Q26: =F26 ->  | R26: =B26 -> 0 | S26: =D26 -> 
A27: =A7 -> AB | C27: =A13 -> AH | D27: =IF(G27=19,19,IF(ISBLANK(B27),"",IF(B27=19,0,36-B27))) ->  | E27: =IF(G27=19,0,IF(ISBLANK(B27),"",IF(B27<18,1,IF(B27=18,2,IF(B27>18,3))))) ->  | F27: =IF(G27=19,3,IF(ISBLANK(B27),"",IF(B27=19,0,IF(D27<18,1,IF(D27=18,2,IF(D27>=20,3)))))) ->  | L27: =IF(B27>D27,A27&C27,IF(D27>B27,C27&A27,"/")) -> / | N27: =A27&C27 -> ABAH | O27: =E27 ->  | P27: =C27&A27 -> AHAB | Q27: =F27 ->  | R27: =B27 -> 0 | S27: =D27 -> 
A28: =A9 -> AD | C28: =A11 -> AF | D28: =IF(G28=19,19,IF(ISBLANK(B28),"",IF(B28=19,0,36-B28))) ->  | E28: =IF(G28=19,0,IF(ISBLANK(B28),"",IF(B28<18,1,IF(B28=18,2,IF(B28>18,3))))) ->  | F28: =IF(G28=19,3,IF(ISBLANK(B28),"",IF(B28=19,0,IF(D28<18,1,IF(D28=18,2,IF(D28>=20,3)))))) ->  | L28: =IF(B28>D28,A28&C28,IF(D28>B28,C28&A28,"/")) -> / | N28: =A28&C28 -> ADAF | O28: =E28 ->  | P28: =C28&A28 -> AFAD | Q28: =F28 ->  | R28: =B28 -> 0 | S28: =D28 -> 
A29: =A10 -> AE | C29: =A12 -> AG | D29: =IF(G29=19,19,IF(ISBLANK(B29),"",IF(B29=19,0,36-B29))) ->  | E29: =IF(G29=19,0,IF(ISBLANK(B29),"",IF(B29<18,1,IF(B29=18,2,IF(B29>18,3))))) ->  | F29: =IF(G29=19,3,IF(ISBLANK(B29),"",IF(B29=19,0,IF(D29<18,1,IF(D29=18,2,IF(D29>=20,3)))))) ->  | L29: =IF(B29>D29,A29&C29,IF(D29>B29,C29&A29,"/")) -> / | N29: =A29&C29 -> AEAG | O29: =E29 ->  | P29: =C29&A29 -> AGAE | Q29: =F29 ->  | R29: =B29 -> 0 | S29: =D29 -> 
A31: 3 éme MATCH le | B31: à | C31: =A8 -> AC
G32: SI forfait éq recevante
A33: Equipes | B33: score | C33: Equipes | D33: score | E33: Points | F33: Points
A34: =A6 -> AA | C34: =A13 -> AH | D34: =IF(G34=19,19,IF(ISBLANK(B34),"",IF(B34=19,0,36-B34))) ->  | E34: =IF(G34=19,0,IF(ISBLANK(B34),"",IF(B34<18,1,IF(B34=18,2,IF(B34>18,3))))) ->  | F34: =IF(G34=19,3,IF(ISBLANK(B34),"",IF(B34=19,0,IF(D34<18,1,IF(D34=18,2,IF(D34>=20,3)))))) ->  | L34: =IF(B34>D34,A34&C34,IF(D34>B34,C34&A34,"/")) -> / | N34: =A34&C34 -> AAAH | O34: =E34 ->  | P34: =C34&A34 -> AHAA | Q34: =F34 ->  | R34: =B34 -> 0 | S34: =D34 -> 
A35: =A7 -> AB | C35: =A10 -> AE | D35: =IF(G35=19,19,IF(ISBLANK(B35),"",IF(B35=19,0,36-B35))) ->  | E35: =IF(G35=19,0,IF(ISBLANK(B35),"",IF(B35<18,1,IF(B35=18,2,IF(B35>18,3))))) ->  | F35: =IF(G35=19,3,IF(ISBLANK(B35),"",IF(B35=19,0,IF(D35<18,1,IF(D35=18,2,IF(D35>=20,3)))))) ->  | L35: =IF(B35>D35,A35&C35,IF(D35>B35,C35&A35,"/")) -> / | N35: =A35&C35 -> ABAE | O35: =E35 ->  | P35: =C35&A35 -> AEAB | Q35: =F35 ->  | R35: =B35 -> 0 | S35: =D35 -> 
A36: =A8 -> AC | C36: =A11 -> AF | D36: =IF(G36=19,19,IF(ISBLANK(B36),"",IF(B36=19,0,36-B36))) ->  | E36: =IF(G36=19,0,IF(ISBLANK(B36),"",IF(B36<18,1,IF(B36=18,2,IF(B36>18,3))))) ->  | F36: =IF(G36=19,3,IF(ISBLANK(B36),"",IF(B36=19,0,IF(D36<18,1,IF(D36=18,2,IF(D36>=20,3)))))) ->  | L36: =IF(B36>D36,A36&C36,IF(D36>B36,C36&A36,"/")) -> / | N36: =A36&C36 -> ACAF | O36: =E36 ->  | P36: =C36&A36 -> AFAC | Q36: =F36 ->  | R36: =B36 -> 0 | S36: =D36 -> 
A37: =A9 -> AD | C37: =A12 -> AG | D37: =IF(G37=19,19,IF(ISBLANK(B37),"",IF(B37=19,0,36-B37))) ->  | E37: =IF(G37=19,0,IF(ISBLANK(B37),"",IF(B37<18,1,IF(B37=18,2,IF(B37>18,3))))) ->  | F37: =IF(G37=19,3,IF(ISBLANK(B37),"",IF(B37=19,0,IF(D37<18,1,IF(D37=18,2,IF(D37>=20,3)))))) ->  | L37: =IF(B37>D37,A37&C37,IF(D37>B37,C37&A37,"/")) -> / | N37: =A37&C37 -> ADAG | O37: =E37 ->  | P37: =C37&A37 -> AGAD | Q37: =F37 ->  | R37: =B37 -> 0 | S37: =D37 -> 
A39: 4 éme MATCH le | B39: à | C39: =A9 -> AD
G40: SI forfait éq recevante
A41: Equipes | B41: score | C41: Equipes | D41: score | E41: Points | F41: Points
A42: =A6 -> AA | C42: =A9 -> AD | D42: =IF(G42=19,19,IF(ISBLANK(B42),"",IF(B42=19,0,36-B42))) ->  | E42: =IF(G42=19,0,IF(ISBLANK(B42),"",IF(B42<18,1,IF(B42=18,2,IF(B42>18,3))))) ->  | F42: =IF(G42=19,3,IF(ISBLANK(B42),"",IF(B42=19,0,IF(D42<18,1,IF(D42=18,2,IF(D42>=20,3)))))) ->  | L42: =IF(B42>D42,A42&C42,IF(D42>B42,C42&A42,"/")) -> / | N42: =A42&C42 -> AAAD | O42: =E42 ->  | P42: =C42&A42 -> ADAA | Q42: =F42 ->  | R42: =B42 -> 0 | S42: =D42 -> 
A43: =A11 -> AF | C43: =A12 -> AG | D43: =IF(G43=19,19,IF(ISBLANK(B43),"",IF(B43=19,0,36-B43))) ->  | E43: =IF(G43=19,0,IF(ISBLANK(B43),"",IF(B43<18,1,IF(B43=18,2,IF(B43>18,3))))) ->  | F43: =IF(G43=19,3,IF(ISBLANK(B43),"",IF(B43=19,0,IF(D43<18,1,IF(D43=18,2,IF(D43>=20,3)))))) ->  | L43: =IF(B43>D43,A43&C43,IF(D43>B43,C43&A43,"/")) -> / | N43: =A43&C43 -> AFAG | O43: =E43 ->  | P43: =C43&A43 -> AGAF | Q43: =F43 ->  | R43: =B43 -> 0 | S43: =D43 -> 
A44: =A7 -> AB | C44: =A8 -> AC | D44: =IF(G44=19,19,IF(ISBLANK(B44),"",IF(B44=19,0,36-B44))) ->  | E44: =IF(G44=19,0,IF(ISBLANK(B44),"",IF(B44<18,1,IF(B44=18,2,IF(B44>18,3))))) ->  | F44: =IF(G44=19,3,IF(ISBLANK(B44),"",IF(B44=19,0,IF(D44<18,1,IF(D44=18,2,IF(D44>=20,3)))))) ->  | L44: =IF(B44>D44,A44&C44,IF(D44>B44,C44&A44,"/")) -> / | N44: =A44&C44 -> ABAC | O44: =E44 ->  | P44: =C44&A44 -> ACAB | Q44: =F44 ->  | R44: =B44 -> 0 | S44: =D44 -> 
A45: =A10 -> AE | C45: =A13 -> AH | D45: =IF(G45=19,19,IF(ISBLANK(B45),"",IF(B45=19,0,36-B45))) ->  | E45: =IF(G45=19,0,IF(ISBLANK(B45),"",IF(B45<18,1,IF(B45=18,2,IF(B45>18,3))))) ->  | F45: =IF(G45=19,3,IF(ISBLANK(B45),"",IF(B45=19,0,IF(D45<18,1,IF(D45=18,2,IF(D45>=20,3)))))) ->  | L45: =IF(B45>D45,A45&C45,IF(D45>B45,C45&A45,"/")) -> / | N45: =A45&C45 -> AEAH | O45: =E45 ->  | P45: =C45&A45 -> AHAE | Q45: =F45 ->  | R45: =B45 -> 0 | S45: =D45 -> 
A47: 5 éme MATCH le | B47: à | C47: =A10 -> AE
G48: SI forfait éq recevante
A49: Equipes | B49: score | C49: Equipes | D49: score | E49: Points | F49: Points
A50: =A6 -> AA | C50: =A11 -> AF | D50: =IF(G50=19,19,IF(ISBLANK(B50),"",IF(B50=19,0,36-B50))) ->  | E50: =IF(G50=19,0,IF(ISBLANK(B50),"",IF(B50<18,1,IF(B50=18,2,IF(B50>18,3))))) ->  | F50: =IF(G50=19,3,IF(ISBLANK(B50),"",IF(B50=19,0,IF(D50<18,1,IF(D50=18,2,IF(D50>=20,3)))))) ->  | L50: =IF(B50>D50,A50&C50,IF(D50>B50,C50&A50,"/")) -> / | N50: =A50&C50 -> AAAF | O50: =E50 ->  | P50: =C50&A50 -> AFAA | Q50: =F50 ->  | R50: =B50 -> 0 | S50: =D50 -> 
A51: =A9 -> AD | C51: =A13 -> AH | D51: =IF(G51=19,19,IF(ISBLANK(B51),"",IF(B51=19,0,36-B51))) ->  | E51: =IF(G51=19,0,IF(ISBLANK(B51),"",IF(B51<18,1,IF(B51=18,2,IF(B51>18,3))))) ->  | F51: =IF(G51=19,3,IF(ISBLANK(B51),"",IF(B51=19,0,IF(D51<18,1,IF(D51=18,2,IF(D51>=20,3)))))) ->  | L51: =IF(B51>D51,A51&C51,IF(D51>B51,C51&A51,"/")) -> / | N51: =A51&C51 -> ADAH | O51: =E51 ->  | P51: =C51&A51 -> AHAD | Q51: =F51 ->  | R51: =B51 -> 0 | S51: =D51 -> 
A52: =A7 -> AB | C52: =A12 -> AG | D52: =IF(G52=19,19,IF(ISBLANK(B52),"",IF(B52=19,0,36-B52))) ->  | E52: =IF(G52=19,0,IF(ISBLANK(B52),"",IF(B52<18,1,IF(B52=18,2,IF(B52>18,3))))) ->  | F52: =IF(G52=19,3,IF(ISBLANK(B52),"",IF(B52=19,0,IF(D52<18,1,IF(D52=18,2,IF(D52>=20,3)))))) ->  | L52: =IF(B52>D52,A52&C52,IF(D52>B52,C52&A52,"/")) -> / | N52: =A52&C52 -> ABAG | O52: =E52 ->  | P52: =C52&A52 -> AGAB | Q52: =F52 ->  | R52: =B52 -> 0 | S52: =D52 -> 
A53: =A8 -> AC | C53: =A10 -> AE | D53: =IF(G53=19,19,IF(ISBLANK(B53),"",IF(B53=19,0,36-B53))) ->  | E53: =IF(G53=19,0,IF(ISBLANK(B53),"",IF(B53<18,1,IF(B53=18,2,IF(B53>18,3))))) ->  | F53: =IF(G53=19,3,IF(ISBLANK(B53),"",IF(B53=19,0,IF(D53<18,1,IF(D53=18,2,IF(D53>=20,3)))))) ->  | L53: =IF(B53>D53,A53&C53,IF(D53>B53,C53&A53,"/")) -> / | N53: =A53&C53 -> ACAE | O53: =E53 ->  | P53: =C53&A53 -> AEAC | Q53: =F53 ->  | R53: =B53 -> 0 | S53: =D53 -> 
A55: 6 éme MATCH le | B55: à | C55: =A11 -> AF
G56: SI forfait éq recevante
A57: Equipes | B57: score | C57: Equipes | D57: score | E57: Points | F57: Points
A58: =A7 -> AB | C58: =A9 -> AD | D58: =IF(G58=19,19,IF(ISBLANK(B58),"",IF(B58=19,0,36-B58))) ->  | E58: =IF(G58=19,0,IF(ISBLANK(B58),"",IF(B58<18,1,IF(B58=18,2,IF(B58>18,3))))) ->  | F58: =IF(G58=19,3,IF(ISBLANK(B58),"",IF(B58=19,0,IF(D58<18,1,IF(D58=18,2,IF(D58>=20,3)))))) ->  | L58: =IF(B58>D58,A58&C58,IF(D58>B58,C58&A58,"/")) -> / | N58: =A58&C58 -> ABAD | O58: =E58 ->  | P58: =C58&A58 -> ADAB | Q58: =F58 ->  | R58: =B58 -> 0 | S58: =D58 -> 
A59: =A10 -> AE | C59: =A6 -> AA | D59: =IF(G59=19,19,IF(ISBLANK(B59),"",IF(B59=19,0,36-B59))) ->  | E59: =IF(G59=19,0,IF(ISBLANK(B59),"",IF(B59<18,1,IF(B59=18,2,IF(B59>18,3))))) ->  | F59: =IF(G59=19,3,IF(ISBLANK(B59),"",IF(B59=19,0,IF(D59<18,1,IF(D59=18,2,IF(D59>=20,3)))))) ->  | L59: =IF(B59>D59,A59&C59,IF(D59>B59,C59&A59,"/")) -> / | N59: =A59&C59 -> AEAA | O59: =E59 ->  | P59: =C59&A59 -> AAAE | Q59: =F59 ->  | R59: =B59 -> 0 | S59: =D59 -> 
A60: =A12 -> AG | C60: =A8 -> AC | D60: =IF(G60=19,19,IF(ISBLANK(B60),"",IF(B60=19,0,36-B60))) ->  | E60: =IF(G60=19,0,IF(ISBLANK(B60),"",IF(B60<18,1,IF(B60=18,2,IF(B60>18,3))))) ->  | F60: =IF(G60=19,3,IF(ISBLANK(B60),"",IF(B60=19,0,IF(D60<18,1,IF(D60=18,2,IF(D60>=20,3)))))) ->  | L60: =IF(B60>D60,A60&C60,IF(D60>B60,C60&A60,"/")) -> / | N60: =A60&C60 -> AGAC | O60: =E60 ->  | P60: =C60&A60 -> ACAG | Q60: =F60 ->  | R60: =B60 -> 0 | S60: =D60 -> 
A61: =A11 -> AF | C61: =A13 -> AH | D61: =IF(G61=19,19,IF(ISBLANK(B61),"",IF(B61=19,0,36-B61))) ->  | E61: =IF(G61=19,0,IF(ISBLANK(B61),"",IF(B61<18,1,IF(B61=18,2,IF(B61>18,3))))) ->  | F61: =IF(G61=19,3,IF(ISBLANK(B61),"",IF(B61=19,0,IF(D61<18,1,IF(D61=18,2,IF(D61>=20,3)))))) ->  | L61: =IF(B61>D61,A61&C61,IF(D61>B61,C61&A61,"/")) -> / | N61: =A61&C61 -> AFAH | O61: =E61 ->  | P61: =C61&A61 -> AHAF | Q61: =F61 ->  | R61: =B61 -> 0 | S61: =D61 -> 
A63: 7 éme MATCH le | B63: à | C63: =A12 -> AG
G64: SI forfait éq recevante
A65: Equipes | B65: score | C65: Equipes | D65: score | E65: Points | F65: Points
A66: =A6 -> AA | C66: =A12 -> AG | D66: =IF(G66=19,19,IF(ISBLANK(B66),"",IF(B66=19,0,36-B66))) ->  | E66: =IF(G66=19,0,IF(ISBLANK(B66),"",IF(B66<18,1,IF(B66=18,2,IF(B66>18,3))))) ->  | F66: =IF(G66=19,3,IF(ISBLANK(B66),"",IF(B66=19,0,IF(D66<18,1,IF(D66=18,2,IF(D66>=20,3)))))) ->  | L66: =IF(B66>D66,A66&C66,IF(D66>B66,C66&A66,"/")) -> / | N66: =A66&C66 -> AAAG | O66: =E66 ->  | P66: =C66&A66 -> AGAA | Q66: =F66 ->  | R66: =B66 -> 0 | S66: =D66 -> 
A67: =A7 -> AB | C67: =A11 -> AF | D67: =IF(G67=19,19,IF(ISBLANK(B67),"",IF(B67=19,0,36-B67))) ->  | E67: =IF(G67=19,0,IF(ISBLANK(B67),"",IF(B67<18,1,IF(B67=18,2,IF(B67>18,3))))) ->  | F67: =IF(G67=19,3,IF(ISBLANK(B67),"",IF(B67=19,0,IF(D67<18,1,IF(D67=18,2,IF(D67>=20,3)))))) ->  | L67: =IF(B67>D67,A67&C67,IF(D67>B67,C67&A67,"/")) -> / | N67: =A67&C67 -> ABAF | O67: =E67 ->  | P67: =C67&A67 -> AFAB | Q67: =F67 ->  | R67: =B67 -> 0 | S67: =D67 -> 
A68: =A10 -> AE | C68: =A9 -> AD | D68: =IF(G68=19,19,IF(ISBLANK(B68),"",IF(B68=19,0,36-B68))) ->  | E68: =IF(G68=19,0,IF(ISBLANK(B68),"",IF(B68<18,1,IF(B68=18,2,IF(B68>18,3))))) ->  | F68: =IF(G68=19,3,IF(ISBLANK(B68),"",IF(B68=19,0,IF(D68<18,1,IF(D68=18,2,IF(D68>=20,3)))))) ->  | L68: =IF(B68>D68,A68&C68,IF(D68>B68,C68&A68,"/")) -> / | N68: =A68&C68 -> AEAD | O68: =E68 ->  | P68: =C68&A68 -> ADAE | Q68: =F68 ->  | R68: =B68 -> 0 | S68: =D68 -> 
A69: =A8 -> AC | C69: =A13 -> AH | D69: =IF(G69=19,19,IF(ISBLANK(B69),"",IF(B69=19,0,36-B69))) ->  | E69: =IF(G69=19,0,IF(ISBLANK(B69),"",IF(B69<18,1,IF(B69=18,2,IF(B69>18,3))))) ->  | F69: =IF(G69=19,3,IF(ISBLANK(B69),"",IF(B69=19,0,IF(D69<18,1,IF(D69=18,2,IF(D69>=20,3)))))) ->  | L69: =IF(B69>D69,A69&C69,IF(D69>B69,C69&A69,"/")) -> / | N69: =A69&C69 -> ACAH | O69: =E69 ->  | P69: =C69&A69 -> AHAC | Q69: =F69 ->  | R69: =B69 -> 0 | S69: =D69 -> 
C70: CLASSEMENT | G70: Classt Final | H70: Rencontres entre exaequos
A71: EQUIPES | C71: POINTS | D71: POUR | E71: CONTRE | F71: DIFF | H71: POINTS Exaequos | I71: Exaq | J71: n° | K71: =A6 -> AA | L71: =A7 -> AB | M71: =A8 -> AC | N71: =A9 -> AD | O71: =A10 -> AE | P71: =A11 -> AF | Q71: =A12 -> AG | R71: =A13 -> AH | S71: Pts matchs | W71: 1000000*Pts matchs +1000 (Diff + abs(diff mini) )+Pour | X71: RANG | Y71: DIFF Exaequos | Z71: POUR Exaequos
B72: 1A | C72: 0 | D72: 0 | E72: 0 | F72: 0 | G72: 1 | H72: =IF(S72>0,S72,"") ->  | I72: =COUNTIF($C$72:$C$79,C72) -> 8 | J72: =IF(AND(I72>1,COUNTIFS(I$72:I72,I72,C$72:C72,C72)=1),MAX(J$71:J71)+1,"") -> 1 | K72: =IF($A72=K$71,"",IF(INDEX($C$72:$C$79,MATCH(K$71,$A$72:$A$79,0))=$C72,IFERROR(VLOOKUP($A72&K$71,$N$18:$O$69,2,0), VLOOKUP(K$71&$A72,$N$18:$Q$69,4,0)), "")) ->  | S72: =SUM(K72:R72) ->  | W72: =IF(I72<3,S72*1000000+(F72+ABS(MIN($F$72:$F$79)))*1000+D72,S72*1000000+U96*1000+Z72) ->  | X72: =IF(I72>2,RANK(W72,OFFSET(W$71,MATCH(I72,$I$72:$I$79,0),,I72))) ->  | Y72: =IF(S96=0,"",S96) ->  | Z72: =IF(S80=0,"",S80) -> 
B73: 1B | C73: 0 | D73: 0 | E73: 0 | F73: 0 | G73: 2 | I73: 8 | J73: =IF(AND(I73>1,COUNTIFS(I$72:I73,I73,C$72:C73,C73)=1),MAX(J$71:J72)+1,"") ->  | S73: =SUM(K73:R73) ->  | W73: =IF(I73<3,S73*1000000+(F73+ABS(MIN($F$72:$F$79)))*1000+D73,S73*1000000+U97*1000+Z73) ->  | X73: =IF(I73>2,RANK(W73,OFFSET(W$71,MATCH(I73,$I$72:$I$79,0),,I73))) -> 
B74: 1C | C74: 0 | D74: 0 | E74: 0 | F74: 0 | G74: 3 | I74: 8 | J74: =IF(AND(I74>1,COUNTIFS(I$72:I74,I74,C$72:C74,C74)=1),MAX(J$71:J73)+1,"") -> 
B75: 1D | C75: 0 | D75: 0 | E75: 0 | F75: 0 | G75: 4 | I75: 8 | J75: =IF(AND(I75>1,COUNTIFS(I$72:I75,I75,C$72:C75,C75)=1),MAX(J$71:J74)+1,"") -> 
B76: 1E | C76: 0 | D76: 0 | E76: 0 | F76: 0 | G76: 5 | I76: 8 | J76: =IF(AND(I76>1,COUNTIFS(I$72:I76,I76,C$72:C76,C76)=1),MAX(J$71:J75)+1,"") -> 
B77: 1F | C77: 0 | D77: 0 | E77: 0 | F77: 0 | G77: 6 | I77: 8 | J77: =IF(AND(I77>1,COUNTIFS(I$72:I77,I77,C$72:C77,C77)=1),MAX(J$71:J76)+1,"") -> 
B78: 1G | C78: 0 | D78: 0 | E78: 0 | F78: 0 | G78: 7 | I78: 8 | J78: =IF(AND(I78>1,COUNTIFS(I$72:I78,I78,C$72:C78,C78)=1),MAX(J$71:J77)+1,"") -> 
B79: 1H | C79: 0 | D79: 0 | E79: 0 | F79: 0 | G79: 8 | I79: 8 | J79: =IF(AND(I79>1,COUNTIFS(I$72:I79,I79,C$72:C79,C79)=1),MAX(J$71:J78)+1,"") -> 
I80: POUR | J80: =A72 -> 0 | K80: =IF($A72=K$71,"",IF(INDEX($C$72:$C$79,MATCH(K$71,$A$72:$A$79,0))=$C72,IFERROR(VLOOKUP($A72&K$71,$N$18:$R$69,5,0), VLOOKUP(K$71&$A72,$N$18:$S$69,6,0)), "")) -> 
J81: 0
J82: 0
J83: 0
J84: 0
J85: 0
J86: 0
J87: 0
I88: CONTRE | J88: =J80 -> 0 | K88: =INDEX($K$80:$R$87,MATCH(K$71,$J$80:$J$87,0),MATCH($J80,$K$71:$R$71,0)) ->  | L88: =INDEX($K$80:$R$87,MATCH(L$71,$J$80:$J$87,0),MATCH($J80,$K$71:$R$71,0)) -> 
J89: =J81 -> 0 | K89: =INDEX($K$80:$R$87,MATCH(K$71,$J$80:$J$87,0),MATCH($J81,$K$71:$R$71,0)) -> 
J90: 0
J91: 0
J92: 0
J93: 0
J94: 0
J95: 0 | U95: Diff pondérée
I96: DIFF | J96: =J88 -> 0 | S96: =S80-S88 ->  | U96: =S96+ABS(MIN($S$96:$S$103)) -> 
J97: =J89 -> 0 | S97: =S81-S89 -> 
J98: 0
J99: 0
J100: 0
J101: 0
J102: 0 | U102: =S102+ABS(MIN($S$96:$S$103)) -> 
J103: 0 | U103: =S103+ABS(MIN($S$96:$S$103)) -> 

Sheet Résultats Poules
C2: POULES | D2: 1er | E2: POINTS | F2: 1 er exaequo | G2: 2 ème | H2: 7 ème | I2: 7 ème exaequo ou 8 ème
D3: EQUIPES | F3: EQUIPES | G3: EQUIPES | H3: EQUIPES | I3: EQUIPES
C4: 1 | D4: =IF('P1'!A$72="","",'P1'!A$72) -> Club Hirondelle | E4: =IF('P1'!C$72="","",'P1'!C$72) -> 17 | F4: =IF('P1'!G$73=1,'P1'!A$73,"") ->  | G4: =IF('P1'!A$73="","",'P1'!A$73) -> Club Baleine | H4: =IF('P1'!A$78="","",'P1'!A$78) -> Club Girafe | I4: =IF('P1'!A$79="","",'P1'!A$79) -> Club Fourmi
C5: 2 | D5: =IF('P2'!A$72="","",'P2'!A$72) -> Club Marsouin | E5: =IF('P2'!C$72="","",'P2'!C$72) -> 19 | F5: =IF('P2'!G$73=1,'P2'!A$73,"") ->  | G5: =IF('P2'!A$73="","",'P2'!A$73) -> Club Jaguar | H5: =IF('P2'!A$78="","",'P2'!A$78) -> Club Leopard | I5: =IF('P2'!A$79="","",'P2'!A$79) -> Club Panthere
C6: 3 | D6: =IF('P3'!A$72="","",'P3'!A$72) ->  | E6: =IF('P3'!C$72="","",'P3'!C$72) -> 0 | F6: =IF('P3'!G$73=1,'P3'!A$73,"") ->  | G6: =IF('P3'!A$73="","",'P3'!A$73) ->  | H6: =IF('P3'!A$78="","",'P3'!A$78) ->  | I6: =IF('P3'!A$79="","",'P3'!A$79) -> 
C7: 4 | D7: =IF('P4'!A$72="","",'P4'!A$72) ->  | E7: =IF('P4'!C$72="","",'P4'!C$72) -> 0 | F7: =IF('P4'!G$73=1,'P4'!A$73,"") ->  | G7: =IF('P4'!A$73="","",'P4'!A$73) ->  | H7: =IF('P4'!A$78="","",'P4'!A$78) ->  | I7: =IF('P4'!A$79="","",'P4'!A$79) -> 
C8: 5 | D8: =IF('P5'!A$72="","",'P5'!A$72) ->  | E8: =IF('P5'!C$72="","",'P5'!C$72) -> 0 | F8: =IF('P5'!G$73=1,'P5'!A$73,"") ->  | G8: =IF('P5'!A$73="","",'P5'!A$73) ->  | H8: =IF('P5'!A$78="","",'P5'!A$78) ->  | I8: =IF('P5'!A$79="","",'P5'!A$79) -> 
C9: 6 | D9: =IF('P6'!A$72="","",'P6'!A$72) ->  | E9: =IF('P6'!C$72="","",'P6'!C$72) -> 0 | F9: =IF('P6'!G$73=1,'P6'!A$73,"") ->  | G9: =IF('P6'!A$73="","",'P6'!A$73) ->  | H9: =IF('P6'!A$78="","",'P6'!A$78) ->  | I9: =IF('P6'!A$79="","",'P6'!A$79) -> 
C10: 7 | D10: =IF('P7'!A$72="","",'P7'!A$72) ->  | E10: =IF('P7'!C$72="","",'P7'!C$72) -> 0 | F10: =IF('P7'!G$73=1,'P7'!A$73,"") ->  | G10: =IF('P7'!A$73="","",'P7'!A$73) ->  | H10: =IF('P7'!A$78="","",'P7'!A$78) ->  | I10: =IF('P7'!A$79="","",'P7'!A$79) -> 
C11: 8 | D11: =IF('P8'!A$72="","",'P8'!A$72) ->  | E11: =IF('P8'!C$72="","",'P8'!C$72) -> 0 | F11: =IF('P8'!G$73=1,'P8'!A$73,"") ->  | G11: =IF('P8'!A$73="","",'P8'!A$73) ->  | H11: =IF('P8'!A$78="","",'P8'!A$78) ->  | I11: =IF('P8'!A$79="","",'P8'!A$79) -> 
